{"text_format":"1","workbook":"xlsx","n_sheets":4,"sheets":["Seznam EEO_2022","Dodano na seznam glede na 2019","Brisano s seznama glede na 2019","Dodano na seznam (2)"],"not_rendered":{"charts":0,"images":0,"macros":1,"external_links":1,"defined_names":1,"comments":0,"pivot_tables":0},"unopened":[],"bounds":{"document_bytes":16777216,"sheet_cells":100000,"rows_first":2000,"rows_last":500,"rows_between":2000,"halvings":0,"cell_chars":16384,"cell_head_chars":4096},"cells_cut":0,"cells_raw":0,"read":"whole","date_system":"1900"}

{"sheet":"Seznam EEO_2022","index":0,"n_rows":516,"n_cols":4,"rows_kept":516,"cut":false,"hidden":false,"merged":[[150,0,151,0],[243,0,244,0],[243,1,244,1],[243,2,244,2],[243,7,244,7],[243,11,244,11],[1,0,1,3],[0,6,2,11],[16,11,17,11],[141,0,142,0],[141,3,142,3],[141,6,142,6],[141,7,142,7],[141,11,142,11],[141,1,142,1],[141,2,142,2],[243,3,244,3],[243,6,244,6],[150,1,151,1],[150,2,151,2],[150,3,151,3],[150,6,151,6],[150,7,151,7],[150,11,151,11]]}
[]
["Seznam EE opreme, prenosnih baterij in akumulatorjev po kombinirani nomenklaturi za leto 2022 (veljavnost od 1. 7. 2022 dalje)"]
[]
["tarifna oznaka","razred *","ime proizvoda","opis proizvoda"]
["6301 10 00","4 ali 5","ELEKTRIČNE ODEJE","ELEKTRIČNE ODEJE"]
["8414 51 00","4 ali 5","VENTILATORJI","NAMIZNI,TALNI, STENSKI,OKENSKI,STROPNI, Z ELEKTROMOTORJI, MOČI DO 125 W, DRUGI"]
["8414 59 25","4 ali 5","VENTILATORJI","VENTILATORJI, DRUGI, OSNI"]
["8414 59 35","4 ali 5","VENTILATORJI","VENTILATORJI, DRUGI, CENTRIFUGALNI"]
["8414 59 95","4 ali 5","VENTILATORJI","VENTILATORJI, DRUGI"]
["8414 60 00",4,"NAPE","NAPE Z NAJVEČJO HORIZONTALNO STRANICO DO 120 CM"]
["8414 70 00","4 ali 5","NEPRODUŠNE BIOLOŠKE VARNOSTNE OMARICE","NEPRODUŠNE BIOLOŠKE VARNOSTNE OMARICE"]
["8415 10 10",1,"KLIMATSKE NAPRAVE","KLIMATSKE NAPRAVE Z VENTILATORJI, OKENSKE, STENSKE, V ENEM KOSU"]
["8415 81 00",1,"KLIMATSKE NAPRAVE","KLIMATSKE NAPRAVE Z VENTILATORJI, Z VGRAJENO HLADILNO ENOTO IN REGULACIJSKIM VENTILOM ZA HLAJENJE ALI GRETJE (POVRATNA TOPLOTNA ČRPALKA), DRUGE"]
["8415 82 00",1,"KLIMATSKE NAPRAVE","KLIMATSKE NAPRAVE Z VENTILATORJI, Z VGRAJENO HLADILNO ENOTO, DRUGE"]
["8415 83 00",1,"KLIMATSKE NAPRAVE","KLIMATSKE NAPRAVE Z VENTILATORJI, BREZ VGRAJENE HLADILNE ENOTE, DRUGE"]
["8415 10 90 ",1,"KLIMATSKE NAPRAVE","KLIMATSKE NAPRAVE Z VENTILATORJEM NA MOTORNI POGON IN ELEMENTI ZA\nSPREMINJANJE TEMPERATURE IN VLAŽNOSTI,VKLJUČNO S STROJI, PRI KATERIH\nVLAŽNOSTI NI MOGOČE POSEBEJ REGULIRATI, KI SO KONSTRUIRANE TAKO, DA SE PRITRDIJO NA OKNO, ZID, STROP ALI TLA, DELJENE (SPLIT SISTEMI)"]
["8418 10 20",1,"HLADILNIKI","KOMBINIRANI HLADILNIK IN ZAMRZOVALNIK Z LOČENIMI VRATI ALI PREDALI ALI NJIHOVO KOMBINACIJO, PROSTORNINE NAD 340 LITROV"]
["8418 10 80",1,"HLADILNIKI","KOMBINIRANI HLADILNIK IN ZAMRZOVALNIK Z LOČENIMI VRATI ALI PREDALI ALI NJIHOVO KOMBINACIJO, DRUGE"]
["8418 21 10",1,"HLADILNIKI","HLADILNIKI ZA GOSPODINJSTVA, KOMPRESORSKI, NAD 340 L"]
["8418 21 51",1,"HLADILNIKI","HLADILNIKI ZA GOSPODINJSTVA, KOMPRESORSKI, DO 340 L,NAMIZNI"]
["8418 21 59",1,"HLADILNIKI","HLADILNIKI ZA GOSPODINJSTVA, KOMPRESORSKI, DO 340 L, VGRADNI"]
["8418 21 91",1,"HLADILNIKI","HLADILNIKI ZA GOSPODINJSTVA, KOMPRESORSKI,DO 250 L, NEVGRADNI"]
["8418 21 99",1,"HLADILNIKI","HLADILNIKI ZA GOSPODINJSTVA, KOMPRESORSKI, 250-340 L, NEVGRADNI"]
["8418 29 00",1,"HLADILNIKI","HLADILNIKI ZA GOSPODINJSTVA, DRUGI"]
["8418 30 20",1,"ZAMRZOVALNE SKRINJE","ZAMRZOVALNIKI -SKRINJE,DO 400 L"]
["8418 30 80",1,"ZAMRZOVALNE SKRINJE","ZAMRZOVALNIKI - SKRINJE,OD 400-800 L"]
["8418 40 20",1,"ZAMRZOVALNE OMARE","ZAMRZOVALNIKI - VERTIKALNI, DO 250 L"]
["8418 40 80",1,"ZAMRZOVALNE OMARE","ZAMRZOVALNIKI - VERTIKALNI, 250-900 L"]
["8418 50 11",1,"HLADILNE VITRINE ZA ŽIVILA","HLADILNE OMARE, VITRINE, ZA HLAJENJE ALI ZAMRZOVANJE, ZA SHRANJEVANJE ZAMRZNJENIH ŽIVIL"]
["8418 50 19",1,"HLADILNE VITRINE - DRUGE","HLADILNE OMARE, VITRINE,ZA HLAJENJE ALI ZAMRZOVANJE, ZA DRUGO SHRANJEVANJE"]
["8418 50 90",1,"DRUGO HLADILNO POHIŠTVO","DRUGO HLADILNO POHIŠTVO"]
["8418 61 00",1,"DRUGE NAPRAVE ZA HLAJENJE ALI ZAMRZOVANJE;TOPLOTNE ČRPALKE","TOPLOTNE ČRPALKE, KI NISO KLIMATSKE NAPRAVE IZ TARIFNE ŠTEVILKE 8415"]
["8418 69 00",1,"DRUGE NAPRAVE ZA HLAJENJE ALI ZAMRZOVANJE;TOPLOTNE ČRPALKE","DRUGE NAPRAVE ZA HLAJENJE ALI ZAMRZOVANJE;TOPLOTNE ČRPALKE, DRUGE"]
["8421 12 00",4,"CENTRIFUGE ZA SUŠENJE PERILA","CENTRIFUGE ZA SUŠENJE PERILA"]
["8421 19 70","4 ali 5","CENTRIFUGE-DRUGE","CENTRIFUGE,DRUGE, NEOMENJENE"]
["8422 11 00",4,"POMIVALNI STROJI- gospodinjski","STROJI ZA POMIVANJE POSODE ZA GOSPODINJSTVA"]
["8422 19 00",4,"POMIVALNI STROJI- negospodinjski","STROJI ZA PRANJE POSODE,RAZEN ZA GOSPODINJSTVA"]
["8422 20 00",4,"STROJI ZA SUŠENJE IN ČIŠČENJE STEKLENIC IN DRUGE POSODE","STROJI ZA SUŠENJE IN ČIŠČENJE STEKLENIC IN DRUGE POSODE"]
["8450 11 11",4,"PRALNI STROJI","PRALNI STROJI ZA GOSPOD., POPONOMA AVTOMATSKI, DO 6 KG SUHEGA PERILA, KI SE POLNIJO OD SPREDAJ"]
["8450 11 19",4,"PRALNI STROJI","PRALNI STROJI ZA GOSPODINJSTVA, POPOLNOMA AVTOMATSKI, DO 6 KG SUHEGA PERILA, KI SE POLNIJO OD ZGORAJ"]
["8450 11 90",4,"PRALNI STROJI","PRALNI STROJI ZA GOSPODINJSTVA, POPOLNOMA AVTOMATSKI, OD 6 DO 10 KG SUHEGA PERILA"]
["8450 12 00",4,"PRALNI STROJI","PRALNI STROJI ZA GOSPODINJSTVA, DRUGI, Z VGRAJENO CENTRIFUGALNO NAPRAVO ZA OŽEMANJE, Z ZMOGLJ.DO 10 KG PERILA"]
["8450 19 00",4,"PRALNI STROJI","PRALNI STROJI ZA GOSPODINJSTVA, DRUGI, Z ZMOGLJ.DO 10 KG PERILA"]
["8450 20 00",4,"PRALNI STROJI nad 10 kg","PRALNI STROJI,Z ZMOGLJVOSTJO NAD 10 KG SUHEGA PERILA"]
["8451 21 00",4,"SUŠILNI STROJI","SUŠILNI STROJI, Z ZMOGLJ. DO 10 KG SUHEGA PERILA"]
["8451 29 00",4,"SUŠILNI STROJI","SUŠILNI STROJI, DRUGI, Z ZMOGLJ. NAD 10 KG SUHEGA PERILA"]
["8451 80 80",4,"STROJI ZA PRANJE, ČIŠČENJE, SUŠENJE","DRUGI STROJI"]
["8479 89 97","4 ali 5","STROJI IN NAPRAVE S POSEBNIMI FUNKCIJAMI, DRUGO","STROJI IN NAPRAVE S POSEBNIMI FUNKCIJAMI, DRUGO "]
["8516 10 11","4 ali 5","BOJLERJI","ELEKTR.PRETOČNI, AKUMUL.IN POTOPNI GRELNIKI VODE, PRETOČNI GRELNIKI VODE"]
["8516 10 80","4 ali 5","BOJLERJI","ELEKTR.PRETOČNI, AKUMUL.IN POTOPNI GRELNIKI VODE, DRUGI"]
["8516 21 00",4,"ELEKTR.APARATI ZA OGREVA-NJE PROSTOROV,TAL, AKUMULACIJSKI","ELEKTRIČNI APARATI ZA OGREVANJE PROSTOROV, TAL, AKUMULACIJSKI"]
["8516 29 10",1,"RADIATORJI","ELEKTRIČNI APARATI ZA OGREVANJE PROSTOROV, TAL, RADIATORJI, POLNJENI S TEKOČINO"]
["8516 29 50",4,"KONVEKCIJSKI GRELCI","ELEKTRIČNI APARATI ZA OGREVANJE PROSTOROV, TAL, KONVEKCIJSKI GRELCI"]
["8516 29 91","4 ali 5","ELEKTR.APARATI ZA OGREVA- NJE PROST.,TAL,DRUGI,Z VGRAJENIMI VENTILATORJI","ELEKTRIČNI APARATI ZA OGREVANJE PROSTOROV,TAL, DRUGI, Z VGRAJENIMI VENTILATORJI"]
["8516 29 99","4 ali 5","ELEKTR.APARATI ZA OGREVANJE PROST.,TAL,DRUGI, OSTALI","ELEKTRIČNI APARATI ZA OGREVANJE PROSTOROV, TAL, DRUGI, OSTALI"]
["8516 50 00",5,"MIKROVALOVNE PEČICE","MIKROVALOVNE PEČICE"]
["8516 60 10",4,"ELEKTRIČNI ŠTEDILNIKI","ŠTEDILNIKI Z VSAJ ENO PEČICO IN GRELNO PLOŠČO"]
["8516 60 50",5,"DRUGE PEČI, KUHALNIKI KUHALNE PLOŠČE, KUHALNI PRSTANI","KUHALNE PLOŠČE, GRELNI PRSTANI IN GRELNE PLOŠČE"]
["8516 60 70",5,"OPEKAČI, RAŽNJI","OPEKAČI IN RAŽNJI"]
["8516 60 80",4,"VGRADNE PEČICE","VGRADNE PEČICE"]
["8516 60 90","4 ali 5","PEČICE,DRUGE,ŠTEDILNIKI,KUHALNIKI,OPEKAČI,RAŽNJI, DRUGI","PEČICE,DRUGE,ŠTEDILNIKI, KUHALNIKI, OPEKAČI, RAŽNJI, DRUGI"]
["8419 81 20",5,"APARATI ZA PRIPRAVO TOPLIH NAPITKOV - KAVNI AVTOMATI,","STROJI ZA PRIPRAVO TOPLIH NAPITKOV, DRUGI,PERKOLATORJI IN DRUGE NAPRAVE ZA PRIPRAVO KAVE IN TOPLIH NAPITKOV"]
["8419 81 80",5,"APARATI ZA PRIPRAVO TOPLIH NAPITKOV,DRUGI,NEOMENJ.","STROJI ZA PRIPRAVO TOPLIH NAPITKOV, DRUGI, NEOMENJENI"]
["8421 21 00",5,"NAPRAVE IN APARATI ZA FILTRIRANJE TEKOČIN","NAPRAVE IN APARATI ZA FILTRIRANJE IN ČIŠČENJE VODE, DRUGI"]
["8422 40 00",5,"STROJI ZA PAKIRANJE IN ZAVIJANJE","STROJI ZA PAKIRANJE IN ZAVIJANJE, DRUGI (VKLJUČNO STROJI ZA ZAVIJANJE NA OSNOVI TOPLOTNEGA KRČENJA)"]
["8423 10 10",5,"OSEBNE TEHTNICE,GOSPODINJSKE TEHTNICE","GOSPODINJSKE TEHTNICE"]
["8423 10 90",5,"OSEBNE TEHTNICE,GOSPODINJSKE TEHTNICE","DRUGE"]
["8451 30 00",4,"STROJI IN STISKALNICE ZA LIKANJE","STROJI IN STISKALNICE ZA LIKANJE, KATERIH PRIMARNA FUNKCIJA JE ODVISNA OD ELEKTRIČNE ENERGIJE"]
["8452 10 11","4 ali 5","ŠIVALNI STROJI","ŠIVALNI STROJI ZA GOSPODINJSTVA, Z VREDNOSTJO (BREZ  OKVIRJEV,MIZ) NAD 65 EUR ZA KOS"]
["8452 10 19","4 ali 5","ŠIVALNI STROJI","ŠIVALNI STROJI ZA GOSPODINJSTVA, Z GLAVAMI, DRUGI"]
["8452 10 90","4 ali 5","ŠIVALNI STROJI","ŠIVALNI STROJI ZA GOSPODINJSTVA, DRUGI ŠIVALNI STROJI IN DRUGE GLAVE ŠIVALNIH STROJEV"]
["8508 11 00","4 ali 5","SESALNIKI","SESALNIKI ZA PRAH, Z VDELANIM ELEKTRIČNIM MOTORJEM, Z MOČJO DO VKLJUČNO 1500 W IN ZMOGLJ. ZBIRALNIKA ZA PRAH DO VKLJUČNO 20 L"]
["8508 19 00","4 ali 5","SESALNIKI","SESALNIKI ZA PRAH, Z VDELANIM ELEKTRIČNIM MOTORJEM, DRUGI"]
["8509 40 00",5,"ELEKTROMEHANSKI GOSP. APARATI Z VDELANIM ELEKTROMOTORJEM, RAZEN SESALNIKOV ZA PRAH IZ TARIF. ŠT. 8508","APARATI ZA MLETJE,MEŠANJE HRANE, SOKOVNIKI ZA SADJE IN ZELENJAVO"]
["8509 80 00",5,"ELEKTROMEHANSKI GOSP. APARATI Z VDELANIM ELEKTROMOTORJEM, RAZEN SESALNIKOV ZA PRAH IZ TARIF. ŠT. 8508","DRUGI APARATI"]
["8510 10 00",5,"BRIVSKI APARATI","BRIVSKI APARATI"]
["8510 20 00",5,"APARATI ZA STRIŽENJE LAS","APARATI ZA STRIŽENJE"]
["8510 30 00",5,"NAPRAVE ZA ODSTRANJEVANJE DLAK","NAPRAVE ZA ODSTRANJEVANJE DLAK"]
["8516 31 00",5,"ELEKTROTERMIČNI APARATI ZA UREJANJE LAS ALI SUŠENJE ROK","APARATI ZA SUŠENJE LAS"]
["8516 32 00",5,"ELEKTROTERMIČNI APARATI ZA UREJANJE LAS ALI SUŠENJE ROK","DRUGI APARATI ZA UREJANJE LAS"]
["8516 33 00",5,"ELEKTROTERMIČNI APARATI ZA UREJANJE LAS ALI SUŠENJE ROK","APARATI ZA SUŠENJE ROK"]
["8516 40 00",5,"ELEKTRIČNI LIKALNIKI","ELEKTRIČNI LIKALNIKI"]
["8516 71 00",5,"APARATI ZA PRIPRAVLJANJE KAVE ALI ČAJA","DRUGE ELEKTROTERMIČNE NAPRAVE,APARATI ZA PRIPRAVLJANJE KAVE ALI ČAJA"]
["8516 72 00",5,"OPEKAČI","DRUGE ELEKTROTERMIČNE NAPRAVE, OPEKAČI"]
["8516 79 20",5,"CVRTNIKI","ELEKTROTERMIČNE NAPRAVE, DRUGE,CVRTNIKI"]
["8516 79 70","4 ali 5","ELEKTROTERMIČNE NAPRAVE,DRUGE,OSTALE","ELEKTROTERMIČNE NAPRAVE,DRUGE, OSTALE"]
["9101 11 00",5,"ROČNE URE","ROČNE URE,NA BATERIJE, IZ PLEMENITE KOVINE, NAPAJANJE IZ BATERIJE,SAMO Z MEHANIČNIM PRIKAZOVALNIKOM"]
["9101 19 00",5,"ROČNE URE","ROČNE URE,NA BATERIJE,IZ PLEMENITE KOVINE,NAPAJANJE IZ BATERIJE, DRUGE"]
["9101 91 00",5,"ROČNE URE","OSEBNE URE, NA BATERIJE,IZ PLEMENITIH KOVIN, DRUGE, Z NAPAJANJEM IZ BATERIJE ALI AK"]
["9102 11 00",5,"ROČNE URE","ROČNE URE,NA BATERIJE, RAZEN IZ PLEMENITIH KOVIN, NA BATERIJE, SAMO Z MEHANIČNIM PRIKAZOVANIKOM"]
["9102 12 00",5,"ROČNE URE","ROČNE URE, NA BATERIJE, RAZEN IZ PLEMENITIH KOVIN, NA BATERIJE, SAMO Z OPTIČNO-ELEKTRIČNIM PRIKAZOVALNIKOM"]
["9102 19 00",5,"ROČNE URE","ROČNE URE,NA BATERIJE, RAZEN IZ PLEMENITIH KOVIN, NA BATERIJE, DRUGE"]
["9102 91 00",5,"DRUGE URE","DRUGE URE, NA BATERIJE, RAZEN IZ PLEMENITIH KOVIN"]
["9103 10 00",5,"HIŠNE, PISARNIŠKE IPD. URE","HIŠNE,PISARNIŠKE IPD.URE Z MEHANIZ.ZA OSEBNE URE, NA BATERIJE"]
["9105 11 00",5,"BUDILKE","BUDILKE,ELEKTRIČNE"]
["9105 21 00",5,"STENSKE URE","STENSKE URE,ELEKTRIČNE"]
["9105 91 00",5,"DRUGE URE","URE, DRUGE,ELEKTRIČNE"]
["9106 10 00",5,"NAPRAVE ZA KONTROLO IN MERJENJE ČASA IN DATUMA,KI  REGISTRIRAJO SAMO ČAS","NAPRAVE ZA KONTROLO IN MERJENJE ČASA IN DATUMA, KI  REGISTRIRAJO SAMO ČAS"]
["9106 90 00",5,"NAPRAVE ZA KONTROLO IN MERJENJE ČASA IN DATUMA,DRUGE","NAPRAVE ZA KONTROLO IN MERJENJE ČASA IN DATUMA,DRUGE"]
["9108 11 00",5,"ELEKTRIČNI MEHANIZMI ZA OSEBNE URE","KOMPLETNI IN SESTAVLJENI ELEKTRIČNI MEHANIZMI ZA OSEBNE URE, SAMO Z MEHANIČNIM PRIKAZOVALNIKOM ALI Z NAPRAVO, V KATERO SE LAHKO VGRADI MEHANIČNI PRIKAZOVALNIK"]
["9108 12 00",5,"ELEKTRIČNI MEHANIZMI ZA OSEBNE URE","KOMPLETNI IN SESTAVLJENI ELEKTRIČNI MEHANIZMI ZA OSEBNE URE, SAMO Z OPTIČNO-ELEKTRONSKIM PRIKAZOVALNIKOM"]
["9108 19 00",5,"ELEKTRIČNI MEHANIZMI ZA OSEBNE URE","KOMPLETNI IN SESTAVLJENI ELEKTRIČNI MEHANIZMI ZA OSEBNE URE, DRUGI"]
["9109 10 00",5,"DRUGI ELEKTRIČNI URNI MEHANIZMI","DRUGI KOMPLETNI IN SESTAVLJENI ELEKTRIČNI URNI MEHANIZMI"]
["8414 59 15",5,"VENTILATORJI","VENTILATORJI, KISE UPORABLJAJO SAMO ALI ZLASTI ZA HLAJENJE MIRKOPROCESORJEV, TELEKOMUNIKACIJSKIH APARATOV, STROJEV ZA AVTOMATSKO OBDELAVO PODATKOV IN NJIHOVIH ENOT"]
["8443 31 00","4 ali 6","TISKALNIKI, STROJI ZA KOPIRANJE IN POŠILJANJE TELEFAKSOV","STROJI, KI ZAGOTAVLJAJO NAJMANJ DVE OD NASLEDNJIH FUNKCIJ: TISKANJE, KOPIRANJE ALI PRENOS TELEFAKSA, SPOSOBNI ZA POVEZAVO S STROJEM ZA AVTOMATSKO ODELAVO PODATKOV ALI Z OMREŽJEM"]
["8443 32 10","4 ali 6","TISKALNIKI","TISKALNIKI, SPOSOBNI ZA POVEZAVO S STROJEM ZA AVTOMATSKO OBDELAVO PODATKOV ALI Z OMREŽJEM"]
["8443 32 80","4 ali 6","KOPIRNI STROJI, TELEFAKSI","KOPIRNI STROJI IN TELEFAKSI"]
["8443 39 00","4 ali 6","TISKALNIKI, KOPIRNI STROJI, TELEFAKSI","TISKALNIKI, KOPIRNI STROJI, TELEFAKSI, KI NIMAJO SPOSOBNOSTI ZA POVEZAVO S STROJEM ZA AVTOMATSKO OBDELAVO PODATKOV ALI Z OMREŽJEM"]
["8485 10 00",4,"STROJI ZA ADITIVNO PROIZVODNJO (3D TISKALNIKI)","STROJI ZA ADITIVNO PROIZVODNJO (3D TISKALNIKI), Z NANOSOM KOVIN"]
["8485 20 00",4,"STROJI ZA ADITIVNO PROIZVODNJO (3D TISKALNIKI)","STROJI ZA ADITIVNO PROIZVODNJO (3D TISKALNIKI),Z NANOSOM PLASTIČNIH MAS ALI GUME"]
["8485 30 10",4,"STROJI ZA ADITIVNO PROIZVODNJO (3D TISKALNIKI)","STROJI ZA ADITIVNO PROIZVODNJO (3D TISKALNIKI), Z NANOSOM MAVCA, CEMENTA ALI KERAMIKE"]
["8485 30 90",4,"STROJI ZA ADITIVNO PROIZVODNJO (3D TISKALNIKI)","STROJI ZA ADITIVNO PROIZVODNJO (3D TISKALNIKI), Z NANOSOM STEKLA"]
["8485 80 00",4,"STROJI ZA ADITIVNO PROIZVODNJO (3D TISKALNIKI)","STROJI ZA ADITIVNO PROIZVODNJO (3D TISKALNIKI),DRUGI"]
["8470 10 00",6,"RAČUNSKI STROJI IN SNEMALCI PODATKOV,STROJI ZA REPRODUKCIJO, PRIKAZOVANJE Z RAČUNSKIMI FUNKCIJAMI, KNJIGOVODSKI, FRANKIRNI STROJI,STROJI ZA IZDAJANJE KART, REGISTRIRNE BLAGAJNE","RAČUNSKI STROJI, ELEKTRONSKI, BREZ ZUNANJEGA VIRA ELEKTRIČNE.ENERGIJE"]
["8470 21 00",6,"RAČUNSKI STROJI IN SNEMALCI PODATKOV,STROJI ZA REPRODUKCIJO, PRIKAZOVANJE Z RAČUNSKIMI FUNKCIJAMI, KNJIGOVODSKI, FRANKIRNI STROJI,STROJI ZA IZDAJANJE KART, REGISTRIRNE BLAGAJNE","RAČUNSKI STROJI, ELEKTRONSKI,Z VGRAJENO NAPRAVO ZA TISKANJE"]
["8470 29 00",6,"RAČUNSKI STROJI IN SNEMALCI PODATKOV,STROJI ZA REPRODUKCIJO, PRIKAZOVANJE Z RAČUNSKIMI FUNKCIJAMI, KNJIGOVODSKI, FRANKIRNI STROJI,STROJI ZA IZDAJANJE KART, REGISTRIRNE BLAGAJNE","RAČUNSKI STROJI,ELEKTRONSKI, DRUGI"]
["8470 30 00",6,"RAČUNSKI STROJI IN SNEMALCI PODATKOV,STROJI ZA REPRODUKCIJO, PRIKAZOVANJE Z RAČUNSKIMI FUNKCIJAMI, KNJIGOVODSKI, FRANKIRNI STROJI,STROJI ZA IZDAJANJE KART, REGISTRIRNE BLAGAJNE","RAČUNSKI STROJI, DRUGI"]
["8470 50 00",4.5999999999999996,"RAČUNSKI STROJI IN SNEMALCI PODATKOV,STROJI ZA REPRODUKCIJO, PRIKAZOVANJE Z RAČUNSKIMI FUNKCIJAMI, KNJIGOVODSKI, FRANKIRNI STROJI,STROJI ZA IZDAJANJE KART, REGISTRIRNE BLAGAJNE","REGISTRIRNE BLAGAJNE"]
["8470 90 00","4 ali 6","RAČUNSKI STROJI IN SNEMALCI PODATKOV,STROJI ZA REPRODUKCIJO, PRIKAZOVANJE Z RAČUNSKIMI FUNKCIJAMI, KNJIGOVODSKI, FRANKIRNI STROJI,STROJI ZA IZDAJANJE KART, REGISTRIRNE BLAGAJNE","RAČUNSKI STROJI,DRUGI"]
["8471 30 00",2,"RAČUNALNIKI - kpl","STROJI ZA AOP, PRENOSNI, MASE DO VKLJ.10 KG"]
["8471 41 00",6,"RAČUNALNIKI - kpl","STROJI ZA AOP, DRUGI, S CENTRALNO, VHODNO, IZHODNO ENOTO"]
["8471 49 00",6,"RAČUNALNIKI - kpl","STROJI ZA AOP, DRUGI, V OBLIKI SISTEMA"]
["8471 50 00",6,"RAČUNALNIKI - kpl"," PROCESNE ENOTE, POMNILNIKI, VHODNA,IZHODNA ENOTA"]
["8471 60 60",6,"TASTATURE","VHODNE IN IZHODNE ENOTE, TASTATURE"]
["8471 60 70",6,"VHODNE IN IZHODNE ENOTE, DRUGO ","VHODNE IN IZHODNE ENOTE, DRUGO "]
["8471 70 20",6,"CENTRALNI POMNILNIKI","POMNILNE ENOTE, CENTRALNE"]
["8471 70 30",6,"DISKOVNI POMNILNIKI","POMNILNE ENOTE,DISKOVNE, OPTIČNE, VKLJUČNO Z MAGNETNO-OPTIČNIMI"]
["8471 70 50",6,"DISKOVNI POMNILNIKI","POMNILNE ENOTE,DISKOVNE, TRDI DISK"]
["8471 70 70",6,"DISKOVNI POMNILNIKI","POMNILNE ENOTE,DISKOVNE, DRUGE"]
["8471 70 80",6,"DRUGI POMNILNIKI","POMNILNE ENOTE,Z MAGNETNIMI TRAKOVI"]
["8471 70 98",6,"DRUGI POMNILNIKI","POMNILNE ENOTE, DRUGE"]
["8471 80 00",6,"STROJI ZA AOP IN NJIHOVE ENOTE,DRUGE","STROJI ZA AOP IN NJIHOVE ENOTE,DRUGE"]
["8471 90 00",6,"STROJI ZA AOP IN NJIHOVE ENOTE,DRUGO,NEOMENJENO","STROJI ZA AOP IN NJIHOVE ENOTE, DRUGO, NEOMENJENO"]
["8472 10 00",4,"RAZMNOŽEVALNI STROJI","RAZMNOŽEVALNI STROJI"]
["8472 30 00","4 ali 6","AVTOMAT.STROJI ZA ŠTETJE,SORTIRANJE","PISARNIŠKI STROJI,DRUGI, AVTOMAT.STROJI ZA ŠTETJE,SORTIRANJE"]
["8472 90 10","4 ali 6","AVTOMAT.STROJI ZA ŠTETJE,SORTIRANJE","STROJI ZA SORTIRANJE,ŠTETJE, PAKIRANJE KOVANCEV"]
["8472 90 80","4 ali 6","PISARNIŠKI STROJI,DRUGI, DRUGJE NEOMENJENI (BANKOMATI)","PISARNIŠKI STROJI, DRUGI, DRUGJE NEOMENJENI"]
["8473 30 20",5,"ELEKTRONSKI SESTAVI  ZA STROJE IZ TARIF. ŠT. 8471 ","ELEKTRONSKI SESTAVI - PRIBOR ZA STROJE IZ TARIF. ŠT. 8471"]
["8512 30 90",5,"RADAR DETEKTOR","OPREMA ZA ZVOČNO SIGNALIZACIJO, DETEKTOR RADARJEV ZA MOTORNA VOZILA"]
["8517 11 00",6,"TELEFONSKI APARATI","TELEFONSKI APARAT I(TELEFONI), ŽIČNI Z BREZŽIČNO SLUŠALKO"]
["8517 13 00",6,"TELEFONSKI APARATI","PAMETNI TELEFONI"]
["8517 14 00",6,"TELEFONSKI APARATI","DRUGI TELEFONI ZA MOBILNO TELEFONIJO IN DRUGA BREZŽIČNA OMREŽJA"]
[]
["8517 18 00",6,"TELEFONSKI APARATI","TELEFONI, DRUGI"]
["8517 62 00",6,"STROJI ZA SPREJEM, KONVERZIJO IN PRENOS ZVOKA, SLIKE,DRUGIH PODATKOV,VKLJUČNO S STIKALNIMI,USMERJEVALNIMI APARATI","STROJI ZA SPREJEM, KONVERZIJO IN PRENOS ZVOKA, SLIKE,DRUGIH PODATKOV,VKLJUČNO S STIKALNIMI,USMERJEVALNIMI APARATI"]
["8517 69 10",6,"VIDEOFONI","VIDEOFONI"]
["8517 69 20 ",6,"DOMOFONI","DOMOFONSKI SISTEMI"]
["8517 69 30",6,"SPREJEMNIKI ZA RADIOTELEFONIJO ALI RADIOTELEGRAFIJO","APARATI ZA PRENOS ALI SPREJEM GLASU,SLIKE, DRUGIH PODATKOV, DRUGI"]
["8517 69 90",6,"APARATI ZA PRENOS ALI SPREJEM GLASU,SLIKE, DRUGIH PODATKOV, DRUGI","APARATI ZA PRENOS ALI SPREJEM GLASU,SLIKE, DRUGIH PODATKOV, DRUGI"]
["8517 71 00","4 ali 5","ANTENE","DELI DRUGIH APARATOV ZA PRENOS ALI SPREJEM GLASU, SLIKE ALI DRUGIH PODATKOV: ANTENE IN ANTENSKI REFLEKTORJI VSEH VRST; DELI, NAMENJENI ZA UPORABO Z NJIMI"]
["8517 79 00","4 ali 5","ANTENE","DELI NAPRAV ZA TELEKOMUNIKACIJO, DRUGI,ANTENE ZA TELEGRAFSKE IN RADIOTELEFONSKE APARATE"]
[]
["8518 10 00",5,"MIKROFONI","MIKROFONI IN NJIHOVA STOJALA"]
["8518 30 00",6,"NAGLAVNE SLUŠALKE IN UŠESNE SLUŠALKE KOMBINIRANE Z MIKROFONOM ALI NE, IN KOMPLETI, KI SESTOJIJO IZ MIKROFONA IN ENEGA ALI VEČ ZVOČNIKOV","NAGLAVNE SLUŠALKE IN UŠESNE SLUŠALKE, KOMBINIRANE Z MIKROFONOM ALI NE, IN KOMPLETI, KI SESTOJIJO IZ MIKROFONA IN ENEGA ALI VEČ ZVOČNIKOV"]
["8523 51 10",6,"POLPREVODNIŠKI MEDIJI","NEPOSNETI POLPREVODNIŠKI NOSILCI S TRAJNIM POMNJENJEM; npr. USB KLJUČKI"]
["8523 51 90",6,"POLPREVODNIŠKI MEDIJI","POSNETI POLPREVODNIŠKI NOSILCI S TRAJNIM POMNJENJEM; npr. USB KLJUČKI"]
["8523 52 00",6,"PAMETNE KARTICE","RFID ETIKETE, PAMETNE KARTICE"]
["8524 11 00",2,"MODULI Z RAVNIMI PRIKAZOVALNIKI, Z ZASLONI NA DOTIK ALI BREZ (brez gonilnikov ali gonilnih tokokrogov)","MODULI IZ TEKOČIH KRISTALOV"]
["8524 12 00",2,"MODULI Z RAVNIMI PRIKAZOVALNIKI, Z ZASLONI NA DOTIK ALI BREZ (brez gonilnikov ali gonilnih tokokrogov)","MODULI IZ ORGANSKIH SVETLEČIH DIOD (OLED)"]
["8524 19 00",2,"MODULI Z RAVNIMI PRIKAZOVALNIKI, Z ZASLONI NA DOTIK ALI BREZ (brez gonilnikov ali gonilnih tokokrogov)","MODULI, DRUGI"]
["8524 91 00",2,"MODULI Z RAVNIMI PRIKAZOVALNIKI, Z ZASLONI NA DOTIK ALI BREZ, drugi","MODULI IZ TEKOČIH KRISTALOV"]
["8524 92 00",2,"MODULI Z RAVNIMI PRIKAZOVALNIKI, Z ZASLONI NA DOTIK ALI BREZ, drugi","MODULI IZ ORGANSKIH SVETLEČIH DIOD (OLED)"]
["8524 99 00",2,"MODULI Z RAVNIMI PRIKAZOVALNIKI, Z ZASLONI NA DOTIK ALI BREZ, drugi","MODULI, DRUGI"]
["8525 50 00",5,"ODDAJNIKI","ODDAJNIKI "]
["8525 60 00",5,"ODDAJNIKI","ODDAJNIKI Z VDELANIM SPREJEMNIKOM, DRUGI, OSTALI"]
["8526 91 20",6,"GPS NAPRAVE","RADIONAVIGACIJSKI SPREJEMNIKI"]
["8528 42 00",2,"MONITORJI","MONITORJI S KATODNO CEVJO, KI JIH JE MOŽNO NEPOSREDNO PRIKLJUČITI NA STROJE ZA AVTOMATSKO OBDELAVO PODATKOV IZ TŠ 8471 IN KI SO ZASNOVANI ZA UPORABO S TEMI STROJI"]
["8528 49 00",2,"MONITORJI","MONITORJI, S KATODNO CEVJO, DRUGI"]
["8528 52 10",2,"MONITORJI","DRUGI MONITORJI, NAMENJENI SAMO ALI ZLASTI ZA UPORABO V STROJU ZA AOP IZ TŠ 8471"]
["8528 52 91",2,"MONITORJI","DRUGI LCD MONITORJI, KI JIH JE MOGOČE NEPOSREDNO PRIKLJUČITI NA STROJE ZA AOP IZ TŠ 8471 IN KI SO ZASNOVANI ZA UPORABO S TEMI STROJI"]
["8528 52 99",2,"MONITORJI","DRUGI MONITORJI, KI JIH JE MOGOČE NEPOSREDNO PRIKLJUČITI NA STROJE ZA AOP IZ TŠ 8471 IN KI SO ZASNOVANI ZA UPORABO S TEMI STROJI"]
["8528 59 00",2,"MONITORJI","DRUGI MONITORJI"]
["8543 70 02",5,"DRUGI STROJI IN APARATI","MIKROVALOVNI OJAČEVALNIK"]
["8543 70 10",6,"ELEKTRIČNI STROJI ZA PREVAJANJE ALI STROJI S FUNCKIJO SLOVARJA","ELEKTRIČNI STROJI ZA PREVAJANJE ALI STROJI S FUNCKIJO SLOVARJA"]
["9017 10 10",4,"RISALNE MIZE IN APARATI","RISALNIKI (PLOTTERJI)"]
["9017 10 90",4,"RISALNE MIZE IN APARATI","RISALNE MIZE IN APARATI, TUDI AVTOMATSKI,DRUGI"]
["9017 20 05",4,"DRUGI INSTRUMENTI ZA RISANJE,OZNAČEVANJE IPD.,)","PLOTTERJI"]
["9017 20 10",4,"RISALNI INSTRUMENTI, DRUGI","INSTRUMENTI ZA RISANJE,OZNAČEVANJE IPD., DRUGI"]
["9017 20 39","4 ali 5","RISALNI INSTRUMENTI, DRUGI","INSTRUMENTI ZA RISANJE,OZNAČEVANJE IPD., OZNAČEVALNI INSTRUMENTI, DRUGI"]
["8518 21 00","4 ali 5","ZVOČNIKI","ZVOČNIKI V ZVOČNIH OMARICAH,Z ENIM ZVOČNIKOM, DRUGI"]
["8518 22 00","4 ali 5","ZVOČNIKI","ZVOČNIKI V ZVOČNIH OMARICAH, Z VEČ ZVOČNIKI, DRUGI"]
["8518 29 00","4 ali 5","ZVOČNIKI","ZVOČNIKI,VKLJUČNO Z  ZVOČNIKIH V ZVOČNIH OHIŠJIH, DRUGI"]
["8518 40 00",5,"OJAČEVALNIKI","AVDIOFREKVENČNI ELEKTRIČNI OJAČEVALNIKI"]
["8518 50 00",5,"ELEKTRIČNI SESTAVI ZA OJAČEVANJE ZVOKA","KOMPLETNE ELEKTRIČNE ENOTE ZA OJAČEVANJE ZVOKA"]
["8519 20 10",4,"GRAMOFONI","GRAMOFONI, KI SE VKLOPIJO S KOVANCEM,BANKOVCEM,KARTICO,ŽETONOM ALI DRUGIM PLAČILNIM SREDSTVOM"]
["8519 20 91","4 ali 5","GRAMOFONI","GRAMOFONI, ZA LASERSKO OPTIČNI ZAPIS"]
["8519 20 99","4 ali 5","GRAMOFONI","GRAMOFONI, DRUGI"]
["8519 30 00","4 ali 5","GRAMOFONI","GRAMOFONI, DRUGI, BREZ OJAČEVALNIKA"]
["8519 81 00",5,"DRUGI APARATI ZA SNEMANJE ALI REPRODUKCIJO ZVOKA","DRUGI APARATI ZA SNEMANJE ALI REPRODUKCIJO ZVOKA Z UPORABO MAGNETNEGA, OPTIČNEGA ALI POLPREVODNIŠKEGA MEDIJA"]
["8519 89 00",5,"DRUGI APARATI ZA SNEMANJE ALI REPRODUKCIJO ZVOKA","DRUGI APARATI ZA SNEMANJE ALI REPRODUKCIJO ZVOKA, KI NE UPORABLJAJO MAGNETNEGA, OPTIČNEGA ALI POLPREVODNIŠKEGA MEDIJA"]
["8521 10 20",5,"APARATI ZA SNEMANJE ALI REPRODUKCIJO SLIKE","APARATI ZA SNEMANJE, REPRODUKCIJO SLIKE, Z MAGNETNIM TRAKOM,ŠIRINE DO 1,3 CM, SNEMANJE PRI HITROSTI 50 MM/SEK"]
["8521 10 95",5,"APARATI ZA SNEMANJE ALI REPRODUKCIJO SLIKE","APARATI ZA SNEMANJE, REPRODUKCIJO SLIKE, Z MAGNETNIM TRAKOM, DRUGI NEOMENJENI"]
["8521 90 00",5,"APARATI ZA SNEMANJE","APARATI ZA SNEMANJE, REPRODUKCIJO SLIKE, DRUGI"]
["8525 81 00","4 ali 5","TV KAMERE, DIGITALNI FOTOAPARATI IN VIDEO SNEMALNE KAMERE","VISOKOHITROSTNE TELEVIZIJSKE KAMERE, DIGITALNE FOTOAPARATE IN VIDEO SNEMALNE KAMERE Z ENO ALI VEČ NASLEDNJIH ZNAČILNOSTI: – HITROST ZAPISA VEČ KOT 0,5 MM NA MIKROSEKUNDO, – ČASOVNA RESOLUCIJA 50 NANOSEKUND ALI MANJ, – VZORČEVALNI ČAS SLIKE VEČ KOT 225 000 SLIK NA SEKUNDO."]
["8525 82 00","4 ali 5","TV KAMERE, DIGITALNI FOTOAPARATI IN VIDEO SNEMALNE KAMERE","RADIACIJSKO UTRJENE ALI RADIACIJSKO VZDRŽNE TELEVIZIJSKE KAMERE, DIGITALNI FOTOAPARATI IN VIDEO SNEMALNE KAMERE ZASNOVANE ALI ZAŠČITENE TAKO, DA OMOGOČAJO DELOVANJE V OKOLJU Z VISOKIM SEVANJEM. TE KAMERE SO ZASNOVANE TAKO, DA VZDRŽIJO SKUPNO DOZO SEVANJA VSAJ 50 × 103 Gy (SILICIJ) (5 × 106 RAD (SILICIJ)), NE DA BI TO VPLIVALO NA NJIHOVO DELOVANJE."]
["8525 83 00","4 ali 5","TV KAMERE, DIGITALNI FOTOAPARATI IN VIDEO SNEMALNE KAMERE","NOČNE TELEVIZIJSKE KAMERE, DIGITALNE FOTOAPARATE IN VIDEO SNEMALNE KAMERE, KI UPORABLJAJO FOTOKATODO ZA PRETVARJANJE RAZPOLOŽLJIVE SVETLOBE V ELEKTRONE, KI SE LAHKO OJAČAJO IN PRETVORIJO V VIDNO SLIKO. TA TAR. PODŠT. IZKLJUČUJE KAMERE ZA TOPLOTNO SLIKOVNO SNEMANJE IN OBDELAVO (OBIČAJNO TAR. PODŠT. 8525 89)."]
["8525 89 00","4 ali 5","TV KAMERE, DIGITALNI FOTOAPARATI IN VIDEO SNEMALNE KAMERE","DRUGO"]
["8806 21 10",5,"DRONI, SAMO ZA DALJINSKO VODENE POLETE","Z NAJVEČJO VZLETNO MASO NAJVEČ 250 g - Z VEČ ROTORJI, OPREMLJENI S TRAJNO VGRAJENIMI APARATI IZ TARIFNE PODŠTEVILKE 8525 89 ZA SNEMANJE IN SHRANJEVANJE VIDEO POSNETKOV IN MIRUJOČIH SLIK"]
["8806 22 10","4 ali 5","DRONI, SAMO ZA DALJINSKO VODENE POLETE","Z NAJVEČJO VZLETNO MASO VEČ KOT 250 g, VENDAR NE VEČ KOT 7 kg - Z VEČ ROTORJI, OPREMLJENI S TRAJNO VGRAJENIMI APARATI IZ TARIFNE PODŠTEVILKE 8525 89 ZA SNEMANJE IN SHRANJEVANJE VIDEO POSNETKOV IN MIRUJOČIH SLIK"]
["8526 92 00",5,"APARATI ZA DALJINSKO KRMILJENJE","NAPRAVE ZA RADIJSKO DALJINSKO KRMILJENJE, DRUGE"]
["8527 12 00",5,"RADIO KASETOFONI","RADIODIF.SPREJMNIKI, ŽEPNE VELIKOSTI, KI LAHKO DELUJEJO BREZ ZUNANJEGA VIRA ENERGIJE"]
["8527 13 00",5,"RADIO KASETOFONI","RADIODIF. SPREJEMNIKI KOMBINIRANI Z APARATOM ZA SNEMANJE ALI REPRODUKCIJO ZVOKA, KI LAHKO DELUJEJO BREZ ZUNANJEGA VIRA ENERGIJE"]
["8527 19 00",5,"RADIJSKI APARATI","RADIODIF.SPREJMNIKI, BREZ ZUNANJEGA VIRA ENERGIJE, DRUGI"]
["8527 21 20",5,"RADIJSKI APARATI","RADIODIF.SPREJEMNIKI, Z ZUNANJIM VIROM ENERGIJE, KOMBINIRANI, MOŽNO SPREJEMANJE, DEKODIRANJE, DIGIT.RDS, ZA LASERSKI OPTIČNI .ZAPIS"]
["8527 21 52",5,"RADIJSKI APARATI","RADIODIF.SPREJEMNIKI, Z ZUNANJIM VIROM ENERGIJE, KOMBINIRANI, MOŽNO SPREJEMANJE, DEKODIRANJE, DIGITALNEGA RDS, KASETNE IZVEDBE"]
["8527 21 59",5,"RADIJSKI APARATI","RADIODIF.SPREJEMNIKI, Z ZUNANJIM VIROM ENERGIJE, KOMBINIRANI, MOŽNO SPREJEMANJE, DEKODIRANJE, DIGITALNI RDS, DRUGI"]
["8527 21 70",5,"RADIJSKI APARATI","RADIODIF.SPREJEMNIKI, Z ZUNANJIM VIROM ENERGIJE, KOMBINIRANI, DRUGI, ZA LASERSKO OPTIČNI ZAPIS"]
["8527 21 92",5,"RADIJSKI APARATI","RADIODIF.SPREJEMNIKI, Z ZUNANJIM VIROM ENERGIJE, KOMBINIRANI, DRUGI, KASETNE IZVEDBE ZA ANALOGNI IN DIGITALNI ZAPIS"]
["8527 21 98",5,"RADIJSKI APARATI","RADIODIF.SPREJEMNIKI, Z ZUNANJIM VIROM ENERGIJE, KOMBINIRANI, DRUGI, OSTALI"]
["8527 29 00",5,"RADIJSKI APARATI","RADIODIF.SPREJEMNIKI, Z ZUNANJIM VIROM ENERGIJE, DRUGI"]
["8527 91 00",5,"RADIJSKI APARATI","RADIODIF. SPREJEMNIKI KOMBINIRANI Z APARATOM ZA SNEMANJE ALI REPRODUKCIJO ZVOKA"]
["8527 92 00",5,"RADIJSKI APARATI KOMBINIRANI Z URO","RADIODIF. SPREJEMNIKI NEKOMBINIRANI Z APARATOM ZA SNEMANJE ALI REPRODUKCIJO ZVOKA, VENDAR KOMBINIRANI Z URO"]
["8527 99 00",5,"RADIJSKI APARATI","RADIOFUZNI SPREJEMNIKI BREZ URE IN APARATA ZA SNEMANJE ALI REPRODUKCIJO ZVOKA"]
["8528 62 00",5,"PROJEKTORJI","PROJEKTORJI, KI JIH JE MOGOČE NEPOSREDNO PRIKLJUČITI NA STROJE ZA AOP IZ TŠ 8471 IN KI SO ZASNOVANI ZA UPORABO S TEMI STROJI"]
["8528 69 20",5,"PROJEKTORJI","DRUGI PROJEKTORJI, ENOBARVNI"]
["8528 69 80",5,"PROJEKTORJI","DRUGI PROJEKTORJI, VEČBARVNI"]
["8528 71 11",5,"TV SPREJEMNIKI","VIDEO TUNERJI,ELEKTRONSKI SKLOPI ZA VGRADNJO V STROJE ZA AOP"]
["8528 71 15",5,"TV SPREJEMNIKI","\"SET-TOP\" NAPRAVE Z VIDEO-TUNERJEM, Z MOŽNOSTJO DOSTOPA DO INTERNETA, Z ALI BREZ VGRAJENE NAPRAVE ZA SNEMANJE ALI REPRODUKCIJO (ČE ZARADI TEGA NE IZGUBIJO BISTVENEGA ZNAČAJA TV KOMUNIKATORJA)"]
["8528 71 19",5,"TV SPREJEMNIKI","VIDEO TUNERJI,DRUGI"]
["8528 71 91",5,"TV SPREJEMNIKI","\"SET-TOP\" NAPRAVE BREZ  VIDEO-TUNERJA, Z MOŽNOSTJO DOSTOPA DO INTERNETA, Z ALI BREZ VGRAJENE NAPRAVE ZA SNEMANJE ALI REPRODUKCIJO (ČE ZARADI TEGA NE IZGUBIJO BISTVENEGA ZNAČAJA TV KOMUNIKATORJA)"]
["8528 71 99","4 ali 5","TV SPREJEMNIKI","DRUGI TV SPREJEMNIKI, KI NISO NAMENJENI ZA VGRADNJO VIDEO PRIKAZOVALNKA ALI ZASLONA"]
["8528 72 10",2,"BARVNI TV SPREJEMNIKI","TV SPREJEMNIKI, BARVNI, TV PROJEKCIJSKA OPREMA"]
["8528 72 20",2,"BARVNI TV SPREJEMNIKI","TV SPREJEM.,BARVNI, VSEBUJEJO VIDEO SNEMALNE ALI REPROD. ENOTE"]
["8528 72 30",2,"BARVNI TV SPREJEMNIKI","TV SPREJEM.,BARVNI,S KATODNO CEVJO,DRUGI, "]
["8528 72 40",2,"BARVNI TV SPREJEMNIKI","TV SPREJEM.,BARVNI, Z ZASLONOM S TEKOČIMI KRISTALI"]
["8528 72 60",2,"BARVNI TV SPREJEMNIKI","TV SPREJEM.,BARVNI, Z ZASLONOM S PLAZEMSKIM PRIKAZOVALNIKOM"]
["8528 72 80",2,"BARVNI TV SPREJEMNIKI","TV SPREJEM., BARVNI,DRUGI"]
["8528 73 00",2,"ČRNO-BELI TV SPREJEMNIKI","TV SPREJEMNIKI, ČRNO-BELI IN DRUGI ENOBARVNI"]
["8529 10 30","4 ALI 5","ANTENE","DELI NAPRAV ZA TELEKOMUNIKACIJO, ANTENE IN ANTENSKI RAFLEKTORJI VSEH VRST, ZUNANJE ANTENE ZA RADIJSKE ALI TV OMREŽNE SPREJEMNIKE"]
["8529 10 65",5,"ANTENE","DELI NAPRAV ZA TELEKOMUNIKACIJO, ANTENE IN ANTENSKI RAFLEKTORJI VSEH VRST, NOTRANJE (SOBNE) ANTENE ZA RADIJSKE ALI TV OMREŽNE SPREJEMNIKE"]
["8529 10 69","4 ali 5","ANTENE","ANTENE,DRUGE"]
["8531 20 20 ","4 ali 5","LED INDIKATORSKE PLOŠČE","INDIKATORSKE PLOŠČE S SVETLEČIMI DIODAMI (LED)"]
["8531 20 40","4 ali 5","LCD INDIKATORSKE PLOŠČE","LCD INDIKATORSKE PLOŠČE Z AKTIVNIMI MATRIČNIMI SKLOPI S TEKOČIMI KRISTALI"]
["8531 80 40 ",5,"ZVONCI IN BRENČALA, ZVONCI ZA VRATA IN PODOBNO","ELEKTRIČNI ZVONCI, BRENČALA, ZVONCI ZA VRATA IN PODOBNO"]
["8541 42 00","4 ali 5","FOTOOBČUTLJIVI POLPREVODNIŠKI ELEMENTI, FOTONAPETOSTNE CELICE","FOTONAPETOSTNE CELICE, KI NISO SESTAVLJENE V MODULE ALI PLOŠČE"]
["8541 43 00",4,"FOTOOBČUTLJIVI POLPREVODNIŠKI ELEMENTI, FOTONAPETOSTNE CELICE","FOTONAPETOSTNE CELICE, SESTAVLJENE V MODULE ALI PLOŠČE"]
["8541 49 00","4 ali 5","FOTOOBČUTLJIVI POLPREVODNIŠKI ELEMENTI, FOTONAPETOSTNE CELICE","DRUGI"]
["8543 70 30",5,"ANTENSKI OJAČEVALNIKI","ANTENSKI OJAČEVALNIKI"]
["8543 70 01",5,"DRUGI STROJI IN APARATI","IZDELKI, KI SO ZASNOVANI POSEBEJ ZA POVEZOVANJE S TELEGRAFSKIMI IN TELEFONSKIMI APARATI ALI INSTRUMENTI OZIROMA TELEGRAFSKIMI ALI TELEFONSKIMI OMREŽJI"]
["8543 70 05",5,"DRUGI STROJI IN APARATI","PRENOSNI ELEKTRONSKI BRALNIK NA BATERIJE ZA SNEMANJE IN REPRODUKCIJO BESEDIL, SLIK ALI ZVOČNIH POSNETKOV"]
["8543 70 06",5,"DRUGI STROJI IN APARATI","APARAT ZA OBDELAVO DIGITALNEGA SIGNALA ZA MEŠANJE ZVOKA, KI SE LAHKO POVEŽE NA ŽIČNO ALI BREZŽIČNO OMREŽJE"]
["8543 70 07",5,"DRUGI STROJI IN APARATI","PRENOSNE INTERAKTIVNE ELEKTRONSKE NAPRAVE ZA IZOBRAŽEVANJE, ZASNOVANE PREDVSEM ZA OTROKE"]
["8543 40 00",5,"ELEKTRONSKE CIGARETE","ELEKTRONSKE CIGARETE IN PODOBNI ELEKTRIČNI UPARJALNIKI ZA OSEBNO RABO (VEJPI)"]
["8543 70 90","4 ali 5","EL. APARATI S POSEBNIMI FUNKCIJAMI, DRUGI STROJI IN APARATI","EL. APARATI S POSEBNIMI FUNKCIJAMI, DRUGI STROJI IN APARATI"]
[]
["9006 30 00",5,"FOTOAPARATI","APARATI, KONSTRUIRANI ZA SNEMANJE POD VODO"]
["9006 40 00",5,"FOTOAPARATI","FOTOAPARATI,ZA HITRO FOTOGRAFIJO"]
["9006 53 10",5,"FOTOAPARATI","FOTOAPARATI, DRUGI, ZA FILM V ZVITKU,ŠIRINE 35 MM, KAMERE ZA ENKRATNO UPORABO"]
["9006 53 80",5,"FOTOAPARATI","FOTOAPARATI, DRUGI, ZA FILM V ZVITKU,ŠIRINE 35 MM, DRUGE"]
["9006 59 00",5,"FOTOAPARATI","FOTOAPARATI, DRUGI"]
["9006 61 00",5,"FOTOAPARATI","FOTOGRAFSKI BLISKOVNI APARATI, ŽARNICE, BLISKOVNI APARATI Z ŽARNICAMI NA RAZELEKTRENJE"]
["9006 69 00",5,"FOTOAPARATI","FOTOGRAFSKI BLISKOVNI APARATI, DRUGI"]
["9007 10 00",5,"KAMERE","KAMERE"]
["9007 20 00",5,"PROJEKTORJI","PROJEKTORJI"]
["9008 50 00",5,"PROJEKTORJI IN APARATI ZA POVEČEVANJE IN POMANJŠEVANJE","PROJEKTORJI SLIK, RAZEN KINEMATOGRAFSKIH; FOTOGRAFSKI APARATI ZA POVEČEVANJE IN POMANJŠEVANJE"]
["9010 10 00","4 ali 5","RAZVIJALCI FOOTOGR.FILMOV","APARATI IN OPREMA ZA AVTOMATSKO RAZVIJANJE FOTOGRAFSKEGA FILMA"]
["9010 50 00",4.5,"APARATI IN OPREMA ZA FOTOGRAFSKE LABORATORIJE","APARATI, OPREMA ZA FOTOGRAFSKE (KINEMATOGRAFSKE) LABORATORIJE, NEGATOSKOPI, DRUGI"]
["9010 60 00",4,"ZASLONI ZA PROJEKCIJE","ZASLONI ZA PROJEKCIJE, OPREMLJENI Z ELEKTRIČNIMI POGONI."]
["9013 20 00",5,"KAZALNIK","LASERSKI KAZALNIKI"]
["9207 10 10","4 ali 5","ELEKTRIČNE ORGLE","ELEKTRIČNI KLAVIATURNI INŠTRUMENTI, ORGLE"]
["9207 10 30","4 ali 5","DIGITALNI KLAVIRJI","ELEKTRIČNI KLAVIATURNI INŠTRUMENTI, DIGITALNI KLAVIRJI"]
["9207 10 50","4 ali 5","SINTETIZATORJI","ELEKTRIČNI KLAVIATURNI INŠTRUMENTI, BSINTETIZATORJI"]
["9207 10 80","4 ali 5","ELEKTRIČNE KLAVIATURE","ELEKTRIČNI KLAVIATURNI INŠTRUMENTI, DRUGA"]
["9207 90 10",4,"ELEKTRIČNE KITARE","ELEKTRIČNA GLASBILA,DRUGA, KITARE"]
["9207 90 90",5,"DRUGA ELEKTRIČNA GLASBILA","ELEKTRIČNA GLASBILA,DRUGA, OSTALA"]
["9209 99 40",5,"METRONOMI ","METRONOMI, NAPRAVE ZA DAJANJE TONA, UGLAŠEVALCI"]
["8539 31 10",3,"SIJALKE NA RAZELEKTRENJE","FLUORESCENČNE SIJALKE S TERMOKATODO,Z DVOJNIM PODNOŽJEM"]
["8539 31 90",3,"SIJALKE NA RAZELEKTRENJE","FLUORESCENČNE SIJALKE S TERMOKATODO,DRUGE"]
["8539 32 20",3,"SIJALKE NA RAZELEKTRENJE","SIJALKE, NAPOLNJENE S PARAMI ŽIVEGA SREBRA ALI NATRIJA"]
["8539 32 90",3,"SIJALKE NA RAZELEKTRENJE","SIJALKE, KOVINSKO-HALOGENSKE"]
["8539 41 00",3,"SIJALKE NA RAZELEKTRENJE","OBLOČNICE"]
["8539 49 00",3,"SIJALKE NA RAZELEKTRENJE","DRUGE (ULTRAVIJOLIČNE IN INFRARDEČE) ŽARNICE"]
["8539 51 00",3,"MODULI S SVETLEČIMI DIODAMI (LED)","SVETLOBNI VIRI S SVETLEČIMI DIODAMI (LED)"]
["8539 52 00",3,"SIJALKE S SVETLEČIMI DIODAMI (LED)","SVETLOBNI VIRI S SVETLEČIMI DIODAMI (LED)"]
["8512 10 00",5,"KOLESARSKE SVETILKE","OPREMA ZA RAZSVETLJAVO IN VIZUALNO SIGNALIZACIJO ZA DVOKOLESA"]
["8513 10 00",5,"PRENOSNE SVETILKE","PRENOSNE ELEKTRIČNE SVETILKE Z LASTNIM VIROM ENERGIJE"]
["9405 11 40","4 ali 5","STROPNE ALI STENSKE SVETILKE","LESTENCI IN DRUGE ELEKTRIČNE STROPNE ALI STENSKE SVETILKE, RAZEN ZA RAZSVETLJAVO JAVNIH ODPRTIH PROSTOROV ALI PROMETNIH POTI, ZASNOVANI ZA UPORABO SAMO Z LED SVETLOBNIMI VIRI, IZ PLASTIČNIH MAS ALI IZ KERAMIČNIH SNOVI"]
["9405 11 50","4 ali 5","STROPNE ALI STENSKE SVETILKE","LESTENCI IN DRUGE ELEKTRIČNE STROPNE ALI STENSKE SVETILKE, RAZEN ZA RAZSVETLJAVO JAVNIH ODPRTIH PROSTOROV ALI PROMETNIH POTI, ZASNOVANI ZA UPORABO SAMO Z LED SVETLOBNIMI VIRI, STEKLENI"]
["9405 11 90","4 ali 5","STROPNE ALI STENSKE SVETILKE","LESTENCI IN DRUGE ELEKTRIČNE STROPNE ALI STENSKE SVETILKE, RAZEN ZA RAZSVETLJAVO JAVNIH ODPRTIH PROSTOROV ALI PROMETNIH POTI, ZASNOVANI ZA UPORABO SAMO Z LED SVETLOBNIMI VIRI, IZ DRUGIH MATERIALOV"]
["9405 19 40","4 ali 5","STROPNE ALI STENSKE SVETILKE","LESTENCI IN DRUGE ELEKTRIČNE STROPNE ALI STENSKE SVETILKE, RAZEN ZA RAZSVETLJAVO JAVNIH ODPRTIH PROSTOROV ALI PROMETNIH POTI, IZ PLASTIČNIH MAS ALI IZ KERAMIČNIH SNOVI"]
["9405 19 50","4 ali 5","STROPNE ALI STENSKE SVETILKE","LESTENCI IN DRUGE ELEKTRIČNE STROPNE ALI STENSKE SVETILKE, RAZEN ZA RAZSVETLJAVO JAVNIH ODPRTIH PROSTOROV ALI PROMETNIH POTI, STEKLENI"]
["9405 19 90","4 ali 5","STROPNE ALI STENSKE SVETILKE","LESTENCI IN DRUGE ELEKTRIČNE STROPNE ALI STENSKE SVETILKE, RAZEN ZA RAZSVETLJAVO JAVNIH ODPRTIH PROSTOROV ALI PROMETNIH POTI,  IZ DRUGIH MATERIALOV"]
["9405 21 40",5,"SVETILKE, KI SE POSTAVIJO NA MIZO, OB POSTELJO ALI NA TLA","ELEKTRIČNE SVETILKE, KI SE POSTAVIJO NA MIZO, OB POSTELJO ALI NA TLA, ZASNOVANE ZA UPORABO SAMO Z LED SVETLOBNIMI VIRI, IZ PLASTIČNIH MAS ALI IZ KERAMIČNIH SNOVI"]
["9405 21 50",5,"SVETILKE, KI SE POSTAVIJO NA MIZO, OB POSTELJO ALI NA TLA","ELEKTRIČNE SVETILKE, KI SE POSTAVIJO NA MIZO, OB POSTELJO ALI NA TLA, ZASNOVANE ZA UPORABO SAMO Z LED SVETLOBNIMI VIRI, STEKLENE"]
["9405 21 90",5,"SVETILKE, KI SE POSTAVIJO NA MIZO, OB POSTELJO ALI NA TLA","ELEKTRIČNE SVETILKE, KI SE POSTAVIJO NA MIZO, OB POSTELJO ALI NA TLA, ZASNOVANE ZA UPORABO SAMO Z LED SVETLOBNIMI VIRI, IZ DRUGIH MATERIALOV"]
["9405 29 40",5,"SVETILKE, KI SE POSTAVIJO NA MIZO, OB POSTELJO ALI NA TLA","ELEKTRIČNE SVETILKE, KI SE POSTAVIJO NA MIZO, OB POSTELJO ALI NA TLA, IZ PLASTIČNIH MAS ALI IZ KERAMIČNIH SNOVI"]
["9405 29 50",5,"SVETILKE, KI SE POSTAVIJO NA MIZO, OB POSTELJO ALI NA TLA","ELEKTRIČNE SVETILKE, KI SE POSTAVIJO NA MIZO, OB POSTELJO ALI NA TLA,STEKLENE"]
["9405 29 90",5,"SVETILKE, KI SE POSTAVIJO NA MIZO, OB POSTELJO ALI NA TLA","ELEKTRIČNE SVETILKE, KI SE POSTAVIJO NA MIZO, OB POSTELJO ALI NA TLA, IZ DRUGIH MATERIALOV"]
["9405 31 00",5,"SVETLOBNE VERIGE ZA RAZSVETLJAVO BOŽIČNIH DREVESC","SVETLOBNE VERIGE ZASNOVANE ZA UPORABO SAMO Z LED SVETLOBNIMI VIRI"]
["9405 39 00",5,"SVETLOBNE VERIGE ZA RAZSVETLJAVO BOŽIČNIH DREVESC","DRUGE SVETLOBNE VERIGE "]
["9405 41 10","4 ali 5","DRUGE ELEKTRIČNE SVETILKE","FOTONAPETOSTNE ELEKTRIČNE SVETILKE, ZASNOVANE ZA UPORABO SAMO Z LED SVETLOBNIMI VIRI, REFLEKTORJI IN ŽAROMETI"]
["9405 41 31","4 ali 5","DRUGE ELEKTRIČNE SVETILKE","FOTONAPETOSTNE ELEKTRIČNE SVETILKE, ZASNOVANE ZA UPORABO SAMO Z LED SVETLOBNIMI VIRI, IZ PLASTIČNIH MATERIALOV"]
["9405 41 39","4 ali 5","DRUGE ELEKTRIČNE SVETILKE","FOTONAPETOSTNE ELEKTRIČNE SVETILKE, ZASNOVANE ZA UPORABO SAMO Z LED SVETLOBNIMI VIRI, DRUGE"]
["9405 42 10","4 ali 5","DRUGE ELEKTRIČNE SVETILKE","DRUGE ELEKTRIČNE SVETILKE, ZASNOVANE ZA UPORABO SAMO Z LED SVETLOBNIMI VIRI, REFLEKTORJI IN ŽAROMETI"]
["9405 42 31","4 ali 5","DRUGE ELEKTRIČNE SVETILKE","DRUGE ELEKTRIČNE SVETILKE, ZASNOVANE ZA UPORABO SAMO Z LED SVETLOBNIMI VIRI, IZ PLASTIČNIH MATERIALOV"]
["9405 42 39","4 ali 5","DRUGE ELEKTRIČNE SVETILKE","DRUGE ELEKTRIČNE SVETILKE, ZASNOVANE ZA UPORABO SAMO Z LED SVETLOBNIMI VIRI, DRUGE"]
["9405 49 10","4 ali 5","DRUGE ELEKTRIČNE SVETILKE","DRUGE ELEKTRIČNE SVETILKE, REFLEKTORJI IN ŽAROMETI"]
["9405 49 40","4 ali 5","DRUGE ELEKTRIČNE SVETILKE","DRUGE ELEKTRIČNE SVETILKE, IZ PLASTIČNIH MATERIALOV"]
["9405 49 90","4 ali 5","DRUGE ELEKTRIČNE SVETILKE","DRUGE ELEKTRIČNE SVETILKE, IZ DRUGIH MATERIALOV"]
["9405 61 20","4 ali 5","OSVETLJENI ZNAKI, OSVETLJENE PLOŠČE Z IMENI IN PODOBNO","OSVETLJENI ZNAKI, PLOŠČE, ZASNOVANI ZA UPORABO SAMO Z LED SVETLOBNIMI VIRI, IZ PLASTIČNIH MAS"]
["9405 61 80","4 ali 5","OSVETLJENI ZNAKI, OSVETLJENE PLOŠČE Z IMENI IN PODOBNO","OSVETLJENI ZNAKI, PLOŠČE IZ PLASTIČNIH MAS"]
["9405 69 20","4 ali 5","OSVETLJENI ZNAKI, OSVETLJENE PLOŠČE Z IMENI IN PODOBNO","OSVETLJENI ZNAKI, PLOŠČE, ZASNOVANI ZA UPORABO SAMO Z LED SVETLOBNIMI VIRI, IZ DRUGIH MATERIALOV"]
["9405 69 80","4 ali 5","OSVETLJENI ZNAKI, OSVETLJENE PLOŠČE Z IMENI IN PODOBNO","OSVETLJENI ZNAKI, PLOŠČE, IZ DRUGIH MATERIALOV"]
["8413 19 00",5,"ČRPALKE","ČRPALKE Z MERILNIMI NAPRAVAMI, DRUGE,NEOMENJENE"]
["8424 30 01","4 ali 5","VODNE ČISTILNE NAPRAVE, Z GRELNO NAPRAVO","STROJI ZA BRIZGANJE PARE ALI PESKA IN PODOBNI STROJI ZA BRIZGANJE S CURKOM"]
["8424 30 08","4 ali 5","VODNE ČISTILNE NAPRAVE, DRUGE","STROJI ZA BRIZGANJE PARE ALI PESKA IN PODOBNI STROJI ZA BRIZGANJE S CURKOM"]
["8433 11 10",4,"KOSILNICE, ELEKTRIČNE","KOSILNICE ZA TRAVO, Z REZALNO NAPRAVO VRTLJIVO VODORAVNO, ELEKTRIČNE"]
["8433 19 10",4,"KOSILNICE, ELEKTRIČNE","KOSILNICE ZA TRAVO, DRUGE, MOTORNE, ELEKTRIČNE"]
["8452 21 00","4 ali 5","ŠIVALNI STROJI","ŠIVALNI STROJI,DRUGI, SPECIALNI AVTOMATI"]
["8452 29 00","4 ali 5","ŠIVALNI STROJI","ŠIVALNI STROJI, DRUGI,OSTALI"]
["8458 19 00",4,"STRUŽNICE (RAZEN VELIKEGA NEPREMIČNEGA INDUSTRIJSKEGA ORODJA)","HORIZONTALNE STRUŽNICE"]
["8458 99 00",4,"STRUŽNICE (RAZEN VELIKEGA NEPREMIČNEGA INDUSTRIJSKEGA ORODJA)","DRUGE STRUŽNICE"]
["8459 10 00",4,"STROJI ZA OBDELAVO KOVIN Z ODVZEMANJEM MATERIALA   (RAZEN VELIKEGA NEPREMIČNEGA INDUSTRIJSKEGA ORODJA)","STROJI Z OBDELOVALNIMI ENOTAMI NA VODILIH"]
["8459 29 00",4,"STROJI ZA OBDELAVO KOVIN Z ODVZEMANJEM MATERIALA   (RAZEN VELIKEGA NEPREMIČNEGA INDUSTRIJSKEGA ORODJA)"," STROJI ZA VRTANJE S SVEDROM"]
["8459 39 00",4,"STROJI ZA OBDELAVO KOVIN Z ODVZEMANJEM MATERIALA   (RAZEN VELIKEGA NEPREMIČNEGA INDUSTRIJSKEGA ORODJA)","KOMBINIRANI STROJI ZA OBDELAVO ODPRTIN Z VRTANJEM IN REZKANJEM"]
["8459 49 00",4,"STROJI ZA OBDELAVO KOVIN Z ODVZEMANJEM MATERIALA   (RAZEN VELIKEGA NEPREMIČNEGA INDUSTRIJSKEGA ORODJA)","STROJI ZA POVEČEVANJE ODPRTIN "]
["8459 59 00",4,"STROJI ZA OBDELAVO KOVIN Z ODVZEMANJEM MATERIALA   (RAZEN VELIKEGA NEPREMIČNEGA INDUSTRIJSKEGA ORODJA)","KONZOLNI REZKALNI STROJI"]
["8459 69 90",4,"STROJI ZA OBDELAVO KOVIN Z ODVZEMANJEM MATERIALA   (RAZEN VELIKEGA NEPREMIČNEGA INDUSTRIJSKEGA ORODJA)","DRUGI REZKALNI STROJI"]
["8459 70 00",4,"STROJI ZA OBDELAVO KOVIN Z ODVZEMANJEM MATERIALA   (RAZEN VELIKEGA NEPREMIČNEGA INDUSTRIJSKEGA ORODJA)","STROJI ZA VREZOVANJE ALI NAREZOVANJE NAVOJEV"]
["8460 39 00",4,"OBDELOVALNI STROJI ZA OBDELAVO KOVIN, SINTRANIH KOVINSKIH KARBIDOV ALI KERMETOV  (RAZEN VELIKEGA NEPREMIČNEGA INDUSTRIJSKEGA ORODJA)","STROJI ZA OSTRENJE ORODIJ ALI REZIL"]
["8460 90 00",4,"OBDELOVALNI STROJI ZA OBDELAVO KOVIN, SINTRANIH KOVINSKIH KARBIDOV ALI KERMETOV   (RAZEN VELIKEGA NEPREMIČNEGA INDUSTRIJSKEGA ORODJA)","DRUGI OBDELOVALNI STROJI"]
["8461 50 11",4,"OBDELOVALNI STROJI ZA OBDELAVO KOVIN, SINTRANIH KOVINSKIH KARBIDOV ALI KERMETOV Z ODVZEMENJEM MATERIALA (RAZEN VELIKEGA NEPREMIČNEGA INDUSTRIJSKEGA ORODJA)","CIRKULARNE ŽAGE"]
["8461 50 19",4,"OBDELOVALNI STROJI ZA OBDELAVO KOVIN, SINTRANIH KOVINSKIH KARBIDOV ALI KERMETOV Z ODVZEMENJEM MATERIALA  (RAZEN VELIKEGA NEPREMIČNEGA INDUSTRIJSKEGA ORODJA)","DRUGI STROJI ZA ŽAGANJE"]
["8461 50 90",4,"OBDELOVALNI STROJI ZA OBDELAVO KOVIN, SINTRANIH KOVINSKIH KARBIDOV ALI KERMETOV Z ODVZEMENJEM MATERIALA  (RAZEN VELIKEGA NEPREMIČNEGA INDUSTRIJSKEGA ORODJA)","STROJI ZA ODREZOVANJE"]
["8465 10 10 ",4,"STROJI ZA OBDELAVO LESA IN PODOBNIH MATERIALOV(RAZEN VELIKEGA NEPREMIČNEGA INDUSTRIJSKEGA ORODJA)","Z ROČNIM PRENOSOM OBDELOVANCA MED OPERACIJAMI"]
["8465 10 90",4,"STROJI ZA OBDELAVO LESA IN PODOBNIH MATERIALOV (RAZEN VELIKEGA NEPREMIČNEGA INDUSTRIJSKEGA ORODJA)","Z AVTOMATSKIM PRENOSOM OBDELOVANCA MED OPERACIJAMI"]
["8465 20 00",4,"STROJI ZA OBDELAVO LESA IN PODOBNIH MATERIALOV (RAZEN VELIKEGA NEPREMIČNEGA INDUSTRIJSKEGA ORODJA)","CENTRI ZA STROJNO OBDELAVO"]
["8465 91 10",4,"STROJI ZA OBDELAVO LESA IN PODOBNIH MATERIALOV (RAZEN VELIKEGA NEPREMIČNEGA INDUSTRIJSKEGA ORODJA)","STROJNE ŽAGE;TRAČNE ŽAGE"]
["8465 91 20",4,"STROJI ZA OBDELAVO LESA IN PODOBNIH MATERIALOV (RAZEN VELIKEGA NEPREMIČNEGA INDUSTRIJSKEGA ORODJA)","STROJNE ŽAGE;KROŽNE ŽAGE"]
["8465 91 90",4,"STROJI ZA OBDELAVO LESA IN PODOBNIH MATERIALOV (RAZEN VELIKEGA NEPREMIČNEGA INDUSTRIJSKEGA ORODJA)","STROJNE ŽAGE;DRUGE"]
["8465 92 00",4,"STROJI ZA OBDELAVO LESA IN PODOBNIH MATERIALOV (RAZEN VELIKEGA NEPREMIČNEGA INDUSTRIJSKEGA ORODJA)","STROJI ZA SKOBLJANJE, REZKANJE ALI OBLIKOVANJE Z REZANJEM"]
["8465 93 00",4,"STROJI ZA OBDELAVO LESA IN PODOBNIH MATERIALOV (RAZEN VELIKEGA NEPREMIČNEGA INDUSTRIJSKEGA ORODJA)","STROJI ZA BRUŠENJE, GLAJENJE ALI POLIRANJE"]
["8465 94 00",4,"STROJI ZA OBDELAVO LESA IN PODOBNIH MATERIALOV (RAZEN VELIKEGA NEPREMIČNEGA INDUSTRIJSKEGA ORODJA)","STROJI ZA UPOGIBANJE ALI SESTAVLJANJE"]
["8465 95 00",4,"STROJI ZA OBDELAVO LESA IN PODOBNIH MATERIALOV(RAZEN VELIKEGA NEPREMIČNEGA INDUSTRIJSKEGA ORODJA)","STROJI ZA VRTANJE ALI DOLBENJE"]
["8465 96 00",4,"STROJI ZA OBDELAVO LESA IN PODOBNIH MATERIALOV (RAZEN VELIKEGA NEPREMIČNEGA INDUSTRIJSKEGA ORODJA)","STROJI ZA CEPLJENJE ALI LUPLJENJE"]
["8465 99 00",4,"STROJI ZA OBDELAVO LESA IN PODOBNIH MATERIALOV (RAZEN VELIKEGA NEPREMIČNEGA INDUSTRIJSKEGA ORODJA)","DRUGI"]
["8467 21 10",5,"ELEKTRIČNI VRTALNIKI","ROČNA ORODJA, Z VDELANIM ELEKTR.MOTORJEM, VRTALNIKI, BREZ ZUNANJEGA NAPAJANJA"]
["8467 21 91",5,"ELEKTROPNEVMATSKI VRTALNIKI","ROČNA ORODJA, Z VDELANIM ELEKTRIČNIM MOTORJEM, VRTALNIKI, Z ZUNANJIM NAPAJANJEM, ELEKTROPNEVMATSKI"]
["8467 21 99",5,"DRUGI EL. VRTALNIKI","ROČNA ORODJA, Z VDELANIM ELEKTRIČNIM MOTORJEM, VRTALNIKI, Z ZUNANJIM NAPAJANJEM, DRUGI"]
["8467 22 10",5,"VERIŽNE ŽAGE","ROČNA ORODJA, Z VDELANIM ELEKTRIČNIM MOTORJEM, ŽAGE, VERIŽNE"]
["8467 22 30",5,"ŽAGE CIRKULARKE","ROČNA ORODJA, Z VDELANIM ELEKTRIČNIM MOTORJEM, ŽAGE, CIRKULARKE"]
["8467 22 90",5,"ŽAGE, DRUGE","ROČNA ORODJA, Z VDELANIM ELEKTRIČNIM MOTORJEM, ŽAGE, DRUGE"]
["8467 29 20",5,"ROČNA ORODJA, DRUGA","ROČNO ORODJE Z VDELANIM ELEKTRIČNIM MOTORJEM, NAMENJENO ZA DELOVANJE BREZ ZUNANJEGA VIRA ENERGIJE (AKUMULATORSKO)"]
["8467 29 51",5,"KOTNI BRUSILNIKI","ROČNA ORODJA, Z VDELANIM ELEKTRIČNIM MOTORJEM, DRUGA, Z ZUNANJIM NAPAJANJEM, KOTNI BRUSILNIKI"]
["8467 29 53",5,"TRAČNI BRUSILNIKI","ROČNA ORODJA, Z VDELANIM ELEKTRIČNIM MOTORJEM, DRUGA, Z ZUNANJIM NAPAJANJEM, TRAČNI BRUSILNIKI"]
["8467 29 59",5,"GROBI IN FINI BRUSILNIKI","ROČNA ORODJA, Z VDELANIM ELEKTRIČNIM MOTORJEM,DRUGA, Z ZUNANJIM NAPAJANJEM, DRUGI GROBI IN FINI BRUSILNIKI"]
["8467 29 70",5,"RAVNALNI BRUSILNIKI","ROČNA ORODJA, Z VDELANIM ELEKTRIČNIM MOTORJEM, DRUGA, Z ZUNANJIM NAPAJANJEM, RAVNALNI BRUSILNIKI"]
["8467 29 80",5,"REZALNIKI ŽIVE MEJE, KOSILNICE ROBOV","ROČNA ORODJA,Z VDELANIM ELEKTRIČNIM MOTORJEM, DRUGA, Z ZUNANJIM NAPAJANJEM, REZALNIKI ŽIVE MEJE, KOSILNICE ROBOV"]
["8467 29 85",5,"DRUGO ROČNO ORODJE","DRUGO ROČNO ORODJE Z VDELANIM ELEKTRIČNIM MOTORJEM (NPR. ROČNA VIBRACIJSKA IGLA)"]
["8474 31 00",4,"MEŠALNIKI ZA BETON ALI MALTO","STOJI ZA MEŠANJE ALI GNETENJE"]
["8502 11 20","4 ali 5","ELEKTRIČNI AGREGATI","GENERATORSKI AGREGAT Z BATNIM MOTORJEM Z NOTRANJIM ZGOREVANJEM NA VŽIG S KOMPRESIJO Z IZHODNO MOČJO DO VKLJUČNO 7,5 KVA"]
["8502 20 20","4 ali 5","ELEKTRIČNI AGREGATI","GENERATORSKI AGREGAT Z BATNIM MOTORJEM Z NOTRANJIM ZGOREVANJEM NA VŽIG S KOMPRESIJO Z IZHODNO MOČJO DO VKLJUČNO 7,5 KVA"]
["8514 11 00","4 ali 5","ELEKTRIČNE UPOROVNE PEČI","IZOSTATIČNE STISKALNICE ZA DELO V VROČEM STANJU"]
["8514 19 10 ","4 ali 5","ELEKTRIČNE UPOROVNE PEČI","KRUŠNE IN SLAŠČIČARSKE PEČI"]
["8514 19 80","4 ali 5","ELEKTRIČNE UPOROVNE PEČI","DRUGE PEČI"]
["8514 31 10","4 ali 5","INDUSTRIJSKE ALI LABORATORIJSKE PEČI","PEČI Z ELEKTRONSKIM SNOPOM, KI SE UPORABLJAJO SAMO ALI ZLASTI ZA IZDELAVO TISKANIH VEZIJ ALI SKLOPOV TISKANIH VEZIJ"]
["8514 31 90","4 ali 5","INDUSTRIJSKE ALI LABORATORIJSKE PEČI","PEČI Z ELEKTRONSKIM SNOPOM, DRUGE"]
["8514 32 10","4 ali 5","INDUSTRIJSKE ALI LABORATORIJSKE PEČI","PLAZEMSKE IN VAKUUMSKE OBLOČNE PEČI, KI SE UPORABLJAJO SAMO ALI ZLASTI ZA IZDELAVO TISKANIH VEZIJ ALI SKLOPOV TISKANIH VEZI"]
["8514 32 90","4 ali 5","INDUSTRIJSKE ALI LABORATORIJSKE PEČI","PLAZEMSKE IN VAKUUMSKE OBLOČNE PEČI, DRUGE"]
["8514 39 10","4 ali 5","INDUSTRIJSKE ALI LABORATORIJSKE PEČI","DRUGE PEČI, KI SE UPORABLJAJO SAMO ALI ZLASTI ZA IZDELAVO TISKANIH VEZIJ ALI SKLOPOV TISKANIH VEZI"]
["8514 39 90","4 ali 5","INDUSTRIJSKE ALI LABORATORIJSKE PEČI","DRUGE PEČI"]
["8515 11 00",5,"SPAJKALNIKI IN PIŠTOLE","SPAJKALNIKI IN PIŠTOLE ZA MEHKO SPAJKANJE"]
["8515 19 10",5,"SPAJKALNIKI IN PIŠTOLE","STROJI ZA VALNO TRDO SPAJKANJE, KI SE UPORABLJJAO SAMO ALI ZLASTI ZA IZDELAVO SKLOPOV TISKANIH VEZIJ"]
["8515 19 90",5,"SPAJKALNIKI IN PIŠTOLE","STROJI IN APARATI ZA TRDO SPAJKANJE,DRUGI"]
["8515 21 00",5,"VARILNI APARATI","STROJI ZA ELEKTRIČNO UPOROVNO VARJENJE KOVIN, AVTOMATSKI ALI POLAVTOMATSKI"]
["8515 29 00",5,"VARILNI APARATI","STROJI ZA ELEKTRIČNO UPOROVNO VARJENJE KOVIN, DRUGI"]
["8515 31 00",5,"OBLOČNI VARILNI APARATI","STROJI ZA VARJENJE Z EL.OBLOKOM, AVTOMATSKI ALI POLAVTOMATSKI"]
["8515 39 13",5,"OBLOČNI VARILNI APARATI","STROJI ZA VARJENJE Z EL.OBLOKOM,DRUGI, ZA ROČNO VARJENJE PREKRITIMI ELEKTRODAMI, TRANSFORMATORJI"]
["8515 39 18",5,"OBLOČNI VARILNI APARATI","STROJI ZA VARJENJE Z EL.OBLOKOM, DRUGI,ZA ROČNO VARJENJE PREKRITIMI ELEKTRODAMI,STATIČNI PRETVORNIKI"]
["8515 39 90",5,"OBLOČNI VARILNI APARATI","STROJI ZA VARJENJE Z EL.OBLOKOM, DRUGI, OSTALI"]
["8543 70 08","4 ali 5","DRUGI STROJI IN APARATI","STROJI ZA ČIŠČENJE PLAZME, KI ODSTRANJUJEJO ORGANSKA ONESNAŽEVALA IZ VZORCEV ZA ELEKTRONSKO MIKROSKOPIJO IN NOSILCEV VZORCEV"]
["8543 70 03","4 ali 5","DRUGI STROJI IN APARATI","BREZŽIČNE INFRARDEČE NAPRAVE ZA DALJINSKO KRMILJENJE ZA IGRALNE VIDEOKONZOLE"]
["8543 70 50",4,"SOLARNE POSTELJE","SOLARNE POSTELJE, LUČI ZA SONČENJE  IPD.OPREMA ZA SVETLOBNO-BARVNO TERAPIJO"]
["9029 10 00",5,"PEDOMETRI","ŠTEVCI KORAKOV (PEDOMETRI) IN KOMBINIRANE NAPRAVE Z VGRAJENIM PEDOMETROM"]
["9029 20 31",5,"KAZALNIKI HITROSTI","KAZALNIKI HITROSTI, KOLESARSKI ŠTEVCI"]
["9503 00 10","4 ali 5","IGRAČE","TRICIKLI, SKIROJI, AVTOMOBILI IN PODOBNE IGRAČE ZA VOŽNJO NA KOLESA, NA ELEKTRIČNI POGON"]
["9503 00 30",5,"ELEKTRIČNI VLAKCI","IGRAČE,ELEKTRIČNI VLAKI,TIRI IPD., MODELI V ZMANJŠANEM MERILU"]
["9503 00 55",5,"GLASBILA IN GLASBENI APARATI V OBLIKI IGRAČ","GLASBILA IN GLASBENI APARATI V OBLIKI IGRAČ"]
["9503 00 75",5,"DRUGE ELEKTRIČNE IGRAČE","IGRAČE, Z VDELANIM MOTORJEM,IZ PLASTIČNIH MAS"]
["9503 00 79",5,"DRUGE ELEKTRIČNE IGRAČE","IGRAČE, Z VDELANIM MOTORJEM,IZ DRUGIH MATERIALOV"]
["9503 00 81",5,"OROŽJE-IGRAČE","OROŽJE-IGRAČE, RAZEN IGRAČ Z VDELANIM ELEKTRIČNIM MOTORJEM"]
["9503 00 87",5,"INTERAKTIVNE ELEKTRONSKE IGRAČE","IPRENOSNE INTERAKTIVNE ELEKTRONSKE IZOBRAŽEVALNE NAPRAVE, NAMENJENE ZLASTI OTROKOM"]
["9504 30 10",4,"IGRE Z EKRANOM","DRUGE IGRE, KI SE POŽENEJO S KOVANCEM, BANKOVCEM, BANČNO KARTICO, ŽETONOM ALI Z DRUGIM PLAČILNIM SREDSTVOM, RAZEN OPREME ZA AVTOMATSKA KEGLJIŠČA (BOWLING) "]
["9504 30 20",4,"DRUGE IGRE","DRUGE IGRE, KI SE POŽENEJO S KOVANCEM, BANKOVCEM, BANČNO KARTICO, ŽETONOM ALI Z DRUGIM PLAČILNIM SREDSTVOM, RAZEN OPREME ZA AVTOMATSKA KEGLJIŠČA (BOWLING) "]
["9504 50 00",5,"IGRALNE VIDEOKONZOLE IN NAPRAVE","IGRALNE KONZOLE IN NAPRAVE, RAZEN TISTIH, KI SPADAJO V TARIFNO PODŠTEVILKO 9504 30"]
["9504 90 10",5,"KOMPLETI EL.DIRKALNIH AVTOMOBILOV","PROIZ.ZA SEJEMSKE,DRUŽABNE IGRE, DRUGI, KOMPLETI ELEKTRIČNIH DIRKALNIH AVTOMOBILOV"]
["9504 90 80","4 ali 5","DRUGE IGRE","PROIZ.ZA SEJEMSKE,DRUŽABNE IGRE, DRUGE IGRE IN OPREMA Z ELEKTRIČNIMI ALI ELEKTRONSKIMI SESTAVNIMI DELI"]
["9506 91 10","4 ali 5","IZDELKI IN OPREMA ZA TELOVADBO; FIZIČNE VAJE","OPREMA ZA TELOVADBO Z NASTAVLJIVIM MEHANIZMOM ZA UPOR"]
["8711 60 10 ",4,"DVOKOLESA S PEDALI, S POMOŽNIM ELEKTRIČNIM MOTORJEM\nS TRAJNO NAZIVNO MOČJO DO VKLJUČNO 250 W","DVOKOLESA S PEDALI Z DODATNIM POGONOM, OPREMLJENA S POMOŽNIM ELEKTRIČNIM MOTORJEM Z NAJVEČJO TRAJNO NAZIVNO MOČJO, KI JE MANJŠA ALI ENAKA 250 W, KATEREGA IZHODNA MOČ SE PREKINE, KADAR KOLESAR\nPRENEHA POGANJATI PEDALA, SICER PA SE PROGRESIVNO ZMANJŠUJE IN\nKONČNO PREKINE, PREDEN HITROST VOZILA DOSEŽE 25 KM/H"]
["8711 60 90",4,"ELEKTRIČNE ROLKE (\"E-BOARD\"); ELEKTRIČNI DVOKOLESNIKI (NPR. \"SEGWAY\"); ELEKTRIČNI SKIROJI","ELEKTRIČNA DVOKOLESNA SAMOURAVNOTEŽEVALNA VOZILA; SKIROJI Z ELEKTRIČNIM MOTORJEM"]
["8419 12 00","4 ali 5","SOLARNI GRELNIKI ZA VODO","PRETOČNI GRELNIKI ZA VODO"]
["8419 20 00","4 ali 5","APARATI ZA STERILIZACIJO","MEDICINSKI, KIRURŠKI, LABORATORIJSKI APARATI, ZA STERILIZACIJO"]
["8419 33 00","4 ali 5","SUŠILNICE","LIOFILIZATORJI, ENOTE ZA SUŠENJE Z ZAMRZOVANJEM IN RAZPRŠILNI SUŠILNIKI"]
["8419 34 00","4 ali 5","SUŠILNICE","DRUGE; ZA AGROŽIVILSKE PROIZVODE IN IZDELKE"]
["8419 35 00","4 ali 5","SUŠILNICE","DRUGE; ZA LES, PAPIRNO MASO, PAPIR ALI KARTON"]
["8419 40 00","4 ali 5","NAPRAVE ZA DESTILACIJO","NAPRAVE ZA DESTILACIJO ALI PREČIŠČEVANJE Z DESTILACIJO"]
["9011 10 00",4,"OPTIČNI MIKROSKOPI","STEREOSKOPSKI MIKROSKOPI"]
["9018 11 00",4,"ELEKTROKARDIOGRAFI","ELEKTRODIAGNOSTIČNI APARATI, ELEKTROKARDIOGRAFI"]
["9018 12 00",4,"ULTRAZVOČNI APARATI","ELEKTRODIAGNOSTIČNI APARATI, APARATI ZA ULTRAZVOČNO SKENIRANJE"]
["9018 13 00",4,"NMR-APARATI ","ELEKTRODIAGNOSTIČNI APARATI, APARATI ZA ODSLIKAVANJE PODOB NA OSNOVI NUKLEARNE MAGNETNE RESONANCE (NMR)"]
["9018 14 00",4,"SCINTIGRAFSKI APARATI","ELEKTRODIAGNOSTIČNI APARATI, SCINTIGRAFSKI APARATI"]
["9018 19 10",4,"DRUGI ELEKTRODIAGN.APARATI","ELEKTRODIAGNOSTIČNI APARATI, DRUGI,ZA HKRATNO OPAZOVANJE DVEH ALI VEČ PARAMETROV"]
["9018 19 90",4,"DRUGI ELEKTRODIAGN.APARATI","ELEKTRODIAGNOSTIČNI APARATI, DRUGI, OSTALI"]
["9018 20 00","4 ali 5","APARATI Z UV ALI INFRA ŽARKI","APARATI Z ULTRAVIJOLIČNIMI ALI INFRARDEČIMI ŽARKI"]
["9018 41 00",4,"ZOBOZDRAVNIŠKI APARATI,DRUGI","ZOBOZDRAVNIŠKI VRTALNI STROJI"]
["9018 49 90",4,"ZOBOZDRAVNIŠKI APARATI","ZOBOZDRAVNIŠKI INŠTURMENTI IN APARATI, DRUGI, OSTALI"]
["9018 50 10",4,"OFTAMOLOŠKI APARATI","INSTRUMENTI IN APARATI ZA OČI-OFTALMOLOGIJO, DRUGI, NEOPTIČNI"]
["9018 50 90",4,"OFTAMOLOŠKI APARATI","INSTRUMENTI IN APARATI ZA OČI-OFTALMOLOGIJO, DRUGI, OPTIČNI"]
["9018 90 10",5,"INSTRUMENTI ZA MERJENJE KRVNEGA TLAKA","MEDIC.IPD.INSTRUMENTI IN APARATI, DRUGI,INSTRUMENTIIN NAPRAVE ZA MERJENJE KRVNEGA PRITISKA"]
["9018 90 20","4 ali 5","ENDOSKOPI","MEDICINSKI IPD.INSTRUMENTI IN APARATI, DRUGI, ENDOSKOPI"]
["9018 90 30","4 ali 5","OPREMA ZA RENALNO DIALIZO","MEDIDICINSKI IPD.INSTRUMENTI IN APARATI, DRUGI, OPREMA ZA RENALNO DIALIZO"]
["9018 90 40","4 ali 5"," DIATERMIČNI APARATI","MEDICINSKI IPD.INSTRUMENTI IN APARATI, DRUGI"]
["9018 90 50","4 ali 5","APARATI ZA TRANSFUZIJO","MEDIINSKI.IPD.INSTRUMENTI IN APARATI, DRUGI, APARATI ZA TRANSFUZIJO"]
["9018 90 60","4 ali 5","APARATI ZA ANESTEZIJO","MEDICINSKI IPD.INSTRUMENTI IN APARATI, DRUGI, APARATI IN INSTRUMENTI ZA ANESTEZIJO"]
["9018 90 75","4 ali 5","APARATI ZA STIMULACIJO ŽIVCEV","MEDICINSKI IPD.INSTRUMENTI IN APARATI, DRUGI, APARATI ZA STIMULACIJO ŽIVCEV"]
["9018 90 84","4 ali 5","DRUGI INSTRUMENTI IN APARATI","MEDICINSKI IPD.INSTRUMENTI IN APARATI, DRUGI, OSTALI"]
["9019 10 10",5,"ELEKTRIČNE NAPRAVE ZA VIBRO-MASAŽO","APARATI ZA MEHANOTERAPIJO, MASAŽO, PSIHOLOŠKA TESTIRANJA, ELEKTRIČNE NAPRAVE ZA VIBRO-MASAŽO"]
["9019 10 90","4 ali 5","DRUGI APARATI ZA MEHANOTERAP., MASAŽO,PSIHOLOŠKA TESTIRANJA","APARATI ZA MEHANOTERAPIJO, MASAŽO, PSIHOLOŠKA TESTIRANJA, DRUGI"]
["9019 20 10","4 ali 5","APARATI ZA OZONOTERAPIJO, KISIKOTERAPIJO,AEROSOLNO TERAPIJO,UMETNO DIHANJE IN DRUGI TERAPEVTSKI DIHALNI APARATI","MEHANSKI VENTILATORJI, PRIMERNI ZA INVAZIVNO PODPORO DIHANJA"]
["9019 20 20","4 ali 5","APARATI ZA OZONOTERAPIJO, KISIKOTERAPIJO,AEROSOLNO TERAPIJO,UMETNO DIHANJE IN DRUGI TERAPEVTSKI DIHALNI APARATI","MEHANSKI VENTILATORJI, NEINVAZIVNI"]
["9019 20 90","4 ali 5","APARATI ZA OZONOTERAPIJO, KISIKOTERAPIJO,AEROSOLNO TERAPIJO,UMETNO DIHANJE IN DRUGI TERAPEVTSKI DIHALNI APARATI","DRUGO, BREZ DELOV IN PRIBORA"]
["9021 40 00",5,"APARATI ZA IZBOLJŠANJE SLUHA RAZEN DELOV IN PRIBORA","APARATI ZA IZBOLJŠANJE SLUHA RAZEN DELOV IN PRIBORA"]
["9021 90 90",5,"PRIPOMOČKI, KI SE NOSIJO NA TELESU ALI VDELAJO V TELO, DRUGI","PRIPOMOČKI, KI SE NOSIJO NA TELESU ALI VDELAJO V TELO, DRUGI"]
["9022 12 00",4,"RENTGENSKI APARATI","RENTGENSKI APARATI ZA RAČUNALNIŠKO TOMOGRAFIJO"]
["9022 13 00",4,"RENTGENSKI APARATI","RENTGENSKI APARATI, DRUGI ZA ZOBOZDRAVNIŠKO UPORABO"]
["9022 14 00",4,"RENTGENSKI APARATI","RENTGENSKI APARATI, DRUGI,ZA MEDICINO, KIRURGIJO,VETERINO "]
["9022 19 00",4,"RENTGENSKI APARATI","RENTGENSKI APARATI ZA DRUGO UPORABO"]
["9022 21 00",4,"APARATI Z ALFA,BETA,GAMA ŽARKI ","APARATI Z ALFA,BETA,GAMA ŽARKI ZA MEDICINSKO,KIRURŠKO,ZOBOZRAVNIŠKO ALI VETERINARSKO UPORABO"]
["9022 29 00",4,"APARATI Z ALFA,BETA,GAMA ŽARKI ","APARATI Z ALFA,BETA, GAMA ŽARKI ZA DRUGO UPORABO"]
["9022 30 00",4,"RENTGENSKE CEVI","RENTGENSKE CEVI"]
["9022 90 80","4 ali 5","DRUGI APARATI ZA MEDIC.UPORABO","APARATI ZA MEDICINSKO IPD.UPORABO, DRUGI"]
["8421 19 20","4 ali 5","CENTRIFUGE - LABORATORIJSKE","CENTRIFUGE, DRUGE,ZA UPOR.V LABORATORIJIH"]
["8423 81 23","4 ali 5","TEHTALNE NAPRAVE Z MAKS. TEHTALNIM OBMOČJEM DO VKLJUČNO 30 KG, Z UPORABO ELEKTRONSKIH SREDSTEV ZA UMERJANJE UTEŽI","TEHTNICE - NAPRAVE ZA TEHTANJE PAKIRANEGA BLAGA"]
["8423 81 25","4 ali 5","TEHTALNE NAPRAVE Z MAKS. TEHTALNIM OBMOČJEM DO VKLJUČNO 30 KG, Z UPORABO ELEKTRONSKIH SREDSTEV ZA UMERJANJE UTEŽI","TRGOVSKE TEHTNICE"]
["8423 81 29","4 ali 5","TEHTALNE NAPRAVE Z MAKS. TEHTALNIM OBMOČJEM DO VKLJUČNO 30 KG, Z UPORABO ELEKTRONSKIH SREDSTEV ZA UMERJANJE UTEŽI","DRUGE TEHTNICE"]
["8423 81 80","4 ali 5","TEHTALNE NAPRAVE Z MAKS. TEHTALNIM OBMOČJEM DO VKLJUČNO 30 KG, DRUGE","DRUGE TEHTNICE"]
["8504 40 30",5,"STATIČNI PRETVORNIKI","VRST, KI SE UPORABLJAJO SKUPAJ S TELEKOMUNIKACIJSKIMI NAPRAVAMI, S STROJI ZA AVTOMATSKO OBDELAVO PODATKOV IN NJIHOVIMI ENOTAMI"]
["8504 40 55",5,"STATIČNI PRETVORNIKI, DRUGI","POLNILNIKI AKUMULATORJEV"]
["8504 40 82",5,"STATIČNI PRETVORNIKI","USMERNIKI"]
["8504 40 84",5,"STATIČNI PRETVORNIKI","RAZSMERNIKI Z MOČJO DO VKLJUČNO 7,5 KVA"]
["8504 40 90",5,"STATIČNI PRETVORNIKI","DRUGI PRETVORNIKI"]
["8531 10 30",5,"ALARMNI APARATI PROTI TATVINI,POŽARU IPD.","ALARMNI APARATI, PROTI TATVINI,POŽARU IPD., DRUGI, NAMENJENI ZA ZGRADBE"]
["8531 10 95",5,"ALARMNI APARATI PROTI TATVINI,POŽARU IPD.","ALARMNI APARATI, PROTI TATVINI,POŽARU IPD., DRUGI, OSTALI"]
["8537 10 95",5,"ZASLONI NA DOTIK","NAPRAVE ZA VNOS PODATKOV, OBČUTLJIVE NA DOTIK, BREZ PRIKAZOVALNIH ZMOGLJIVOSTI, ZA VGRADNJO V APARATE S PRIKAZOVALNIKOM, KI DELUJEJO Z ZAZNAVANJEM PRISOTNOSTI IN MESTA DOTIKA NA ZASLONU"]
["8537 10 98",5,"NAPRAVE IN INSTRUMENTI ZA SPREMLJANJE IN NADZOR, DRUGI","NAPRAVE IN INSTRUMENTI ZA SPREMLJANJE IN NADZOR, DRUGI"]
["8543 70 04",5,"DRUGI STROJI IN APARATI","DIGITALNI SNEMALNIKI PODATKOV O LETU"]
["8543 70 09",5,"DRUGI STROJI IN APARATI","NAPRAVE ZA VNOS PODATKOV, OBČUTLJIVE NA DOTIK, BREZ PRIKAZOVALNIH ZMOGLJIVOSTI, ZA VGRADNJO V APARATE S PRIKAZOVALNIKOM, KI DELUJEJO Z ZAZNAVANJEM PRISOTNOSTI IN MESTA DOTIKA NA ZASLONU"]
["9014 10 00",5,"KOMPASI,DRUGI NAVIGACIJSKI INSTRUMENTI IN APARATI","KOMPASI, VKLJUČNO NAVIGACIJSKI"]
["9014 20 20",5,"KOMPASI,DRUGI NAVIGACIJSKI INSTRUMENTI IN APARATI","INERCIJSKE NAVIGACIJSKE NAPRAVE"]
["9014 80 00",5,"KOMPASI,DRUGI NAVIGACIJSKI INSTRUMENTI IN APARATI","DRUGI INSTRUMENTI IN NAPRAVE"]
["9015 10 00",4,"DALJINOMERI","DALJINOMERI"]
["9015 20 00",4,"TEODOLITI IN TAHIMETRI","TEODOLITI IN TAHIMETRI"]
["9015 30 10",4,"NIVELIRJI","NIVELIRJI,ELEKTRONSKI"]
["9015 30 90",4,"NIVELIRJI","NIVELIRJI, DRUGI"]
["9016 00 10",5,"PRECIZNE TEHTNICE","ELEKTRONSKE TEHTNICE Z OBČUTLJIVOSTJO DO VKLJUČNO 0,05g"]
["9023 00 10","4 ali 5","INSTRUMENTI, APARATI NAMENJENI ZA DEMONSTRIRANJE","INSTRUMENTI, APARATI, KI SE UPORABLJAJO ZA POUČEVANJE FIZIKE, KEMIJE, TEHNIČNIH PREDMETOV"]
["9023 00 80","4 ali 5","INSTRUMENTI, APARATI NAMENJENI ZA DEMONSTRIRANJE","INSTRUMENTI, APARATI NAMENJENI ZA DEMONSTRIRANJE, DRUGI"]
["9025 19 00",5,"TERMOMETRI IN PIROMETRI","TERMOMETRI IN PIROMETRI, KI NISO KOMBINIRANI Z DRUGIMI INSTRUMENTI, DRUGI"]
["9025 80 20",5,"BAROMETRI- SAMOSTOJNI","BAROMETRI,KI NISO V SKLOPU Z DRUGIMI INSTRUMENTI"]
["9025 80 40",5,"HIDROMETRI IPD.PLAVAJOČI INSTRUMENTI","HIDROMETRI IPD.PLAVAJOČI INSTRUMENTI,DRUGI, ELEKTRONSKI"]
["9026 10 21",5,"MERILNIKI PRETOKA","INSTRUMENTI ZA MERJENJE ALI KONTROLO TEKOČIN, DRUGI,ELEKTRONSKI,MERILNIKI PRETOKA"]
["9026 10 29",5,"DRUGI ELEKTRONSKI INSTRUMENTI ZA MERJENJE ALI KONTROLO TEKOČINI","INSTRUMENTI ZA MERJENJE ALI KONTROLO TEKOČIN, DRUGI,ELEKTRONSKI, OSTALI"]
["9026 20 20",5,"ELEKTRONSKI MERILNIKI TLAKA","INSTRUMENTI ZA MERJENJE ALI KONTROLO TLAKA, DRUGI, ELEKTRONSKI"]
["9026 80 20",5,"DRUGI  INSTRUMENTI ZA MERJENJE ALI KONTROLO TEKOČIN,TLAKA","INSTRUMENTI, APARATI ZA MERJENNJE IN KONTROLO TEKOČIN, PRITISKA, DRUGI,ELEKTRONSKI"]
["9027 10 10",5,"APARATI ZA ANALIZO PLINA IN DIMA","APARATI ZA ANALIZO PLINA IN DIMA, ELEKTRONSKI"]
["9027 20 00","4 ali 5","KREMOGRAFI IN INSTRUMENTI Z ELEKTROFOREZO","KREMOGRAFI IN INSTRUMENTI Z ELEKTROFOREZO"]
["9027 30 00","4 ali 5","SPEKTROMETRI,SPEKTROFOTOMETRI IN SPEKTROGRAFI","SPEKTROMETRI,SPEKTROFOTOMETRI IN SPEKTROGRAFI"]
["9027 50 00","4 ali 5","DRUGI INSTRUMENTI,APARATI NA PODLAGI OPTIČNEGA SEVANJA","INSTRUMENTI,APARATI NA PODLAGI OPTIČNEGA SEVANJA, DRUGI"]
["9027 89 10","4 ali 5","EKSPOZIMETRI","DRUGI INSTRUMENTI IN APARATI, EKSPOZIMETRI"]
["9027 89 30",5,"MERILNIKI pH, rH IN DRUGI APARATI ZA MERJENJE PREVODNOSTI","INSTRUMENTI IN APARATI ZA FIZIKALNE ALI KEMIČNE ANALIZE, MERILNIKI pH, rH IN DRUGI APARATI ZA MERJENJE PREVODNOSTI "]
["9027 81 00",5,"INSTRUMENTI IN APARATI ZA FIZIKALNE ALI KEMIČNE ANALIZE; INSTRUMENTI IN APARATI ZA MERJENJE IN KONTROLO VISKOZNOSTI, POROZNOSTI, RAZTEZANJA, POVRŠINSKE NAPETOSTI IN PODOBNO; INSTRUMENTI IN APARATI ZA MERJENJE ALI KONTROLIRANJE TOPLOTE, ZVOKA ALI SVETLOBE","MASNI SPEKTROMETRI"]
["9027 89 90",5,"INSTRUMENTI IN APARATI ZA FIZIKALNE ALI KEMIČNE ANALIZE; INSTRUMENTI IN APARATI ZA MERJENJE IN KONTROLO VISKOZNOSTI, POROZNOSTI, RAZTEZANJA, POVRŠINSKE NAPETOSTI IN PODOBNO; INSTRUMENTI IN APARATI ZA MERJENJE ALI KONTROLIRANJE TOPLOTE, ZVOKA ALI SVETLOBE","DRUGI"]
["9027 90 00",5,"MIKROTOMI","MIKROTOMI"]
["9030 10 00",5,"INSTRUMENTI ZA MERJENJE IN OKRIVANJE IONIZIRANIH SEVANJ, DRUGI","INSTR.ZA MERJENJE IN OKRIVANJE IONIZIRANIH SEVANJ, DRUGI"]
["9030 20 00",4,"OSCILOGRAFI IN OSCILOSKOPI","OSCILOGRAFI IN OSCILOSKOPI"]
["9030 31 00",5,"MULTIMETRI","INSTR.ZA MERENJE IN KONTROLO NAPETOSTI, MULTIMETRI, DRUGI"]
["9030 32 00",5,"MULTIMETRI Z NAPRAVO ZA REGISTRIRANJE","INSTRUMENTI ZA MERJENJE ALI KONTROLO ELEKTRIČNIH VELIČIN, MULTIMETRI"]
["9030 33 20",5,"INSTRUMENTI ZA MERJENJE UPORNOSTI","INSTRUMENTI ZA MERJENJE UPORNOSTI, BREZ NAPRAVE ZA REGISTRIRANJE"]
["9030 33 70",5,"DRUGI ELEKTRONSKI INSTRUMENTI IN APARATI","DRUGI INSTRUMENTI IN APARATI ZA MERJENJE ALI KONTROLO ELEKTRIČNE NAPETOSTI, TOKA, UPORNOSTI ALI MOČI, DRUGI, BREZ NAPRAVE ZA REGISTRIRANJE"]
["9030 39 00",5,"DRUGI INSTRUMENTI Z NAPRAVO ZA REGISTRIRANJE","DRUGI INSTRUMENTI ZA MERJENJE ALI KONTROLO EL. NAPETOSTI, TOKA ALI MOČI, Z NAPRAVO ZA REGISTRIRANJE"]
["9030 40 00",6,"INSTRUMENTI, APARATI, POSEBEJ KONSTRUIRANI ZA TELEKOMUNIKACIJE, DRUGI","INSTRUMENTI, APARATI, POSEBEJ KONSTRUIRANI ZA TELEKOMUNIKACIJE, DRUGI"]
["9030 82 00",5,"INSTRUMENTI IN APARATI,DRUGI, NAPRAVE ZA MERJENJE, TESTIRANJE POLPREVODNIŠKIH REZIN, NAPRAV","INSTRUMENTI IN APARATI, DRUGI, NAPRAVE ZA MERJENJE, TESTIRANJE POLPREVODNIŠKIH REZIN, NAPRAV"]
["9030 84 00",5,"INSTRUMENTI IN APARATI,DRUGI, Z NAPRAVO ZA REGISTRIRANJE, DRUGI","INSTRUMENTI IN APARATI, DRUGI, Z NAPRAVO ZA REGISTRIRANJE, DRUGI"]
["9030 89 00",5,"DRUGI INSTRUMENTI IN APARATI ZA MERJENJE ALI KONTROLO ELEKTRIČNIH VELIČIN, ELEKTRONSKI","DRUGI INSTRUMENTI IN APARATI ZA MERJENJE ALI KONTROLO ELEKTRIČNIH VELIČIN, ELEKTRONSKI"]
["9031 41 00",5,"OPTIČNI INSTRUMENTI,APARATI ZA MERJENJE,DRUGI, ZA NADZOR POLPREVODNIŠKIH REZIN IN FOTOMASK","OPTIČNI INSTRUMENTI, APARATI ZA MERJENJE, DRUGI, ZA NADZOR POLPREVODNIŠKIH REZIN IN FOTOMASK"]
["9031 49 90",5,"OPTIČNI INSTRUMENTI,APARATI ZA MERJENJE,DRUGI","OPTIČNI INSTRUMENTI, APARATI ZA MERJENJE, DRUGI"]
["9031 80 20",5,"INSTRUMENTI IN APARATI ZA MERJENJE ALI PREVERJANJE GEOMETRIJSKIH VELIČIN","DRUGI INSTRUMENTI, APARATI ZA MERJENJE ALI KONTROLO"]
["9031 80 80",5,"DRUGI INSTRUMENTI IN APARATI","INSTRUMENTI, APARATI ZA MERJENJE, KONTROLO, DRUGI, OSTALI"]
["9032 10 20",5,"TERMOSTATI,","TERMOSTATI, ELEKTRONSKI"]
["9032 10 80",5,"TERMOSTATI","TERMOSTATI, DRUGI,Z ELEKTRIČNO SPROŽILNO NAPRAVO"]
["9032 89 00",5,"INSTRUMENTI ZA AVTOMATIČNO RE- GULACIJO, KRMILJENJE, DRUGI, OSTALI","INSTRUMENTI ZA AVTOMATIČNO REGULACIJO,KRMILJENJE, DRUGI, OSTALI"]
["9107 00 00",5,"ČASOVNA PREKINJALA Z URNIM MEHANIZMOM ALI SINHRON  SKIM MOTORJEM","ČASOVNA PREKINJALA Z URNIM MEHANIZMOM ALI SINHRONSKIM MOTORJEM"]
["8476 21 00",1,"AVTOMATSKI STROJI ZA PRODAJO PIJAČ","AVTOMATSKI STROJI ZA PRODAJO PIJAČ,Z NAPRAVO ZA GRETJE,HLAJENJE"]
["8476 29 00",4,"AVTOMATSKI STROJI ZA PRODAJO PIJAČ","AVTOMATSKI STROJI ZA PRODAJO PIJAČ, DRUGI"]
["8476 81 00",1,"AVTOMATSKI STROJI ZA PRODAJO BLAGA","AVTOMATSKI STROJI ZA PRODAJO BLAGA (NPR. STROJI ZA POŠTNE ZNAMKE, CIGARETE,HRANO,...), DRUGI, Z NAPRAVO ZA GRETJE, HLAJENJE"]
["8476 89 10",4,"STROJI ZA MENJANJE DENARJA ZA DROBIŽ","STROJI ZA MENJANJE DENARJA ZA DROBIŽ"]
["8476 89 90",4,"DRUGI AVTOMATI","AVTOMATSKI STROJI ZA PRODAJO BLAGA (NPR. STROJI ZA POŠTNE ZNAMKE, CIGARETE,HRANO...), DRUGI"]
["8506 10 11","7-PBA","PRIMARNE CELICE IN PRIMARNE BATERIJE; Z MANGANOVIM DIOKSIDOM","ALKALNE, CILINDRIČNE CELICE"]
["8506 10 18","7-PBA","PRIMARNE CELICE IN PRIMARNE BATERIJE; Z MANGANOVIM DIOKSIDOM","ALKALNE, DRUGE"]
["8506 10 91","7-PBA","PRIMARNE CELICE IN PRIMARNE BATERIJE; Z MANGANOVIM DIOKSIDOM","DRUGE, CILINDRIČNE CELICE"]
["8506 10 98","7-PBA","PRIMARNE CELICE IN PRIMARNE BATERIJE; Z MANGANOVIM DIOKSIDOM","DRUGE, DRUGE"]
["8506 30 00","7-PBA","PRIMARNE CELICE IN PRIMARNE BATERIJE; Z ŽIVOSREBROVIM OKSIDOM","PRIMARNE CELICE IN PRIMARNE BATERIJE; Z ŽIVOSREBROVIM OKSIDOM"]
["8506 40 00","7-PBA","PRIMARNE CELICE IN PRIMARNE BATERIJE; S SREBROVIM OKSIDOM","PRIMARNE CELICE IN PRIMARNE BATERIJE; S SREBROVIM OKSIDOM"]
["8506 50 10","7-PBA","PRIMARNE CELICE IN PRIMARNE BATERIJE; LITIJEVE","CILINDRIČNE CELICE"]
["8506 50 30","7-PBA","PRIMARNE CELICE IN PRIMARNE BATERIJE; LITIJEVE","GUMBASTE CELICE"]
["8506 50 90","7-PBA","PRIMARNE CELICE IN PRIMARNE BATERIJE; LITIJEVE","DRUGE"]
["8506 60 00","7-PBA","PRIMARNE CELICE IN PRIMARNE BATERIJE; ZRAK-CINKOVE","DRUGE"]
["8506 80 05","7-PBA","DRUGE PRIMARNE CELICE IN PRIMARNE BATERIJE, ","SUHE CINK-OGLJIKOVE BATERIJE NAPETOSTI 5,5 DO VKLJUČNO 6,5 V"]
["8506 80 80","7-PBA","DRUGE PRIMARNE CELICE IN PRIMARNE BATERIJE, ","DRUGE PRIMARNE CELICE IN PRIMARNE BATERIJE, "]
["8507 20 20","7-PBA","DRUGI SVINČEVI AKUMULATORJI"," S TEKOČIM ELEKTROLITOM"]
["8507 20 80","7-PBA","DRUGI SVINČEVI AKUMULATORJI"," DRUGI"]
["8507 30 20","7-PBA","NIKELJ-KADMIJEVI AKUMULATORJI","HERMETIČNO ZAPRTI"]
["8507 30 80","7-PBA","NIKELJ-KADMIJEVI AKUMULATORJI","DRUGI "]
["8507 50 00","7-PBA","NIKELJ-KOVINSKI HIDRIDNI AKUMULATORJI","NIKELJ-KOVINSKI HIDRIDNI AKUMULATORJI"]
["8507 60 00","7-PBA","LITIJ-IONSKI AKUMULATORJI","LITIJ-IONSKI AKUMULATORJI"]
["8507 80 00","7-PBA","DRUGI, NE PREJ NAVEDENI ELEKTRIČNI AKUMULATORJI","DRUGI, NE PREJ NAVEDENI ELEKTRIČNI AKUMULATORJI"]

{"sheet":"Dodano na seznam glede na 2019","index":1,"n_rows":98,"n_cols":7,"rows_kept":98,"cut":false,"hidden":false,"merged":[[6,0,7,0],[6,1,7,1],[6,2,7,2],[6,3,7,3],[9,0,10,0],[9,1,10,1],[9,2,10,2],[9,3,10,3]]}
[]
["Tarifne oznake dodane na seznam, glede na seznam iz leta  2019",null,null,null,null,"Opombe:"]
["tarifna oznaka","razred *","ime proizvoda","opis proizvoda"]
["8414 70 00","4 ali 5","NEPRODUŠNE BIOLOŠKE VARNOSTNE OMARICE","NEPRODUŠNE BIOLOŠKE VARNOSTNE OMARICE",null,"Vsebinska razširitev obstoječe tarifne oznake 8414 60 00,  v še dodatno novo tarifno oznako."]
["8472 90 80","4 ali 6","PISARNIŠKI STROJI,DRUGI, DRUGJE NEOMENJENI (BANKOMATI)","PISARNIŠKI STROJI, DRUGI, DRUGJE NEOMENJENI",null,"Združeni dve tarifni oznaki  (8472 90 30 in 8472 90 90) v eno novo tarifno oznako."]
["8517 13 00",6,"TELEFONSKI APARATI","PAMETNI TELEFONI"]
["8517 14 00",6,"TELEFONSKI APARATI","DRUGI TELEFONI ZA MOBILNO TELEFONIJO IN DRUGA BREZŽIČNA OMREŽJA",null,"Ukinitev tarifne oznake 8517 12 00, namesto nje dve novi tarifni oznaki"]
[]
["8517 71 00","4 ali 5","ANTENE","DELI DRUGIH APARATOV ZA PRENOS ALI SPREJEM GLASU, SLIKE ALI DRUGIH PODATKOV: ANTENE IN ANTENSKI REFLEKTORJI VSEH VRST; DELI, NAMENJENI ZA UPORABO Z NJIMI",null,"Ukinitev tarifne oznake 8517 70 00, namesto nje dve novi tarifni oznaki"]
["8517 79 00","4 ali 5","ANTENE","DELI NAPRAV ZA TELEKOMUNIKACIJO, DRUGI,ANTENE ZA TELEGRAFSKE IN RADIOTELEFONSKE APARATE"]
[]
["8518 10 00",5,"MIKROFONI","MIKROFONI IN NJIHOVA STOJALA",null,"Dve tarifni oznaki  (8518 10 30 in 8518 10 95) združeni v eno novo tarifno oznako."]
["8518 29 00","4 ali 5","ZVOČNIKI","ZVOČNIKI,VKLJUČNO Z  ZVOČNIKIH V ZVOČNIH OHIŠJIH, DRUGI",null,"Združeni dve tarifni oznaki (8518 29 30 , 8518 29 95) v eno novo tarifno oznako."]
["8518 30 00",6,"NAGLAVNE SLUŠALKE IN UŠESNE SLUŠALKE KOMBINIRANE Z MIKROFONOM ALI NE, IN KOMPLETI, KI SESTOJIJO IZ MIKROFONA IN ENEGA ALI VEČ ZVOČNIKOV","NAGLAVNE SLUŠALKE IN UŠESNE SLUŠALKE, KOMBINIRANE Z MIKROFONOM ALI NE, IN KOMPLETI, KI SESTOJIJO IZ MIKROFONA IN ENEGA ALI VEČ ZVOČNIKOV",null,"Združeni dve tarifni oznaki (8518 30 20 in 8518 30 95) v eno novo tarifno oznako."]
["8518 40 00",5,"OJAČEVALNIKI","AVDIOFREKVENČNI ELEKTRIČNI OJAČEVALNIKI",null,"Združeni dve tarifni oznaki (8518 40 30 in 8518 40 80) v eno novo tarifno oznako."]
["8519 81 00",5,"DRUGI APARATI ZA SNEMANJE ALI REPRODUKCIJO ZVOKA","DRUGI APARATI ZA SNEMANJE ALI REPRODUKCIJO ZVOKA Z UPORABO MAGNETNEGA, OPTIČNEGA ALI POLPREVODNIŠKEGA MEDIJA",null,"Združenih devet tarifnih oznak (8519 81 11, 8519 81 15, 8519 81 21, 8519 81 25, 8519 81 35, 8519 81 45, 8519 81 51, 8519 81 70, 8519 81 95) v eno novo tarifno oznako."]
["8525 81 00","4 ali 5","TV KAMERE, DIGITALNI FOTOAPARATI IN VIDEO SNEMALNE KAMERE","VISOKOHITROSTNE TELEVIZIJSKE KAMERE, DIGITALNE FOTOAPARATE IN VIDEO SNEMALNE KAMERE Z ENO ALI VEČ NASLEDNJIH ZNAČILNOSTI: – HITROST ZAPISA VEČ KOT 0,5 MM NA MIKROSEKUNDO, – ČASOVNA RESOLUCIJA 50 NANOSEKUND ALI MANJ, – VZORČEVALNI ČAS SLIKE VEČ KOT 225 000 SLIK NA SEKUNDO."]
["8525 82 00","4 ali 5","TV KAMERE, DIGITALNI FOTOAPARATI IN VIDEO SNEMALNE KAMERE","RADIACIJSKO UTRJENE ALI RADIACIJSKO VZDRŽNE TELEVIZIJSKE KAMERE, DIGITALNI FOTOAPARATI IN VIDEO SNEMALNE KAMERE ZASNOVANE ALI ZAŠČITENE TAKO, DA OMOGOČAJO DELOVANJE V OKOLJU Z VISOKIM SEVANJEM. TE KAMERE SO ZASNOVANE TAKO, DA VZDRŽIJO SKUPNO DOZO SEVANJA VSAJ 50 × 103 Gy (SILICIJ) (5 × 106 RAD (SILICIJ)), NE DA BI TO VPLIVALO NA NJIHOVO DELOVANJE.",null,"Ukinitev obstoječe tarifne oznake 8525 80 11, nastanejo štiri nove tarifne oznake."]
["8525 83 00","4 ali 5","TV KAMERE, DIGITALNI FOTOAPARATI IN VIDEO SNEMALNE KAMERE","NOČNE TELEVIZIJSKE KAMERE, DIGITALNE FOTOAPARATE IN VIDEO SNEMALNE KAMERE, KI UPORABLJAJO FOTOKATODO ZA PRETVARJANJE RAZPOLOŽLJIVE SVETLOBE V ELEKTRONE, KI SE LAHKO OJAČAJO IN PRETVORIJO V VIDNO SLIKO. TA TAR. PODŠT. IZKLJUČUJE KAMERE ZA TOPLOTNO SLIKOVNO SNEMANJE IN OBDELAVO (OBIČAJNO TAR. PODŠT. 8525 89).",null,null,"Ukinitev obstoječih tarifnih oznak 8525 80 19, 8525 80 30, 8525 80 91, 8525 80 99, nastane šest novih tarifnih oznake."]
["8525 89 00","4 ali 5","TV KAMERE, DIGITALNI FOTOAPARATI IN VIDEO SNEMALNE KAMERE","DRUGO"]
["8806 21 10",5,"DRONI, SAMO ZA DALJINSKO VODENE POLETE","Z NAJVEČJO VZLETNO MASO NAJVEČ 250 g - Z VEČ ROTORJI, OPREMLJENI S TRAJNO VGRAJENIMI APARATI IZ TARIFNE PODŠTEVILKE 8525 89 ZA SNEMANJE IN SHRANJEVANJE VIDEO POSNETKOV IN MIRUJOČIH SLIK"]
["8806 22 10","4 ali 5","DRONI, SAMO ZA DALJINSKO VODENE POLETE","Z NAJVEČJO VZLETNO MASO VEČ KOT 250 g, VENDAR NE VEČ KOT 7 kg - Z VEČ ROTORJI, OPREMLJENI S TRAJNO VGRAJENIMI APARATI IZ TARIFNE PODŠTEVILKE 8525 89 ZA SNEMANJE IN SHRANJEVANJE VIDEO POSNETKOV IN MIRUJOČIH SLIK"]
["8527 12 00",5,"RADIO KASETOFONI","RADIODIF.SPREJMNIKI, ŽEPNE VELIKOSTI, KI LAHKO DELUJEJO BREZ ZUNANJEGA VIRA ENERGIJE",null,"Združeni dve tarifni oznaki (8527 12 10, 8527 12 90) v eno novo tarifno oznako."]
["8527 13 00",5,"RADIO KASETOFONI","RADIODIF. SPREJEMNIKI KOMBINIRANI Z APARATOM ZA SNEMANJE ALI REPRODUKCIJO ZVOKA, KI LAHKO DELUJEJO BREZ ZUNANJEGA VIRA ENERGIJE",null,"Združene tri tarifne oznake (8527 13 10, 8527 13 91, 8527 13 99) v eno novo tarifno oznako."]
["8527 91 00",5,"RADIJSKI APARATI","RADIODIF. SPREJEMNIKI KOMBINIRANI Z APARATOM ZA SNEMANJE ALI REPRODUKCIJO ZVOKA",null,"Združenih pet tarifnih oznak (8527 91 11, 8527 91 19, 8527 91 35, 8527 91 91, 8527 91 99) v eno novo tarifno oznako."]
["8527 92 00",5,"RADIJSKI APARATI KOMBINIRANI Z URO","RADIODIF. SPREJEMNIKI NEKOMBINIRANI Z APARATOM ZA SNEMANJE ALI REPRODUKCIJO ZVOKA, VENDAR KOMBINIRANI Z URO",null,"Združeni dve tarifni oznaki (8527 92 10, 8527 92 90) v eno novo tarifno oznako."]
["8529 10 30","4 ALI 5","ANTENE","DELI NAPRAV ZA TELEKOMUNIKACIJO, ANTENE IN ANTENSKI RAFLEKTORJI VSEH VRST, ZUNANJE ANTENE ZA RADIJSKE ALI TV OMREŽNE SPREJEMNIKE",null,"Združeni dve tarifni oznaki (8529 10 31, 8529 10 39) v eno novo tarifno oznako."]
["8541 42 00","4 ali 5","FOTOOBČUTLJIVI POLPREVODNIŠKI ELEMENTI, FOTONAPETOSTNE CELICE","FOTONAPETOSTNE CELICE, KI NISO SESTAVLJENE V MODULE ALI PLOŠČE"]
["8541 43 00",4,"FOTOOBČUTLJIVI POLPREVODNIŠKI ELEMENTI, FOTONAPETOSTNE CELICE","FOTONAPETOSTNE CELICE, SESTAVLJENE V MODULE ALI PLOŠČE",null,"Ukinjena obstoječa tarifna oznaka 8541 40 90, nastanejo tri nove tarifne oznake."]
["8541 49 00","4 ali 5","FOTOOBČUTLJIVI POLPREVODNIŠKI ELEMENTI, FOTONAPETOSTNE CELICE","DRUGI"]
["8543 40 00",5,"ELEKTRONSKE CIGARETE","ELEKTRONSKE CIGARETE IN PODOBNI ELEKTRIČNI UPARJALNIKI ZA OSEBNO RABO (VEJPI)",null,"Ukinjena obstoječa tarifna oznaka 8543 70 70, nastane nova tarifna oznaka."]
["8539 51 00",3,"MODULI S SVETLEČIMI DIODAMI (LED)","SVETLOBNI VIRI S SVETLEČIMI DIODAMI (LED)"]
["8539 52 00",3,"SIJALKE S SVETLEČIMI DIODAMI (LED)","SVETLOBNI VIRI S SVETLEČIMI DIODAMI (LED)",null,"Ukinjena obstoječa tarifna oznaka 8539 50 00, nastane nova tarifna oznaka."]
["9405 11 40","4 ali 5","STROPNE ALI STENSKE SVETILKE","LESTENCI IN DRUGE ELEKTRIČNE STROPNE ALI STENSKE SVETILKE, RAZEN ZA RAZSVETLJAVO JAVNIH ODPRTIH PROSTOROV ALI PROMETNIH POTI, ZASNOVANI ZA UPORABO SAMO Z LED SVETLOBNIMI VIRI, IZ PLASTIČNIH MAS ALI IZ KERAMIČNIH SNOVI",null,"Ukinjena obstoječa tarifna oznaka 9405 10 40, vsebina se razdeli v tri nove tarifne oznake."]
["9405 11 50","4 ali 5","STROPNE ALI STENSKE SVETILKE","LESTENCI IN DRUGE ELEKTRIČNE STROPNE ALI STENSKE SVETILKE, RAZEN ZA RAZSVETLJAVO JAVNIH ODPRTIH PROSTOROV ALI PROMETNIH POTI, ZASNOVANI ZA UPORABO SAMO Z LED SVETLOBNIMI VIRI, STEKLENI",null,"Ukinjena obstoječa tarifna oznaka 9405 10 50, vsebina se razdeli v tri nove tarifne oznake."]
["9405 11 90","4 ali 5","STROPNE ALI STENSKE SVETILKE","LESTENCI IN DRUGE ELEKTRIČNE STROPNE ALI STENSKE SVETILKE, RAZEN ZA RAZSVETLJAVO JAVNIH ODPRTIH PROSTOROV ALI PROMETNIH POTI, ZASNOVANI ZA UPORABO SAMO Z LED SVETLOBNIMI VIRI, IZ DRUGIH MATERIALOV",null,"Ukinjena obstoječa tarifna oznaka 9405 10 98, vsebina se razdeli v tri nove tarifne oznake."]
["9405 19 40","4 ali 5","STROPNE ALI STENSKE SVETILKE","LESTENCI IN DRUGE ELEKTRIČNE STROPNE ALI STENSKE SVETILKE, RAZEN ZA RAZSVETLJAVO JAVNIH ODPRTIH PROSTOROV ALI PROMETNIH POTI, IZ PLASTIČNIH MAS ALI IZ KERAMIČNIH SNOVI",null,"Ukinjena obstoječa tarifna oznaka 9405 10 21, nastane nova tarifna oznaka. Ukinjena obstoječa tarifna oznaka 9405 10 40, vsebina se razdeli v tri nove tarifne oznake."]
["9405 19 50","4 ali 5","STROPNE ALI STENSKE SVETILKE","LESTENCI IN DRUGE ELEKTRIČNE STROPNE ALI STENSKE SVETILKE, RAZEN ZA RAZSVETLJAVO JAVNIH ODPRTIH PROSTOROV ALI PROMETNIH POTI, STEKLENI",null,"Ukinjena obstoječa tarifna oznaka 9405 10 50, vsebina se razdeli v tri nove tarifne oznake."]
["9405 19 90","4 ali 5","STROPNE ALI STENSKE SVETILKE","LESTENCI IN DRUGE ELEKTRIČNE STROPNE ALI STENSKE SVETILKE, RAZEN ZA RAZSVETLJAVO JAVNIH ODPRTIH PROSTOROV ALI PROMETNIH POTI,  IZ DRUGIH MATERIALOV",null,"Ukinjena obstoječa tarifna oznaka 9405 10 91, nastane nova tarifna oznaka.  Ukinjena obstoječa tarifna oznaka 9405 10 98, vsebina se razdeli v tri nove tarifne oznake."]
["9405 21 40",5,"SVETILKE, KI SE POSTAVIJO NA MIZO, OB POSTELJO ALI NA TLA","ELEKTRIČNE SVETILKE, KI SE POSTAVIJO NA MIZO, OB POSTELJO ALI NA TLA, ZASNOVANE ZA UPORABO SAMO Z LED SVETLOBNIMI VIRI, IZ PLASTIČNIH MAS ALI IZ KERAMIČNIH SNOVI",null,"Ukinjena obstoječa tarifna oznaka 9405 20 40, vsebina se razdeli v tri nove tarifne oznake."]
["9405 21 50",5,"SVETILKE, KI SE POSTAVIJO NA MIZO, OB POSTELJO ALI NA TLA","ELEKTRIČNE SVETILKE, KI SE POSTAVIJO NA MIZO, OB POSTELJO ALI NA TLA, ZASNOVANE ZA UPORABO SAMO Z LED SVETLOBNIMI VIRI, STEKLENE",null,"Ukinjena obstoječa tarifna oznaka 9405 20 50, vsebina se razdeli v tri nove tarifne oznake."]
["9405 21 90",5,"SVETILKE, KI SE POSTAVIJO NA MIZO, OB POSTELJO ALI NA TLA","ELEKTRIČNE SVETILKE, KI SE POSTAVIJO NA MIZO, OB POSTELJO ALI NA TLA, ZASNOVANE ZA UPORABO SAMO Z LED SVETLOBNIMI VIRI, IZ DRUGIH MATERIALOV",null,"Ukinjena obstoječa tarifna oznaka 9405 20 99, vsebina se razdeli v tri nove tarifne oznake."]
["9405 29 40",5,"SVETILKE, KI SE POSTAVIJO NA MIZO, OB POSTELJO ALI NA TLA","ELEKTRIČNE SVETILKE, KI SE POSTAVIJO NA MIZO, OB POSTELJO ALI NA TLA, IZ PLASTIČNIH MAS ALI IZ KERAMIČNIH SNOVI",null,"Ukinjena obstoječa tarifna oznaka 9405 20 11, nastane nova tarifna oznaka.  Ukinjena obstoječa tarifna oznaka 9405 20 40, vsebina se razdeli v tri nove tarifne oznake."]
["9405 29 50",5,"SVETILKE, KI SE POSTAVIJO NA MIZO, OB POSTELJO ALI NA TLA","ELEKTRIČNE SVETILKE, KI SE POSTAVIJO NA MIZO, OB POSTELJO ALI NA TLA,STEKLENE",null,"Ukinjena obstoječa tarifna oznaka 9405 20 50, vsebina se razdeli v tri nove tarifne oznake."]
["9405 29 90",5,"SVETILKE, KI SE POSTAVIJO NA MIZO, OB POSTELJO ALI NA TLA","ELEKTRIČNE SVETILKE, KI SE POSTAVIJO NA MIZO, OB POSTELJO ALI NA TLA, IZ DRUGIH MATERIALOV",null,"Ukinjena obstoječa tarifna oznaka 9405 20 99, vsebina se razdeli v tri nove tarifne oznake."]
["9405 31 00",5,"SVETLOBNE VERIGE ZA RAZSVETLJAVO BOŽIČNIH DREVESC","SVETLOBNE VERIGE ZASNOVANE ZA UPORABO SAMO Z LED SVETLOBNIMI VIRI",null,"Ukinjena obstoječa tarifna oznaka 9405 30 00, vsebina se razdeli v tri nove tarifne oznake."]
["9405 39 00",5,"SVETLOBNE VERIGE ZA RAZSVETLJAVO BOŽIČNIH DREVESC","DRUGE SVETLOBNE VERIGE ",null,"Ukinjena obstoječa tarifna oznaka 9405 30 00, vsebina se razdeli v tri nove tarifne oznake."]
["9405 41 10","4 ali 5","DRUGE ELEKTRIČNE SVETILKE","FOTONAPETOSTNE ELEKTRIČNE SVETILKE, ZASNOVANE ZA UPORABO SAMO Z LED SVETLOBNIMI VIRI, REFLEKTORJI IN ŽAROMETI",null,"Ukinjena obstoječa tarifna oznaka 9405 40 10, vsebina se razdeli v štiri nove tarifne oznake."]
["9405 41 31","4 ali 5","DRUGE ELEKTRIČNE SVETILKE","FOTONAPETOSTNE ELEKTRIČNE SVETILKE, ZASNOVANE ZA UPORABO SAMO Z LED SVETLOBNIMI VIRI, IZ PLASTIČNIH MATERIALOV",null,"Ukinjena obstoječa tarifna oznaka 9405 40 39, vsebina se razdeli v štiri nove tarifne oznake."]
["9405 41 39","4 ali 5","DRUGE ELEKTRIČNE SVETILKE","FOTONAPETOSTNE ELEKTRIČNE SVETILKE, ZASNOVANE ZA UPORABO SAMO Z LED SVETLOBNIMI VIRI, DRUGE",null,"Ukinjena obstoječa tarifna oznaka 9405 40 99, vsebina se razdeli v štiri nove tarifne oznake."]
["9405 42 10","4 ali 5","DRUGE ELEKTRIČNE SVETILKE","DRUGE ELEKTRIČNE SVETILKE, ZASNOVANE ZA UPORABO SAMO Z LED SVETLOBNIMI VIRI, REFLEKTORJI IN ŽAROMETI",null,"Ukinjena obstoječa tarifna oznaka 9405 40 10, vsebina se razdeli v štiri nove tarifne oznake."]
["9405 42 31","4 ali 5","DRUGE ELEKTRIČNE SVETILKE","DRUGE ELEKTRIČNE SVETILKE, ZASNOVANE ZA UPORABO SAMO Z LED SVETLOBNIMI VIRI, IZ PLASTIČNIH MATERIALOV",null,"Ukinjena obstoječa tarifna oznaka 9405 40 39, vsebina se razdeli v štiri nove tarifne oznake."]
["9405 42 39","4 ali 5","DRUGE ELEKTRIČNE SVETILKE","DRUGE ELEKTRIČNE SVETILKE, ZASNOVANE ZA UPORABO SAMO Z LED SVETLOBNIMI VIRI, DRUGE",null,"Ukinjena obstoječa tarifna oznaka 9405 40 99, vsebina se razdeli v štiri nove tarifne oznake."]
["9405 49 10","4 ali 5","DRUGE ELEKTRIČNE SVETILKE","DRUGE ELEKTRIČNE SVETILKE, REFLEKTORJI IN ŽAROMETI",null,"Ukinjena obstoječa tarifna oznaka 9405 40 10, vsebina se razdeli v štiri nove tarifne oznake."]
["9405 49 40","4 ali 5","DRUGE ELEKTRIČNE SVETILKE","DRUGE ELEKTRIČNE SVETILKE, IZ PLASTIČNIH MATERIALOV",null,"Ukinjena obstoječa tarifna oznaka 9405 40 39, vsebina se razdeli v štiri nove tarifne oznake."]
["9405 49 90","4 ali 5","DRUGE ELEKTRIČNE SVETILKE","DRUGE ELEKTRIČNE SVETILKE, IZ DRUGIH MATERIALOV",null,"Ukinjena obstoječa tarifna oznaka 9405 40 91, nastane nova tarifna oznaka.  Ukinjena obstoječa tarifna oznaka 9405 40 95, nastane nova tarifna oznaka. Ukinjena obstoječa tarifna oznaka 9405 40 99, vsebina se razdeli v štiri nove tarifne oznake."]
["9405 61 20","4 ali 5","OSVETLJENI ZNAKI, OSVETLJENE PLOŠČE Z IMENI IN PODOBNO","OSVETLJENI ZNAKI, PLOŠČE, ZASNOVANI ZA UPORABO SAMO Z LED SVETLOBNIMI VIRI, IZ PLASTIČNIH MAS",null,"Ukinjena obstoječa tarifna oznaka 9405 60 20, vsebina se razdeli v dve novi tarifni oznaki."]
["9405 61 80","4 ali 5","OSVETLJENI ZNAKI, OSVETLJENE PLOŠČE Z IMENI IN PODOBNO","OSVETLJENI ZNAKI, PLOŠČE IZ PLASTIČNIH MAS",null," Ukinjena obstoječa tarifna oznaka 9405 60 80, vsebina se razdeli v dve novi tarifni oznaki."]
["9405 69 20","4 ali 5","OSVETLJENI ZNAKI, OSVETLJENE PLOŠČE Z IMENI IN PODOBNO","OSVETLJENI ZNAKI, PLOŠČE, ZASNOVANI ZA UPORABO SAMO Z LED SVETLOBNIMI VIRI, IZ DRUGIH MATERIALOV",null,"Ukinjena obstoječa tarifna oznaka 9405 60 20, vsebina se razdeli v dve novi tarifni oznaki."]
["9405 69 80","4 ali 5","OSVETLJENI ZNAKI, OSVETLJENE PLOŠČE Z IMENI IN PODOBNO","OSVETLJENI ZNAKI, PLOŠČE, IZ DRUGIH MATERIALOV",null,"Ukinjena obstoječa tarifna oznaka 9405 60 80, vsebina se razdeli v dve novi tarifni oznaki."]
["8514 31 10","4 ali 5","INDUSTRIJSKE ALI LABORATORIJSKE PEČI","PEČI Z ELEKTRONSKIM SNOPOM, KI SE UPORABLJAJO SAMO ALI ZLASTI ZA IZDELAVO TISKANIH VEZIJ ALI SKLOPOV TISKANIH VEZIJ",null,"Ukinjena obstoječa tarifna oznaka 8514 30 20 , vsebina se razdeli v tri nove tarifne oznake."]
["8514 31 90","4 ali 5","INDUSTRIJSKE ALI LABORATORIJSKE PEČI","PEČI Z ELEKTRONSKIM SNOPOM, DRUGE",null,"Ukinjena obstoječa tarifna oznaka 8514 30 80 , vsebina se razdeli v tri nove tarifne oznake."]
["8514 32 10","4 ali 5","INDUSTRIJSKE ALI LABORATORIJSKE PEČI","PLAZEMSKE IN VAKUUMSKE OBLOČNE PEČI, KI SE UPORABLJAJO SAMO ALI ZLASTI ZA IZDELAVO TISKANIH VEZIJ ALI SKLOPOV TISKANIH VEZI",null,"Ukinjena obstoječa tarifna oznaka 8514 30 20 , vsebina se razdeli v tri nove tarifne oznake."]
["8514 32 90","4 ali 5","INDUSTRIJSKE ALI LABORATORIJSKE PEČI","PLAZEMSKE IN VAKUUMSKE OBLOČNE PEČI, DRUGE",null,"Ukinjena obstoječa tarifna oznaka 8514 30 80 , vsebina se razdeli v tri nove tarifne oznake."]
["8514 39 10","4 ali 5","INDUSTRIJSKE ALI LABORATORIJSKE PEČI","DRUGE PEČI, KI SE UPORABLJAJO SAMO ALI ZLASTI ZA IZDELAVO TISKANIH VEZIJ ALI SKLOPOV TISKANIH VEZI",null,"Ukinjena obstoječa tarifna oznaka 8514 30 20 , vsebina se razdeli v tri nove tarifne oznake."]
["8514 39 90","4 ali 5","INDUSTRIJSKE ALI LABORATORIJSKE PEČI","DRUGE PEČI",null,"Ukinjena obstoječa tarifna oznaka 8514 30 80 , vsebina se razdeli v tri nove tarifne oznake."]
["9011 10 00",4,"OPTIČNI MIKROSKOPI","STEREOSKOPSKI MIKROSKOPI",null,"Ukinjena obstoječa tarifna oznaka 9011 10 90 , nastane nova tarifna oznaka."]
["9019 20 10","4 ali 5","APARATI ZA OZONOTERAPIJO, KISIKOTERAPIJO,AEROSOLNO TERAPIJO,UMETNO DIHANJE IN DRUGI TERAPEVTSKI DIHALNI APARATI","MEHANSKI VENTILATORJI, PRIMERNI ZA INVAZIVNO PODPORO DIHANJA"]
["9019 20 20","4 ali 5","APARATI ZA OZONOTERAPIJO, KISIKOTERAPIJO,AEROSOLNO TERAPIJO,UMETNO DIHANJE IN DRUGI TERAPEVTSKI DIHALNI APARATI","MEHANSKI VENTILATORJI, NEINVAZIVNI",null,"Tarifna oznaka 9019 20 00 se razdeli na tri nove tarifne oznake."]
["9019 20 90","4 ali 5","APARATI ZA OZONOTERAPIJO, KISIKOTERAPIJO,AEROSOLNO TERAPIJO,UMETNO DIHANJE IN DRUGI TERAPEVTSKI DIHALNI APARATI","DRUGO, BREZ DELOV IN PRIBORA"]
["9015 10 00",4,"DALJINOMERI","DALJINOMERI",null,"Dve tarifni oznaki 9015 10 10 in 9015 10 90 združeni v eno novo tarifno oznako."]
["9015 20 00",4,"TEODOLITI IN TAHIMETRI","TEODOLITI IN TAHIMETRI",null,"Dve tarifni oznaki 9015 20 10 in 9015 20 90 združeni v eno novo tarifno oznako."]
["9025 19 00",5,"TERMOMETRI IN PIROMETRI","TERMOMETRI IN PIROMETRI, KI NISO KOMBINIRANI Z DRUGIMI INSTRUMENTI, DRUGI",null,"Ukinitev obstoječe tarifne oznake 9025 19 20, nastane nova tarifna oznaka."]
["9027 89 10","4 ali 5","EKSPOZIMETRI","DRUGI INSTRUMENTI IN APARATI, EKSPOZIMETRI",null,"Ukinitev obstoječe tarifne oznake 9027 80 05, nastane nova tarifna oznaka."]
["9027 81 00",5,"INSTRUMENTI IN APARATI ZA FIZIKALNE ALI KEMIČNE ANALIZE; INSTRUMENTI IN APARATI ZA MERJENJE IN KONTROLO VISKOZNOSTI, POROZNOSTI, RAZTEZANJA, POVRŠINSKE NAPETOSTI IN PODOBNO; INSTRUMENTI IN APARATI ZA MERJENJE ALI KONTROLIRANJE TOPLOTE, ZVOKA ALI SVETLOBE","MASNI SPEKTROMETRI",null,"Ukinitev obstoječih tarifnih oznak 9027 80 13, 9027 80 17, 9027 80 91, nastaneta dve novi tarifni oznaki."]
["9027 89 90",5,"INSTRUMENTI IN APARATI ZA FIZIKALNE ALI KEMIČNE ANALIZE; INSTRUMENTI IN APARATI ZA MERJENJE IN KONTROLO VISKOZNOSTI, POROZNOSTI, RAZTEZANJA, POVRŠINSKE NAPETOSTI IN PODOBNO; INSTRUMENTI IN APARATI ZA MERJENJE ALI KONTROLIRANJE TOPLOTE, ZVOKA ALI SVETLOBE","DRUGI"]
["9027 90 00",5,"MIKROTOMI","MIKROTOMI",null,"Ukinitev obstoječe tarifne oznake 9027 90 10, nastane nova tar. oznaka."]
["9030 33 70",5,"DRUGI ELEKTRONSKI INSTRUMENTI IN APARATI","DRUGI INSTRUMENTI IN APARATI ZA MERJENJE ALI KONTROLO ELEKTRIČNE NAPETOSTI, TOKA, UPORNOSTI ALI MOČI, DRUGI, BREZ NAPRAVE ZA REGISTRIRANJE",null,"Združeni dve tarifni oznaki 9030 33 30 in 9030 33 80 v eno novo tarifno oznako. "]
["9030 89 00",5,"DRUGI INSTRUMENTI IN APARATI ZA MERJENJE ALI KONTROLO ELEKTRIČNIH VELIČIN, ELEKTRONSKI","DRUGI INSTRUMENTI IN APARATI ZA MERJENJE ALI KONTROLO ELEKTRIČNIH VELIČIN, ELEKTRONSKI",null,"Združeni dve tarifni oznaki 9030 89 30 in 9030 89 80 v eno novo tarifno oznako. "]
["8507 80 00","7-PBA","DRUGI, NE PREJ NAVEDENI ELEKTRIČNI AKUMULATORJI","DRUGI, NE PREJ NAVEDENI ELEKTRIČNI AKUMULATORJI",null,"Ukinitev obstoječe tarifne oznake 8507 40 00, vsebina preide v že obstoječo tarifno oznako na seznamu."]
["8485 10 00",4,"STROJI ZA ADITIVNO PROIZVODNJO (3D TISKALNIKI)","STROJI ZA ADITIVNO PROIZVODNJO (3D TISKALNIKI), Z NANOSOM KOVIN",null,"Dodani novejši proizvodi, ki se uvrščajo v EE opremo "]
["8485 20 00",4,"STROJI ZA ADITIVNO PROIZVODNJO (3D TISKALNIKI)","STROJI ZA ADITIVNO PROIZVODNJO (3D TISKALNIKI),Z NANOSOM PLASTIČNIH MAS ALI GUME",null,"Dodani novejši proizvodi, ki se uvrščajo v EE opremo "]
["8485 30 10",4,"STROJI ZA ADITIVNO PROIZVODNJO (3D TISKALNIKI)","STROJI ZA ADITIVNO PROIZVODNJO (3D TISKALNIKI), Z NANOSOM MAVCA, CEMENTA ALI KERAMIKE",null,"Dodani novejši proizvodi, ki se uvrščajo v EE opremo "]
["8485 30 90",4,"STROJI ZA ADITIVNO PROIZVODNJO (3D TISKALNIKI)","STROJI ZA ADITIVNO PROIZVODNJO (3D TISKALNIKI), Z NANOSOM STEKLA",null,"Dodani novejši proizvodi, ki se uvrščajo v EE opremo "]
["8485 80 00",4,"STROJI ZA ADITIVNO PROIZVODNJO (3D TISKALNIKI)","STROJI ZA ADITIVNO PROIZVODNJO (3D TISKALNIKI),DRUGI",null,"Dodani novejši proizvodi, ki se uvrščajo v EE opremo "]
["8524 11 00",2,"MODULI Z RAVNIMI PRIKAZOVALNIKI, Z ZASLONI NA DOTIK ALI BREZ (brez gonilnikov ali gonilnih tokokrogov)","MODULI IZ TEKOČIH KRISTALOV",null,"Dodani novejši proizvodi, ki se uvrščajo v EE opremo "]
["8524 12 00",2,"MODULI Z RAVNIMI PRIKAZOVALNIKI, Z ZASLONI NA DOTIK ALI BREZ (brez gonilnikov ali gonilnih tokokrogov)","MODULI IZ ORGANSKIH SVETLEČIH DIOD (OLED)",null,"Dodani novejši proizvodi, ki se uvrščajo v EE opremo "]
["8524 19 00",2,"MODULI Z RAVNIMI PRIKAZOVALNIKI, Z ZASLONI NA DOTIK ALI BREZ (brez gonilnikov ali gonilnih tokokrogov)","MODULI, DRUGI",null,"Dodani novejši proizvodi, ki se uvrščajo v EE opremo "]
["8524 91 00",2,"MODULI Z RAVNIMI PRIKAZOVALNIKI, Z ZASLONI NA DOTIK ALI BREZ, drugi","MODULI IZ TEKOČIH KRISTALOV",null,"Dodani novejši proizvodi, ki se uvrščajo v EE opremo "]
["8524 92 00",2,"MODULI Z RAVNIMI PRIKAZOVALNIKI, Z ZASLONI NA DOTIK ALI BREZ, drugi","MODULI IZ ORGANSKIH SVETLEČIH DIOD (OLED)",null,"Dodani novejši proizvodi, ki se uvrščajo v EE opremo "]
["8524 99 00",2,"MODULI Z RAVNIMI PRIKAZOVALNIKI, Z ZASLONI NA DOTIK ALI BREZ, drugi","MODULI, DRUGI",null,"Dodani novejši proizvodi, ki se uvrščajo v EE opremo "]
["8514 11 00","4 ali 5","ELEKTRIČNE UPOROVNE PEČI","IZOSTATIČNE STISKALNICE ZA DELO V VROČEM STANJU",null,"Dodani novejši proizvodi, ki se uvrščajo v EE opremo "]
["8514 19 10 ","4 ali 5","ELEKTRIČNE UPOROVNE PEČI","KRUŠNE IN SLAŠČIČARSKE PEČI",null,"Dodani novejši proizvodi, ki se uvrščajo v EE opremo "]
["8514 19 80","4 ali 5","ELEKTRIČNE UPOROVNE PEČI","DRUGE PEČI",null,"Dodani novejši proizvodi, ki se uvrščajo v EE opremo "]
["8419 12 00","4 ali 5","SOLARNI GRELNIKI ZA VODO","PRETOČNI GRELNIKI ZA VODO",null,"Dodani novejši proizvodi, ki se uvrščajo v EE opremo "]
["8419 33 00","4 ali 5","SUŠILNICE","LIOFILIZATORJI, ENOTE ZA SUŠENJE Z ZAMRZOVANJEM IN RAZPRŠILNI SUŠILNIKI",null,"Dodani novejši proizvodi, ki se uvrščajo v EE opremo "]
["8419 34 00","4 ali 5","SUŠILNICE","DRUGE; ZA AGROŽIVILSKE PROIZVODE IN IZDELKE",null,"Dodani novejši proizvodi, ki se uvrščajo v EE opremo "]
["8419 35 00","4 ali 5","SUŠILNICE","DRUGE; ZA LES, PAPIRNO MASO, PAPIR ALI KARTON",null,"Dodani novejši proizvodi, ki se uvrščajo v EE opremo "]

{"sheet":"Brisano s seznama glede na 2019","index":2,"n_rows":148,"n_cols":6,"rows_kept":148,"cut":false,"hidden":false,"merged":[[72,0,73,0],[72,1,73,1],[72,2,73,2],[72,3,73,3],[5,12,6,12],[6,0,7,0],[6,1,7,1],[6,2,7,2],[6,3,7,3],[36,5,41,11],[26,0,29,0],[26,1,29,1],[26,2,29,2],[26,3,29,3],[30,2,35,2],[30,3,35,3],[36,0,41,0],[36,1,41,1],[36,2,41,2],[36,3,41,3],[4,0,5,0],[4,1,5,1],[4,2,5,2],[4,3,5,3],[30,0,35,0],[30,1,35,1],[80,0,82,0],[80,1,82,1],[80,2,82,2],[80,3,82,3],[84,0,86,0],[84,1,86,1],[84,2,86,2],[84,3,86,3],[42,0,47,0],[42,1,47,1],[42,2,47,2],[42,3,47,3],[77,0,79,0],[77,1,79,1],[77,2,79,2],[77,3,79,3],[48,0,53,0],[48,1,53,1],[68,2,70,2],[68,3,70,3],[48,2,53,2],[48,3,53,3],[68,0,70,0],[68,1,70,1],[95,0,97,0],[95,1,97,1],[95,2,97,2],[95,3,97,3],[98,0,100,0],[98,1,100,1],[98,2,100,2],[98,3,100,3],[88,0,90,0],[88,1,90,1],[88,2,90,2],[88,3,90,3],[91,0,93,0],[91,1,93,1],[91,2,93,2],[91,3,93,3],[113,0,116,0],[113,1,116,1],[113,2,116,2],[113,3,116,3],[117,0,118,0],[117,1,118,1],[117,2,118,2],[117,3,118,3],[101,0,104,0],[101,1,104,1],[101,2,104,2],[101,3,104,3],[107,0,110,0],[107,1,110,1],[107,2,110,2],[107,3,110,3],[124,0,126,0],[124,1,126,1],[124,2,126,2],[124,3,126,3],[119,0,120,0],[128,0,130,0],[128,1,130,1],[128,2,130,2],[128,3,130,3],[119,1,120,1],[119,2,120,2],[119,3,120,3],[121,0,123,0],[121,1,123,1],[121,2,123,2],[121,3,123,3],[75,5,75,11],[76,5,76,11],[77,5,79,11],[80,5,82,11],[83,5,83,11],[84,5,86,11],[4,5,5,11],[6,5,7,11],[26,5,29,11],[17,5,25,11],[30,5,35,11],[66,5,67,11],[42,5,47,11],[48,5,53,11],[54,5,55,11],[56,5,58,11],[68,5,70,11],[71,5,71,11],[59,5,63,11],[64,5,65,11],[72,5,73,11],[74,5,74,11],[101,5,104,11],[105,5,105,11],[106,5,106,11],[107,5,110,11],[111,5,111,11],[112,5,112,11],[87,5,87,11],[88,5,90,11],[91,5,93,11],[94,5,94,11],[95,5,97,11],[98,5,100,11],[128,5,130,11],[135,5,135,11],[131,5,132,11],[133,5,134,11],[113,5,116,11],[117,5,118,11],[119,5,120,11],[121,5,123,11],[124,5,126,11],[127,5,127,11],[142,5,142,11],[143,5,143,11],[144,5,144,11],[145,5,145,11],[146,5,146,11],[147,5,147,11],[136,5,136,11],[137,5,137,11],[138,5,140,11],[141,5,141,11]]}
[]
["Tarifne oznake brisane s seznama glede na seznam iz leta  2019",null,null,null,null,"Opombe:"]
["tarifna oznaka","razred *","ime proizvoda","opis proizvoda"]
["8472 90 90","4 ali 6","PISARNIŠKI STROJI,DRUGI, DRUGJE NEOMENJENI","PISARNIŠKI STROJI, DRUGI, DRUGJE NEOMENJENI",null,"Združeni dve tarifni oznaki v eno novo tarifno oznako (8472 90 80)."]
["8517 12 00",6,"TELEFONSKI APARATI","TELEFONI ZA MOBILNO TELEFONIJO IN DRUGA BREZŽIČNA OMREŽJA",null,"Ukinitev tarifne oznake, namesto nje dve novi tarifni oznaki (8517 13 in 8517 14)"]
[]
["8517 70 00","4 ali 5","ANTENE","DELI NAPRAV ZA TELEKOMUNIKACIJO, DRUGI,ANTENE ZA TELEGRAFSKE IN RADIOTELEFONSKE APARATE",null,"Ukinitev tarifne oznake, namesto nje dve novi tarifni oznaki (8517 71 00 in 8517 79 00)"]
[]
["8518 10 30",5,"MIKROFONI","MIKROFONI IN NJIHOVA STOJALA, DRUGI,FREKV.OD 300HZ DO 3.4KHZ, PREMERA DO 10MM, VIŠINE DO 3MM, ZA TELEK.",null,"Združeni dve tarifni oznaki v eno novo tarifno oznako (8518 10 00)."]
["8518 10 95",5,"MIKROFONI","MIKROFONI IN NJIHOVA STOJALA, DRUGI, OSTALI",null,"Združeni dve tarifni oznaki v eno novo tarifno oznako (8518 10 00)."]
["8518 30 20",6,"TELEFONSKE SLUŠALKE ZA ŽIČNE TELEFONSKE APARATE","TELEFONSKE SLUŠALKE ZA ŽIČNE TELEFONSKE APARATE",null,"Združeni dve tarifni oznaki v eno novo tarifno oznako (8518 30 00)."]
["8518 29 30",5,"ZVOČNIKI","ZVOČNIKI,DRUGI, FREKVENCE OD 300HZ DO 3.4KHZ, PREMERA DO 50MM, ZA TELEKOMUNIKACIJO",null,"Združeni dve tarifni oznaki v eno novo tarifno oznako (8518 29 00)."]
["8518 29 95","4 ali 5","ZVOČNIKI","ZVOČNIKI,DRUGI,OSTALI",null,"Združeni dve tarifni oznaki v eno novo tarifno oznako (8518 29 00)."]
["8518 30 95",5,"NAGLAVNE SLUŠALKE IN UŠESNE SLUŠALKE","NAGLAVNE SLUŠALKE, DRUGE",null,"Združeni dve tarifni oznaki v eno novo tarifno oznako (8518 30 00)."]
["8518 40 30",5,"OJAČEVALNIKI","AVDIOFREKVENČNI ELEKTRIČNI OJAČEVALNIKI, DRUGI, TELEFONSKI IN MERILNI OJAČEVANLNIKI",null,"Združeni dve tarifni oznaki v eno novo tarifno oznako (8518 40 00)."]
["8518 40 80",5,"OJAČEVALNIKI","AVDIOFREKVENČNI ELEKTRIČNI OJAČEVALNIKI,DRUGI",null,"Združeni dve tarifni oznaki v eno novo tarifno oznako (8518 40 00)."]
["8519 50 00",6,"APARATI ZA ODGOVARJANJE NA TEL. KLICE","APARATI ZA ODGOVARJANJE NA TEL. KLICE",null,"Ukinitev tarifne oznake, namesto nje nova tarifna oznaka (8519 81 00)"]
["8519 81 11",5,"DIKTAFONI","APARATI ZA REPRODUKCIJO NAREKA (DIKTAFONI)",null,"Združenih devet tarifnih oznak v eno novo tarifno oznako (8519 81 00)."]
["8519 81 15",5,"APARATI ZA REPRODUKCIJO ZVOKA,DRUGI","APARATI ZA REPRODUKCIJO ZVOKA,DRUGI,KASETNI, ŽEPNE VELIKOSTI"]
["8519 81 21",5,"DRUGI KASETNI APARATI","DRUGI KASETNI APARATI,ZA ANALOGNI IN DIGITALNI ZAPIS"]
["8519 81 25",5,"DRUGI KASETNI APARATI","DRUGI KASETNI APARATI"]
["8519 81 35",5,"DRUGI APARATI ZA REPRODUKCIJO ZVOKA","APARATI ZA REPRODUKCIJO ZVOKA,DRUGI, ZA LASERSKO OPTIČNI ZAPIS, DRUGI"]
["8519 81 45",5,"DRUGI APARATI ZA REPRODUKCIJO ZVOKA","APARATI ZA REPRODUKCIJO ZVOKA,DRUGI, ZA LASERSKO OPTIČNI ZAPIS, DRUGI"]
["8519 81 51",5,"DRUGI APARATI ZA REPRODUKCIJO ZVOKA","DIKTIRNI APARATI, KI DELUJEJO SAMO PREKO ZUNANJEGA VIRA ENERGIJE"]
["8519 81 70",5,"MAGNETOFONI","DRUGI MAGNETOFONI Z VGRAJENIMI ENOTAMI ZA REPRODUKCIJO ZVOKA"]
["8519 81 95",5,"DRUGI APARATI ZA SNEMANJE IN REPRODUKCIJO ZVOKA","DRUGI APARATI, KI NE SNEMAJO NA MAGNETNI TRAK"]
["8525 80 11",5,"TV KAMERE","TELEVIZIJSKE KAMERE,S TREMI ALI VEČ SNEMALNIMI CEVMI",null,"Ukinitev tarifne oznake, namesto nje štiri nove tarifne oznake (8525 81 00, 8525 82 00, 8525 83 00, 8525 89 00)."]
[]
[]
[]
["8525 80 19",5,"TV KAMERE","TELEVIZIJSKE KAMERE, DRUGE",null,"Ukinitev tarifne oznake, namesto nje šest novih tarifnih oznak (8525 81 00, 8525 82 00, 8525 83 00, 8525 89 00, 8806 21 10, 8806 22 10)."]
[]
[]
[]
[]
[]
["8525 80 30",5,"DIGITALNI FOTOAPARATI","DIGITALNI FOTOAPARATI",null,"Ukinitev tarifne oznake, namesto nje šest novih tarifnih oznak (8525 81 00, 8525 82 00, 8525 83 00, 8525 89 00, 8806 21 10, 8806 22 10)."]
[]
[]
[]
[]
[]
["8525 80 91",5,"VIDEO SNEMALNE KAMERE","VIDEO SNEMALNE KAMERE,PRIMERNE ZA SNEMANJE ZVOKA IN SLIKE, POSNETE SAMO S TELEVIZIJSKO KAMERO",null,"Ukinitev tarifne oznake, namesto nje šest novih tarifnih oznak (8525 81 00, 8525 82 00, 8525 83 00, 8525 89 00, 8806 21 10, 8806 22 10)."]
[]
[]
[]
[]
[]
["8525 80 99",5,"VIDEO SNEMALNE KAMERE","VIDEO SNEMALNE KAMERE,DRUGE",null,"Ukinitev tarifne oznake, namesto nje šest novih tarifnih oznak (8525 81 00, 8525 82 00, 8525 83 00, 8525 89 00, 8806 21 10, 8806 22 10)."]
[]
[]
[]
[]
[]
["8527 12 10",5,"RADIO KASETOFONI","RADIODIF.SPREJMNIKI, BREZ ZUNANJEGA VIRA ENERGIJE, RADIO KASETOFONI, ŽEPNE VELIKOSTI, ZA ANALOGNO IN DIGITALNO ZAPISOVANJE",null,"Združeni dve tarifni oznaki v eno novo tarifno oznako (8527 12 00)."]
["8527 12 90",5,"RADIO KASETOFONI","RADIODIF.SPREJMNIKI, BREZ ZUNANJEGA VIRA ENERGIJE, RADIO KASETOFONI, ŽEPNE VELIKOSTI, DRUGI"]
["8527 13 10",5,"RADIJSKI APARATI","RADIODIF.SPREJMNIKI, BREZ ZUNANJEGA VIRA ENERGIJE, KOMBINIRANI, ZA LASERSKO OPTIČNI ZAPIS",null,"Združene tri tarifne oznake v eno novo tarifno oznako (8527 13 00)."]
["8527 13 91",5,"RADIJSKI APARATI","RADIODIF.SPREJMNIKI, BREZ ZUNANJEGA VIRA ENERGIJE, KOMBINIRANI, DRUGI,KASETNE IZVEDBE ZA ANALOGNI IN DIGITALNI ZAPIS"]
["8527 13 99",5,"RADIJSKI APARATI","RADIODIF.SPREJMNIKI, BREZ ZUNANJEGA VIRA ENERGIJE, KOMBINIRANI, DRUGI, OSTALI"]
["8527 91 11",5,"RADIJSKI APARATI","RADIODIF.SPREJEMNIKI, DRUGI,KOMBINIRANI, Z ENIM ALI VEČ ZVOČNIKI, KASETNE IZVEDBE ZA ANALOGNI IN DIGITALNI ZAPIS",null,"Združenih pet tarifnih oznak v eno novo tarifno oznako (8527 91 00)."]
["8527 91 19",5,"RADIJSKI APARATI","RADIODIF.SPREJEMNIKI, DRUGI,KOMBINIRANI, Z ENIM ALI VEČ ZVOČNIKI, DRUGI"]
["8527 91 35",5,"RADIJSKI APARATI","RADIODIF.SPREJEMNIKI, DRUGI, KOMBINIRANI, DRUGI,ZA LASERSKO OPTIČNI ZAPIS"]
["8527 91 91",5,"RADIJSKI APARATI","RADIODIF.SPREJEMNIKI, DRUGI, KOMBINIRANI, DRUGI,KASETNE IZVEDBE ZA ANALOGNI IN DIGITALNI ZAPIS"]
["8527 91 99",5,"RADIJSKI APARATI","RADIODIF.SPREJEMNIKI, DRUGI,KOMBINIRANI, DRUGI, OSTALI"]
["8527 92 10",5,"RADIJSKE BUDILKE","RADIODIF.SPREJEMNIKI,DRUGI, KOMBINIRANI Z URO, RADIJSKE BUDILKE",null,"Združeni dve tarifni oznaki v eno novo tarifno oznako (8527 92 00)."]
["8527 92 90",5,"RADIODIF.SPREJEMNIKI,DRUGI, KOMBINIRANI Z URO, OSTALI","RADIODIF.SPREJEMNIKI,DRUGI, KOMBINIRANI Z URO, OSTALI"]
["8529 10 31","4 ali 5","ANTENE","DELI NAPRAV ZA TELEKOMUNIKACIJO, ANTENE VSEH VRST,DRUGI, ANTENE,ZUNANJE, RADIJSKE ALI TV, ZA SPREJEM PREKO SATELITA",null,"Združeni dve tarifni oznaki v eno novo tarifno oznako (8529 10 30)."]
["8529 10 39","4 ali 5","ANTENE","DELI NAPRAV ZA TELEKOMUNIKACIJO, ANTENE VSEH VRST, DRUGI,  ANTENE, ZUNANJE, RADIJSKE ALI TV, OSTALE"]
["8541 40 90",4,"FOTONAPETOSTNI PANELI","FOTOVOLTAIČNI PANELI (MODULI)",null,"Ukinitev tarifne oznake, namesto nje tri nove tarifne oznake (8541 42 00, 8541 43 00, 8541 49 00). "]
[]
[]
["8543 70 70",5,"ELEKTRONSKE CIGARETE","ELEKTRONSKE CIGARETE",null,"Ukinitev tarifne oznake, namesto nje nova tarifna oznaka (8543 40 00)."]
["9006 51 00",5,"FOTOAPARATI","FOTOAPARATI,Z ISKALOM SKOZI OBJEKTIV,ZA FILM V ZVITKU,ŠIRINE DO 35 MM",null,"Ukinitev tarifne oznake, namesto nje dve novi tarifni oznaki (9006 53 80, 9006 59 00). "]
[]
["9006 52 00",5,"FOTOAPARATI","FOTOAPARATI,DRUGI,  ZA FILM V ZVITKU, ŠIRINE DO 35 MM",null,"Ukinitev tarifne oznake, namesto nje nova tarifna oznaka (9006 59 00). "]
["8539 50 00",3,"ELEKTRIČNE ŽARNICE","ŽARNICE S SVETLEČIMI DIODAMI (LED)",null,"Ukinitev tarifne oznake, namesto nje nova tarifna oznaka (8539 52 00). "]
["9405 10 21","4 ali 5","STENSKA IN STROPNA SVETILA","LESTENCI IN DRUGA ELEKTRIČNA STROPNA ALI STENSKA SVETILA, RAZEN ZA RAZSVETLJAVO JAVNIH ODPRTIH PROSTOROV ALI PROMETNIH POTI, IZ PLASTIČNIH MAS ZA ŽARNICE Z NITKO",null,"Ukinitev tarifne oznake, namesto nje nova tarifna oznaka (9405 19 40). "]
["9405 10 40","4 ali 5","STENSKA IN STROPNA SVETILA","LESTENCI IN DRUGA ELEKTRIČNA STROPNA ALI STENSKA SVETILA, RAZEN ZA RAZSVETLJAVO JAVNIH ODPRTIH PROSTOROV ALI PROMETNIH POTI, IZ KERAMIKE IN DRUGA IZ PLASTIČNIH MAS",null,"Ukinitev tarifne oznake, namesto nje tri nove tarifne oznake (8539 51 00,  9405 11 40, 9405 19 40). "]
[]
[]
["9405 10 50","4 ali 5","STENSKA IN STROPNA SVETILA","LESTENCI IN DRUGA ELEKTRIČNA STROPNA ALI STENSKA SVETILA, RAZEN ZA RAZSVETLJAVO JAVNIH ODPRTIH PROSTOROV ALI PROMETNIH POTI, IZ STEKLA",null,"Ukinitev tarifne oznake, namesto nje tri nove tarifne oznake (8539 51 00,  9405 11 50, 9405 19 50). "]
[]
[]
["9405 10 91","4 ali 5","STENSKA IN STROPNA SVETILA","LESTENCI IN DRUGA ELEKTRIČNA STROPNA ALI STENSKA SVETILA, RAZEN ZA RAZSVETLJAVO JAVNIH ODPRTIH PROSTOROV ALI PROMETNIH POTI, IZ DRUGIH MATERIALOV, ZA ŽARNICE Z NITKO",null,"Ukinitev tarifne oznake, namesto nje nova tarifna oznaka (9405 19 00). "]
["9405 10 98","4 ali 5","STENSKA IN STROPNA SVETILA","LESTENCI IN DRUGA ELEKTRIČNA STROPNA ALI STENSKA SVETILA, RAZEN ZA RAZSVETLJAVO JAVNIH ODPRTIH PROSTOROV ALI PROMETNIH POTI, IZ DRUGIH MATERIALOV, ZA DRUGE SIJALKE",null,"Ukinitev tarifne oznake, namesto nje tri nove tarifne oznake (8539 51 00,  9405 11 90, 9405 19 90). "]
[]
[]
["9405 20 11",5,"SVETILKE ZA NA MIZO, NA POD ALI OB POSTELJO","ELEKTRIČNE SVETILKE, KI SE POSTAVIJO NA MIZO, OB POSTELJO ALI NA POD, IZ PLASTIČNIH MAS, ZA ŽARNICE Z NITKO",null,"Ukinitev tarifne oznake, namesto nje nova tarifna oznaka (9405 29 40). "]
["9405 20 40",5,"SVETILKE ZA NA MIZO, NA POD ALI OB POSTELJO","ELEKTRIČNE SVETILKE, KI SE POSTAVIJO NA MIZO, OB POSTELJO ALI NA POD, IZ KERAMIKE IN DRUGE IZ PLASTIČNIH MAS",null,"Ukinitev tarifne oznake, namesto nje tri nove tarifne oznake (8539 51 00,  9405 21 40, 9405 29 40). "]
[]
[]
["9405 20 50",5,"SVETILKE ZA NA MIZO, NA POD ALI OB POSTELJO","ELEKTRIČNE SVETILKE, KI SE POSTAVIJO NA MIZO, OB POSTELJO ALI NA POD, IZ STEKLA",null,"Ukinitev tarifne oznake, namesto nje tri nove tarifne oznake (8539 51 00,  9405 21 50, 9405 29 50). "]
[]
[]
["9405 20 91",5,"SVETILKE ZA NA MIZO, NA POD ALI OB POSTELJO","ELEKTRIČNE SVETILKE, KI SE POSTAVIJO NA MIZO, OB POSTELJO ALI NA POD, IZ DRUGIH MATERIALOV, ZA ŽARNICE Z NITKO",null,"Ukinitev tarifne oznake, namesto nje nova tarifna oznaka (9405 29 90). "]
["9405 20 99",5,"SVETILKE ZA NA MIZO, NA POD ALI OB POSTELJO","ELEKTRIČNE SVETILKE, KI SE POSTAVIJO NA MIZO, OB POSTELJO ALI NA POD, IZ DRUGIH MATERIALOV, ZA DRUGE SIJALKE",null,"Ukinitev tarifne oznake, namesto nje tri nove tarifne oznake (8539 51 00,  9405 21 90, 9405 29 90). "]
[]
[]
["9405 30 00",5,"BOŽIČNO/NOVOLETNE GARNITURE","GARNITURE ZA RAZSVETLJAVO BOŽIČNIH/NOVOLETNIH  DREVESC",null,"Ukinitev tarifne oznake, namesto nje tri nove tarifne oznake (8539 51 00,  9405 31 00, 9405 39 00). "]
[]
[]
["9405 40 10",5,"DRUGE EL. SVETILKE IN PRIBOR ZANJE","REFLEKTORJI IN ŽAROMETI (samo za MH sijalke!)",null,"Ukinitev tarifne oznake, namesto nje štiri nove tarifne oznake (8539 51 00,  9405 41 10, 9405 42 10, 9405 49 10 ). "]
[]
[]
[]
["9405 40 35",4.5,"SVETILKE ZA FLUORESCENTNE SIJALKE RAZEN SVETILKE V GOSPODINJSTVIH","DRUGE EL. SVETILKE, KI SE UPORABLJAJO ZA CEVNE FLURESCENTNE SIJALKE, IZ PLASTIČNIH MATERIALOV",null,"Ukinitev tarifne oznake, namesto nje nova tarifna oznaka (9405 49 40). "]
["9405 40 31",5,"DRUGE SVETILKE","DRUGE ELEKTRIČNE SVETILKE IZ PLASTIČNIH MAS, ZA ŽARNICE Z NITKO",null,"Ukinitev tarifne oznake, namesto nje nova tarifna oznaka (9405 49 40). "]
["9405 40 39",5,"DRUGE SVETILKE","DRUGE ELEKTRIČNE SVETILKE IZ PLASTIČNIH MAS, ZA DRUGE SIJALKE",null,"Ukinitev tarifne oznake, namesto nje štiri nove tarifne oznake (8539 51 00,  9405 41 31, 9405 42 31, 9405 49 40). "]
[]
[]
[]
["9405 40 91",5,"DRUGE SVETILKE","DRUGE ELEKTRIČNE SVETILKE IZ DRUGIH MATERIALOV, ZA ŽARNICE Z NITKO",null,"Ukinitev tarifne oznake, namesto nje nova tarifna oznaka (9405 49 90). "]
["9405 40 95",4.5,"SVETILKE ZA FLUORESCENTNE SIJALKE RAZEN SVETILKE V GOSPODINJSTVIH","DRUGE EL. SVETILKE, KI SE UPORABLJAJO ZA CEVNE FLURESCENTNE SIJALKE, IZ DRUGIH MATERIALOV",null,"Ukinitev tarifne oznake, namesto nje nova tarifna oznaka (9405 49 90). "]
["9405 40 99",5,"DRUGE EL. SVETILKE IN PRIBOR ZANJE, DRUGO","DRUGO, SVETLOBNI IZVORI ZA FIBEROPTIKO, ENDOSKOPIJO IN STROJNI VID",null,"Ukinitev tarifne oznake, namesto nje štiri nove tarifne oznake (8539 51 00,  9405 41 39, 9405 42 39, 9405 49 90). "]
[]
[]
[]
["9405 60 20","4 ali 5","OSVETLJENI ZNAKI ALI PLOŠČE","OSVETLJENI ZNAKI IN PLOŠČE, S FIKSIRANIM SVETLOBNIM VIROM, IZ PLASTIČNIH MAS",null,"Ukinitev tarifne oznake, namesto nje dve novi tarifni oznaki (9405 61 20, 9405 69 20). "]
[]
["9405 60 80","4 ali 5","OSVETLJENI ZNAKI ALI PLOŠČE","OSVETLJENI ZNAKI IN PLOŠČE, S FIKSIRANIM SVETLOBNIM VIROM, DRUGI",null,"Ukinitev tarifne oznake, namesto nje dve novi tarifni oznaki (9405 61 80, 9405 69 80). "]
[]
["8514 30 20","4 ali 5","INDUSTRIJSKE ALI LABORATORIJSKE PEČI","DRUGE PEČI, KI SE UPORABLJAJO SAMO ALI ZLASTI ZA IZDELAVO TISKANIH VEZIJ ALI SKLOPOV TISKANIH VEZIJ",null,"Ukinitev tarifne oznake, namesto nje tri nove tarifne oznake (8514  31 10, 8514 32 10, 8514 39 10). "]
[]
[]
["8514 30 80","4 ali 5","INDUSTRIJSKE ALI LABORATORIJSKE PEČI","INDUSTRIJSKE ALI LABORATORIJSKE PEČI, DRUGE PEČI",null,"Ukinitev tarifne oznake, namesto nje tri nove tarifne oznake (8514  31 90, 8514 32 90, 8514 39 90). "]
[]
[]
["9011 10 90",4,"OPTIČNI MIKROSKOPI","STEREOSKOPSKI MIKROSKOPI, DRUGI",null,"Ukinitev tarifne oznake, namesto nje nova tarifna oznaka (9011 10 00). "]
["9019 20 00","4 ali 5","APARATI ZA OZONOTERAPIJO, KISIKOTERAPIJO,AEROSOLNO TERAPIJO,UMETNO DIHANJE IPD.","APARATI ZA OZONOTERAPIJO, KISIKOTERAPIJO, AEROSOLNO TERAPIJO, UMETNO DIHANJE IPD.",null,"Ukinitev tarifne oznake, namesto nje tri nove tarifne oznake (9019 20 10, 9019 20 20, 9019 20 90). "]
[]
[]
["9015 10 10",4,"DALJINOMER","DALJINOMERI, ELEKTRONSKI",null,"Združeni dve tarifni oznaki v eno novo tarifno oznako (9015 10 00)."]
["9015 10 90",4,"DALJINOMERI","DALJINOMERI, DRUGI"]
["9015 20 10",4,"TEODOLITI IN TAHIMETRI","TEODOLITI IN TAHIMETRI, ELEKTRONSKI",null,"Združeni dve tarifni oznaki v eno novo tarifno oznako (9015 20 00)."]
["9015 20 90",4,"TEODOLITI IN TAHIMETRI","TEODOLITI IN TAHIMETRI, DRUGI"]
["9025 19 20",5,"TERMOMETRI IN PIROMETRI","TERMOMETRI IN PIROMETRI, DRUGI,OSTALI, DRUGI",null,"Ukinitev tarifne oznake, namesto nje nova tarifna oznaka (9025 19 00). "]
["9027 80 05","4 ali 5","EKSPOZIMETRI","EKSPOZIMETRI",null,"Ukinitev tarifne oznake, namesto nje nova tarifna oznaka (9027 89 10). "]
["9027 80 11",5,"MERILCI PH IN ZA MERJENJE PREVODN.","INSTRUMENTI,APARATI ZA FIZIIKALNO KEMINE.ANALIZE, DRUGI,ELEKTRONSKI, MERILCI PH IN ZA MERJENJE PREVODNOSTI.",null,"Ukinitev tarifne oznake, namesto nje nova tarifna oznaka (9027 89 30). "]
["9027 80 13",5,"INSTRUMENTI, APARATI ZA FIZIK., KEMIČ. ANALIZE, DRUGI,ELEK., ZA PRIKAZ.FIZIKALNIH LASTNOSTI NA PODLAGI TEKOČIH KRISTALOV IPD.","INSTRUMENTI, APARATI ZA FIZIKALNO KEMIČNE ANALIZE,DRUGI, ELEKTRONSKI ZA PRIKAZ.FIZ.LASTNOSTI NA PODLAGI TEKOČIH KRISTALOV IPD.",null,"Ukinitev treh tarifnih oznak, namesto njih dve novi (9027 81 00, 9027 89 00). "]
["9027 80 17",5,"INSTRUMENTI, APARATI ZA FIZIK., KEMIČ.ANALIZE, ELEK., DRUGI","INSTRUMENTI, APARATI ZA FIZIKALNO KEMIČNE ANALIZE, ELEKTRONSKI, DRUGI"]
["9027 80 91",5,"VISKOZOMETRI, POROZIMETRI IN EKSPANZIOMETRI","INSTRUMENTI, APARATI ZA FIZIKALNO KEMIČNE ANALIZE, DRUGI, OSTALI, VISKOZOMETRI, POROZIMETRI IN EKSPANZIOMETRI"]
["9027 90 10",5,"MIKROTOMI(DROBNOREZNI NOŽI)","MIKROTOMI, DELI IN PRIBOR, MIKROTOMI (DROBNOREZNI NOŽI)",null,"Ukinitev tarifne oznake, namesto nje nova tarifna oznaka (9027 29 00). "]
["9030 33 30",5,"DRUGI ELEKTRONSKI INSTRUMENTI ","DRUGI ELEKTRONSKI INSTRUMENTI ZA MERJENJE ALI KONTROLO EL. NAPETOSTI, TOKA ALI MOČI, BREZ NAPRAVE ZA REGISTRIRANJE",null,"Združeni dve tarifni oznaki v eno novo tarifno oznako (9030 33 70)."]
["9030 33 80",5,"DRUGI INSTRUMENTI","DRUGI INSTRUMENTI ZA MERJENJE ALI KONTROLO EL. NAPETOSTI, TOKA ALI MOČI, BREZ NAPRAVE ZA REGISTRIRANJE"]
["9030 89 30",5,"INSTR.,APAR.ZA MERJENJE, KONTROLO EL.VELIČIN,DRUGI,ELEKTRONSKI","INSTRUMENTI IN APARATI ZA MERJENJE, KONTROLO EL.VELIČIN, DRUGI, ELEKTRONSKI",null,"Združeni dve tarifni oznaki v eno novo tarifno oznako (9030 89 00)."]
["9030 89 90",5,"INSTR.,APAR.ZA MERJENJE, KONTROLO EL.VELIČIN,DRUGI,OSTALI,DRUGI","INSTRUMENTI, APARATI ZA MERJENJE, KONTROLO EL.VELIČIN,DRUGI, OSTALI, DRUGI"]
["8472 90 30",4,"BANKOMATI"," BANKOMATI",null,"Združeni dve tarifni oznaki v eno novo tarifno oznako (8472 90 80)."]
["8507 40 00","7-PBA","NIKELJ-ŽELEZOVI AKUMULATORJI","NIKELJ-ŽELEZOVI AKUMULATORJI",null,"Ukinitev tarifne oznake, vsebina preide v obstoječo tarifno oznako (8507 80 00)."]

{"sheet":"Dodano na seznam (2)","index":3,"n_rows":37,"n_cols":19,"rows_kept":37,"cut":false,"hidden":true,"merged":[[34,5,36,13],[2,5,2,16],[4,5,7,16],[5,4,13,4],[14,5,14,17],[31,5,31,13],[32,5,33,13]]}
["         Tarifne oznake dodane na seznam glede na Seznam EEO po kombinirani nomenklaturi za leto 2018"]
["tarifna oznaka","razred","ime proizvoda","opis proizvoda",null,"Opombe: "]
["8451 10 00",4,"STROJI ZA KEMIČNO ČIŠČENJE","ELEKTRIČNI STROJI ZA KEMIČNO ČIŠČENJE TEKSTILA",null,"Glede na POHS k TŠ 8451 ti stroji čistijo namesto z vodo s hlapljivimi tekočinami, kot je npr. bencin, tetrakloro-ogljik-CCl4, triklor-etilen itd. To so običajno zelo zapleteni stroji, ki vključujejo npr. pralne stroje za pranje s kroženjem tekočine skozi blago, ki se čisti, centrifugalne ekstraktorje, filtre, naprave za prečiščevanje in rezervoarje za odležavanje. Ker so številne čistilne tekočine vnetljive, sta v teh strojih pralni stroj in cirkulacijska črpalka običajno na motorni pogon, ki je varen pred eksplozijo (preveriti glede možnosti LSIT).",null,null,null,null,null,null,null,null,null,null,null,null,{"$f":"IF(C3='[1]Dodano na seznam'!C3,\"ok\",\"BAD\")","v":"ok"}]
["8415 10 90 ",1,"KLIMATSKE NAPRAVE","KLIMATSKE NAPRAVE Z VENTILATORJEM NA MOTORNI POGON IN ELEMENTI ZA\nSPREMINJANJE TEMPERATURE IN VLAŽNOSTI,VKLJUČNO S STROJI, PRI KATERIH\nVLAŽNOSTI NI MOGOČE POSEBEJ REGULIRATI, KI SO KONSTRUIRANE TAKO, DA SE PRITRDIJO NA OKNO, ZID, STROP ALI TLA, DELJENE (SPLIT SISTEMI)",null,null,null,null,null,null,null,null,null,null,null,null,null,null,{"$f":"IF(C4='[1]Dodano na seznam'!C4,\"ok\",\"BAD\")","v":"ok"}]
["9108 11 00",5,"ELEKTRIČNI MEHANIZMI ZA OSEBNE URE","KOMPLETNI IN SESTAVLJENI ELEKTRIČNI MEHANIZMI ZA OSEBNE URE, SAMO Z MEHANIČNIM PRIKAZOVALNIKOM ALI Z NAPRAVO, V KATERO SE LAHKO VGRADI MEHANIČNI PRIKAZOVALNIK",null,"Potrebno je preučiti, al gre za komponente EEO, dane na trg samostojno, in ne sodijo me EED; oziroma gre za komponente EEO, ki imajo svojo samostojno fukcijo in sodjio na seznam.",null,null,null,null,null,null,null,null,null,null,null,null,{"$f":"IF(C5='[1]Dodano na seznam'!C5,\"ok\",\"BAD\")","v":"ok"}]
["9108 12 00",5,"ELEKTRIČNI MEHANIZMI ZA OSEBNE URE","KOMPLETNI IN SESTAVLJENI ELEKTRIČNI MEHANIZMI ZA OSEBNE URE, SAMO Z OPTIČNO-ELEKTRONSKIM PRIKAZOVALNIKOM",null,null,null,null,null,null,null,null,null,null,null,null,null,null,{"$f":"IF(C6='[1]Dodano na seznam'!C6,\"ok\",\"BAD\")","v":"ok"}]
["9108 19 00",5,"ELEKTRIČNI MEHANIZMI ZA OSEBNE URE","KOMPLETNI IN SESTAVLJENI ELEKTRIČNI MEHANIZMI ZA OSEBNE URE, DRUGI",null,null,null,null,null,null,null,null,null,null,null,null,null,null,{"$f":"IF(C7='[1]Dodano na seznam'!C7,\"ok\",\"BAD\")","v":"ok"}]
["9109 10 00",5,"DRUGI ELEKTRIČNI URNI MEHANIZMI","DRUGI KOMPLETNI IN SESTAVLJENI ELEKTRIČNI URNI MEHANIZMI",null,null,null,null,null,null,null,null,null,null,null,null,null,null,{"$f":"IF(C8='[1]Dodano na seznam'!C8,\"ok\",\"BAD\")","v":"ok"}]
["8543 70 10",6,"ELEKTRIČNI STROJI ZA PREVAJANJE ALI STROJI S FUNCKIJO SLOVARJA","ELEKTRIČNI STROJI ZA PREVAJANJE ALI STROJI S FUNCKIJO SLOVARJA",null,null,null,null,null,null,null,null,null,null,null,null,null,null,{"$f":"IF(C9='[1]Dodano na seznam'!C9,\"ok\",\"BAD\")","v":"ok"}]
["8517 69 20 ",6,"DOMOFONI","DOMOFONSKI SISTEMI.",null,null,null,null,null,null,null,null,null,null,null,null,null,null,{"$f":"IF(C10='[1]Dodano na seznam'!C10,\"ok\",\"BAD\")","v":"ok"}]
["8531 20 20 ",5,"LED INDIKATORSKE PLOŠČE","INDIKATORSKE PLOŠČE S SVETLEČIMI DIODAMI (LED)",null,null,null,null,null,null,null,null,null,null,null,null,null,null,{"$f":"IF(C11='[1]Dodano na seznam'!C11,\"ok\",\"BAD\")","v":"ok"}]
["8531 20 40",5,"LCD INDIKATORSKE PLOŠČE","LCD INDIKATORSKE PLOŠČE Z AKTIVNIMI MATRIČNIMI SKLOPI S TEKOČIMI KRISTALI",null,null,null,null,null,null,null,null,null,null,null,null,null,null,{"$f":"IF(C12='[1]Dodano na seznam'!C12,\"ok\",\"BAD\")","v":"ok"}]
["8531 80 40 ",5,"ZVONCI IN BRENČALA, ZVONCI ZA VRATA IN PODOBNO","ELEKTRIČNI ZVONCI, BRENČALA, ZVONCI ZA VRATA IN PODOBNO",null,null,null,null,null,null,null,null,null,null,null,null,null,null,{"$f":"IF(C13='[1]Dodano na seznam'!C13,\"ok\",\"BAD\")","v":"ok"}]
["8518 30 20",6,"TELEFONSKE SLUŠALKE ZA ŽIČNE TELEFONSKE APARATE","TELEFONSKE SLUŠALKE ZA ŽIČNE TELEFONSKE APARATE",null,null,null,null,null,null,null,null,null,null,null,null,null,null,{"$f":"IF(C14='[1]Dodano na seznam'!C14,\"ok\",\"BAD\")","v":"ok"}]
["9010 60 00",2,"ZASLONI ZA PROJEKCIJE","ZASLONI ZA PROJEKCIJE, OPREMLJENI Z ELEKTRIČNIMI POGONI.",null,"V POHS k TŠ 9010 je za zaslone (v prevodu) navedeno:Ti zasloni se uporabljajo v kinodvoranah, šolah, predavalnicah itd. Mednje so vključeni projekcijski zasloni za tridimenzionalni prikaz, pa tudi prenosna filmska platna, zvita v zvitke ali zložena v škatle. Ta platna se montirajo na stojala in mize, ali pa se obesijo na strop.\nPlatna so pogosto izdelana iz tkanin, so belo pobarvana in prevlečena s steklenimi ali srebrnimi zrnci (mikrokroglicami). Lahko so tudi iz listov plastičnih materialov. Te tkanine in listi so v glavnem perforirani. Vendar pa morajo biti nedvoumno razpoznavni (na primer: po obrobah ali robovih) kot filmska platna, da se lahko uvrstijo v to tarifno številko. V EEO sodijo torej izključno zasloni, ki imajo vgrajene električne pogone za manipulacijo.",null,null,null,null,null,null,null,null,null,null,null,null,{"$f":"IF(C15='[1]Dodano na seznam'!C15,\"ok\",\"BAD\")","v":"ok"}]
["8513 10 00",5,"PRENOSNE SVETILKE","PRENOSNE ELEKTRIČNE SVETILKE Z LASTNIM VIROM ENERGIJE",null,null,null,null,null,null,null,null,null,null,null,null,null,null,{"$f":"IF(C16='[1]Dodano na seznam'!C16,\"ok\",\"BAD\")","v":"ok"}]
["9405 10 21",5,"STENSKA IN STROPNA SVETILA","LESTENCI IN DRUGA ELEKTRIČNA STROPNA ALI STENSKA SVETILA, RAZEN ZA RAZSVETLJAVO JAVNIH ODPRTIH PROSTOROV ALI PROMETNIH POTI, IZ PLASTIČNIH MAS ZA ŽARNICE Z NITKO",null,null,null,null,null,null,null,null,null,null,null,null,null,null,{"$f":"IF(C17='[1]Dodano na seznam'!C17,\"ok\",\"BAD\")","v":"ok"}]
["9405 10 40",5,"STENSKA IN STROPNA SVETILA","LESTENCI IN DRUGA ELEKTRIČNA STROPNA ALI STENSKA SVETILA, RAZEN ZA RAZSVETLJAVO JAVNIH ODPRTIH PROSTOROV ALI PROMETNIH POTI, IZ KERAMIKE IN DRUGA IZ PLASTIČNIH MAS",null,null,null,null,null,null,null,null,null,null,null,null,null,null,{"$f":"IF(C18='[1]Dodano na seznam'!C18,\"ok\",\"BAD\")","v":"ok"}]
["9405 10 50",5,"STENSKA IN STROPNA SVETILA","LESTENCI IN DRUGA ELEKTRIČNA STROPNA ALI STENSKA SVETILA, RAZEN ZA RAZSVETLJAVO JAVNIH ODPRTIH PROSTOROV ALI PROMETNIH POTI, IZ STEKLA",null,null,null,null,null,null,null,null,null,null,null,null,null,null,{"$f":"IF(C19='[1]Dodano na seznam'!C19,\"ok\",\"BAD\")","v":"ok"}]
["9405 10 91",5,"STENSKA IN STROPNA SVETILA","LESTENCI IN DRUGA ELEKTRIČNA STROPNA ALI STENSKA SVETILA, RAZEN ZA RAZSVETLJAVO JAVNIH ODPRTIH PROSTOROV ALI PROMETNIH POTI, IZ DRUGIH MATERIALOV, ZA ŽARNICE Z NITKO",null,null,null,null,null,null,null,null,null,null,null,null,null,null,{"$f":"IF(C20='[1]Dodano na seznam'!C20,\"ok\",\"BAD\")","v":"ok"}]
["9405 10 98",5,"STENSKA IN STROPNA SVETILA","LESTENCI IN DRUGA ELEKTRIČNA STROPNA ALI STENSKA SVETILA, RAZEN ZA RAZSVETLJAVO JAVNIH ODPRTIH PROSTOROV ALI PROMETNIH POTI, IZ DRUGIH MATERIALOV, ZA DRUGE SIJALKE",null,null,null,null,null,null,null,null,null,null,null,null,null,null,{"$f":"IF(C21='[1]Dodano na seznam'!C21,\"ok\",\"BAD\")","v":"ok"}]
["9405 20 11",5,"SVETILKE ZA NA MIZO, NA POD ALI OB POSTELJO","ELEKTRIČNE SVETILKE, KI SE POSTAVIJO NA MIZO, OB POSTELJO ALI NA POD, IZ PLASTIČNIH MAS, ZA ŽARNICE Z NITKO",null,null,null,null,null,null,null,null,null,null,null,null,null,null,{"$f":"IF(C22='[1]Dodano na seznam'!C22,\"ok\",\"BAD\")","v":"ok"}]
["9405 20 40",5,"SVETILKE ZA NA MIZO, NA POD ALI OB POSTELJO","ELEKTRIČNE SVETILKE, KI SE POSTAVIJO NA MIZO, OB POSTELJO ALI NA POD, IZ KERAMIKE IN DRUGE IZ PLASTIČNIH MAS",null,null,null,null,null,null,null,null,null,null,null,null,null,null,{"$f":"IF(C23='[1]Dodano na seznam'!C23,\"ok\",\"BAD\")","v":"ok"}]
["9405 20 50",5,"SVETILKE ZA NA MIZO, NA POD ALI OB POSTELJO","ELEKTRIČNE SVETILKE, KI SE POSTAVIJO NA MIZO, OB POSTELJO ALI NA POD, IZ STEKLA",null,null,null,null,null,null,null,null,null,null,null,null,null,null,{"$f":"IF(C24='[1]Dodano na seznam'!C24,\"ok\",\"BAD\")","v":"ok"}]
["9405 20 91",5,"SVETILKE ZA NA MIZO, NA POD ALI OB POSTELJO","ELEKTRIČNE SVETILKE, KI SE POSTAVIJO NA MIZO, OB POSTELJO ALI NA POD, IZ DRUGIH MATERIALOV, ZA ŽARNICE Z NITKO",null,null,null,null,null,null,null,null,null,null,null,null,null,null,{"$f":"IF(C25='[1]Dodano na seznam'!C25,\"ok\",\"BAD\")","v":"ok"}]
["9405 20 99",5,"SVETILKE ZA NA MIZO, NA POD ALI OB POSTELJO","ELEKTRIČNE SVETILKE, KI SE POSTAVIJO NA MIZO, OB POSTELJO ALI NA POD, IZ DRUGIH MATERIALOV, ZA DRUGE SIJALKE",null,null,null,null,null,null,null,null,null,null,null,null,null,null,{"$f":"IF(C26='[1]Dodano na seznam'!C26,\"ok\",\"BAD\")","v":"ok"}]
["9405 30 00",5,"BOŽIČNO/NOVOLETNE GARNITURE","GARNITURE ZA RAZSVETLJAVO BOŽIČNIH/NOVOLETNIH  DREVESC",null,null,null,null,null,null,null,null,null,null,null,null,null,null,{"$f":"IF(C27='[1]Dodano na seznam'!C27,\"ok\",\"BAD\")","v":"ok"}]
["9405 40 31",5,"DRUGE SVETILKE","DRUGE ELEKTRIČNE SVETILKE IZ PLASTIČNIH MAS, ZA ŽARNICE Z NITKO",null,null,null,null,null,null,null,null,null,null,null,null,null,null,{"$f":"IF(C28='[1]Dodano na seznam'!C28,\"ok\",\"BAD\")","v":"ok"}]
["9405 40 39",5,"DRUGE SVETILKE","DRUGE ELEKTRIČNE SVETILKE IZ PLASTIČNIH MAS, ZA DRUGE SIJALKE",null,null,null,null,null,null,null,null,null,null,null,null,null,null,{"$f":"IF(C29='[1]Dodano na seznam'!C29,\"ok\",\"BAD\")","v":"ok"}]
["9405 40 91",5,"DRUGE SVETILKE","DRUGE ELEKTRIČNE SVETILKE IZ DRUGIH MATERIALOV, ZA ŽARNICE Z NITKO",null,null,null,null,null,null,null,null,null,null,null,null,null,null,{"$f":"IF(C30='[1]Dodano na seznam'!C30,\"ok\",\"BAD\")","v":"ok"}]
["9503 00 81",5,"OROŽJE-IGRAČE","OROŽJE-IGRAČE, RAZEN IGRAČ Z VDELANIM ELEKTRIČNIM MOTORJEM",null,null,null,null,null,null,null,null,null,null,null,null,null,null,{"$f":"IF(C31='[1]Dodano na seznam'!C31,\"ok\",\"BAD\")","v":"ok"}]
["9503 00 79",5,"","",null,"KN oznaka 9503 00 79 je že na seznamu v letu 2018.",null,null,null,null,null,null,null,null,null,null,null,null,{"$f":"IF(C32='[1]Dodano na seznam'!C32,\"ok\",\"BAD\")","v":"ok"}]
["8711 60 10 ",4,"DVOKOLESA S PEDALI, S POMOŽNIM ELEKTRIČNIM MOTORJEM\nS TRAJNO NAZIVNO MOČJO DO VKLJUČNO 250 W","DVOKOLESA S PEDALI Z DODATNIM POGONOM, OPREMLJENA S POMOŽNIM ELEKTRIČNIM MOTORJEM Z NAJVEČJO TRAJNO NAZIVNO MOČJO, KI JE MANJŠA ALI ENAKA 250 W, KATEREGA IZHODNA MOČ SE PREKINE, KADAR KOLESAR\nPRENEHA POGANJATI PEDALA, SICER PA SE PROGRESIVNO ZMANJŠUJE IN\nKONČNO PREKINE, PREDEN HITROST VOZILA DOSEŽE 25 KM/H",null,"Upoštevaje uredbo št. 168/2013 Evropskega parlamenta in Sveta o odobritvi in tržnem nadzoru dvo- ali trikolesnih vozil in štirikolesnikov",null,null,null,null,null,null,null,null,null,null,null,null,{"$f":"IF(C33='[1]Dodano na seznam'!C33,\"ok\",\"BAD\")","v":"ok"}]
["8711 60 90",null,"ELEKTRIČNE ROLKE (\"E-BOARD\"); ELEKTRIČNI DVOKOLESNIKI (NPR. \"SEGWAY\"); ELEKTRIČNI SKIROJI","ELEKTRIČNA DVOKOLESNA SAMOURAVNOTEŽEVALNA VOZILA; SKIROJI Z ELEKTRIČNIM MOTORJEM",null,null,null,null,null,null,null,null,null,null,null,null,null,null,{"$f":"IF(C34='[1]Dodano na seznam'!C34,\"ok\",\"BAD\")","v":"ok"}]
["8504 40 82",null,"STATIČNI PRETVORNIKI","USMERNIKI",null,"Smiselno dodati na seznam, v kolikor ostaneta na seznam tudi KN oznaki 8504 40 30 in 8504 40 55.",null,null,null,null,null,null,null,null,null,null,null,null,{"$f":"IF(C35='[1]Dodano na seznam'!C35,\"ok\",\"BAD\")","v":"ok"}]
["8504 40 84",null,"STATIČNI PRETVORNIKI","RAZSMERNIKI Z MOČJO DO VKLJUČNO 7,5 KVA",null,null,null,null,null,null,null,null,null,null,null,null,null,null,{"$f":"IF(C36='[1]Dodano na seznam'!C36,\"ok\",\"BAD\")","v":"ok"}]
["8504 40 90",null,"STATIČNI PRETVORNIKI","DRUGI PRETVORNIKI",null,null,null,null,null,null,null,null,null,null,null,null,null,null,{"$f":"IF(C37='[1]Dodano na seznam'!C37,\"ok\",\"BAD\")","v":"ok"}]